{"text_format":"1","workbook":"xlsx","n_sheets":5,"sheets":["ZAPISNIK RUKOMETNE UTAKMICE","PODACI","Igraci","Suci","Upute"],"not_rendered":{"charts":0,"images":2,"macros":1,"external_links":0,"defined_names":4,"comments":0,"pivot_tables":0},"unopened":[],"bounds":{"document_bytes":16777216,"sheet_cells":100000,"rows_first":2000,"rows_last":500,"rows_between":2000,"halvings":0,"cell_chars":16384,"cell_head_chars":4096},"cells_cut":0,"cells_raw":0,"read":"whole","date_system":"1900"}

{"sheet":"ZAPISNIK RUKOMETNE UTAKMICE","index":0,"n_rows":385,"n_cols":256,"rows_kept":385,"cut":false,"hidden":false,"merged":[[384,3,386,194],[2,40,8,47],[2,151,8,158],[93,254,101,254],[165,254,173,254],[210,168,212,171],[210,172,212,175],[228,254,236,254],[324,4,328,19],[324,20,328,21],[324,22,328,64],[324,65,328,69],[324,70,328,104],[324,105,328,136],[328,146,333,165],[328,174,333,179],[329,4,333,19],[329,20,333,21],[329,22,333,64],[219,188,227,193],[216,164,218,167],[231,160,233,163],[216,172,218,175],[216,180,218,183],[216,184,218,187],[222,184,224,187],[225,160,227,163],[225,164,227,167],[159,55,161,60],[159,65,161,68],[159,69,161,72],[159,73,161,76],[93,255,101,255],[102,254,110,254],[102,255,110,255],[111,254,119,254],[111,255,119,255],[120,254,128,254],[120,255,128,255],[129,254,137,254],[129,255,137,255],[138,254,146,254],[138,255,146,255],[147,254,155,254],[147,255,155,255],[156,254,164,254],[156,255,164,255],[156,188,164,193],[168,176,170,179],[168,180,170,183],[168,184,170,187],[147,188,155,193],[120,188,128,193],[111,188,119,193],[102,188,110,193],[99,184,101,187],[105,180,107,183],[156,176,158,179],[102,184,104,187],[132,184,134,187],[129,184,131,187],[159,180,161,183],[147,201,155,222],[156,201,164,222],[159,77,161,80],[159,81,161,84],[162,55,164,60],[156,85,158,88],[156,93,164,98],[156,99,164,108],[156,109,164,140],[156,141,164,145],[156,146,164,149],[156,150,158,155],[159,150,161,155],[162,150,164,155],[225,55,227,60],[225,65,227,68],[225,69,227,72],[225,73,227,76],[225,77,227,80],[225,81,227,84],[225,85,227,88],[225,150,227,155],[219,141,227,145],[219,146,227,149],[219,150,221,155],[213,55,215,60],[213,65,215,68],[213,69,215,72],[213,73,215,76],[213,77,215,80],[213,150,215,155],[204,55,206,60],[204,65,206,68],[204,69,206,72],[216,150,218,155],[210,156,218,159],[210,160,212,163],[210,164,212,167],[213,160,215,163],[213,164,215,167],[213,168,215,171],[213,172,215,175],[216,160,218,163],[290,158,293,159],[290,160,293,164],[290,165,293,169],[294,184,297,188],[237,179,241,183],[237,184,241,188],[210,188,218,193],[265,116,268,150],[265,151,268,169],[225,168,227,171],[225,180,227,183],[290,170,293,171],[290,172,293,176],[290,177,293,181],[290,182,293,183],[290,184,293,188],[282,170,285,171],[282,172,285,176],[282,177,285,181],[282,182,285,183],[282,184,285,188],[294,117,297,121],[294,122,297,123],[165,255,173,255],[174,254,182,254],[174,255,182,255],[183,254,191,254],[183,255,191,255],[192,254,200,254],[192,255,200,255],[201,254,209,254],[201,255,209,255],[210,254,218,254],[210,255,218,255],[219,254,227,254],[219,255,227,255],[294,148,297,152],[294,153,297,157],[294,158,297,159],[294,141,297,145],[294,146,297,147],[286,160,289,164],[286,165,289,169],[286,170,289,171],[286,172,289,176],[286,177,289,181],[286,182,289,183],[286,184,289,188],[286,153,289,157],[286,158,289,159],[282,165,285,169],[261,170,264,177],[261,178,264,185],[261,186,264,193],[219,156,227,159],[302,146,305,147],[302,148,305,152],[298,117,301,121],[225,184,227,187],[225,172,227,175],[225,176,227,179],[219,172,221,175],[222,172,224,175],[219,176,221,179],[219,180,221,183],[298,177,301,181],[298,182,301,183],[298,136,301,140],[298,141,301,145],[228,255,236,255],[234,160,236,163],[234,164,236,167],[234,168,236,171],[234,172,236,175],[234,176,236,179],[228,176,230,179],[228,180,230,183],[228,184,230,187],[228,188,236,193],[231,184,233,187],[234,184,236,187],[234,180,236,183],[290,146,293,147],[290,148,293,152],[290,153,293,157],[294,136,297,140],[219,184,221,187],[318,146,323,165],[318,168,323,173],[318,174,323,179],[318,182,323,187],[318,188,323,193],[306,105,311,136],[306,141,309,145],[306,160,309,164],[306,165,309,169],[306,4,317,15],[306,16,311,21],[329,65,333,69],[329,70,333,104],[329,105,333,136],[298,184,301,188],[302,141,305,145],[302,184,305,188],[306,22,311,64],[306,65,311,69],[306,70,311,104],[306,184,309,188],[310,141,313,145],[310,146,313,147],[310,148,313,152],[310,153,313,157],[310,158,313,159],[306,146,309,147],[306,148,309,152],[306,153,309,157],[306,158,309,159],[310,177,313,181],[310,182,313,183],[302,177,305,181],[302,182,305,183],[294,160,297,164],[294,165,297,169],[294,170,297,171],[294,172,297,176],[294,177,297,181],[294,182,297,183],[381,3,383,194],[306,170,309,171],[306,172,309,176],[306,177,309,181],[306,182,309,183],[310,184,313,188],[312,16,317,21],[312,22,317,64],[312,65,317,69],[312,70,317,104],[312,105,317,136],[310,160,313,164],[310,165,313,169],[310,170,313,171],[310,172,313,176],[318,4,323,19],[318,20,323,21],[318,22,323,64],[318,65,323,69],[298,146,301,147],[298,148,301,152],[298,153,301,157],[318,70,323,104],[318,105,323,136],[298,158,301,159],[302,170,305,171],[302,172,305,176],[298,160,301,164],[298,165,301,169],[298,170,301,171],[298,172,301,176],[302,153,305,157],[302,158,305,159],[302,160,305,164],[302,165,305,169],[298,122,301,123],[298,124,301,128],[298,129,301,133],[298,134,301,135],[298,9,301,13],[298,14,301,15],[298,16,301,20],[298,21,301,25],[298,26,301,27],[298,28,301,32],[298,33,301,37],[298,38,301,39],[298,40,301,44],[298,45,301,49],[298,50,301,51],[298,52,301,56],[298,57,301,61],[298,62,301,63],[298,74,301,75],[298,76,301,80],[298,81,301,85],[294,124,297,128],[290,124,293,128],[298,105,301,109],[298,110,301,111],[298,112,301,116],[294,93,297,97],[294,98,297,99],[294,100,297,104],[294,105,297,109],[294,110,297,111],[294,112,297,116],[290,100,293,104],[290,105,293,109],[290,110,293,111],[290,112,293,116],[290,117,293,121],[294,57,297,61],[294,62,297,63],[294,64,297,68],[294,69,297,73],[294,74,297,75],[298,86,301,87],[298,88,301,92],[298,93,301,97],[298,98,301,99],[298,100,301,104],[294,81,297,85],[294,86,297,87],[294,88,297,92],[290,76,293,80],[290,81,293,85],[290,86,293,87],[290,88,293,92],[290,93,293,97],[290,98,293,99],[294,76,297,80],[294,129,297,133],[294,134,297,135],[290,9,293,13],[290,14,293,15],[290,16,293,20],[290,21,293,25],[290,26,293,27],[290,28,293,32],[290,33,293,37],[290,38,293,39],[290,40,293,44],[290,45,293,49],[290,50,293,51],[290,52,293,56],[290,57,293,61],[290,62,293,63],[290,64,293,68],[290,69,293,73],[290,74,293,75],[294,9,297,13],[294,14,297,15],[294,16,297,20],[294,21,297,25],[294,26,297,27],[294,28,297,32],[294,33,297,37],[294,38,297,39],[294,40,297,44],[294,45,297,49],[294,50,297,51],[294,52,297,56],[286,9,289,13],[286,14,289,15],[286,16,289,20],[286,21,289,25],[286,26,289,27],[286,28,289,32],[286,33,289,37],[286,38,289,39],[286,57,289,61],[286,62,289,63],[286,64,289,68],[286,69,289,73],[286,50,289,51],[286,52,289,56],[286,74,289,75],[286,76,289,80],[286,93,289,97],[286,98,289,99],[286,100,289,104],[286,105,289,109],[286,110,289,111],[286,112,289,116],[286,117,289,121],[286,122,289,123],[286,124,289,128],[286,129,289,133],[286,134,289,135],[282,122,285,123],[282,93,285,97],[282,98,285,99],[282,100,285,104],[282,105,285,109],[282,124,285,128],[282,129,285,133],[282,134,285,135],[282,136,285,140],[282,141,285,145],[282,146,285,147],[282,148,285,152],[282,153,285,157],[282,158,285,159],[282,160,285,164],[282,112,285,116],[290,122,293,123],[290,129,293,133],[290,134,293,135],[290,136,293,140],[290,141,293,145],[286,136,289,140],[286,141,289,145],[286,146,289,147],[286,148,289,152],[278,134,281,135],[278,136,281,140],[278,141,281,145],[278,146,281,147],[278,148,281,152],[278,153,281,157],[278,158,281,159],[278,160,281,164],[278,165,281,169],[278,170,281,171],[278,172,281,176],[278,177,281,181],[278,184,281,188],[282,9,285,13],[282,14,285,15],[282,16,285,20],[282,21,285,25],[282,26,285,27],[282,28,285,32],[282,33,285,37],[282,38,285,39],[282,40,285,44],[282,45,285,49],[282,50,285,51],[282,52,285,56],[282,57,285,61],[282,62,285,63],[282,64,285,68],[282,86,285,87],[282,88,285,92],[282,110,285,111],[282,117,285,121],[257,4,260,20],[265,75,268,82],[265,83,268,90],[265,91,268,98],[265,170,268,177],[265,178,268,185],[265,186,268,193],[269,4,275,98],[269,99,275,193],[278,9,281,56],[278,57,281,61],[278,62,281,63],[278,64,281,68],[278,69,281,73],[278,74,281,75],[278,76,281,80],[278,81,281,85],[278,86,281,87],[278,88,281,92],[278,93,281,97],[278,98,281,99],[278,100,281,104],[278,105,281,109],[278,110,281,111],[278,112,281,116],[278,117,281,121],[278,122,281,123],[278,124,281,128],[278,129,281,133],[278,182,281,183],[261,151,264,169],[265,99,268,115],[242,189,246,193],[249,75,252,82],[249,83,252,90],[249,91,252,98],[249,170,252,177],[249,178,252,185],[249,186,252,193],[253,75,256,82],[253,83,256,90],[253,91,256,98],[253,170,256,177],[253,178,256,185],[253,186,256,193],[242,19,246,23],[257,75,260,82],[257,83,260,90],[257,91,260,98],[257,170,260,177],[257,178,260,185],[257,186,260,193],[249,99,252,150],[249,151,252,169],[253,99,256,115],[253,116,256,150],[253,151,256,169],[257,99,260,115],[257,116,260,150],[257,151,260,169],[249,56,252,74],[249,4,252,55],[237,4,246,18],[237,19,241,23],[237,189,241,193],[242,24,246,28],[242,29,246,33],[242,34,246,38],[242,39,246,43],[242,44,246,48],[242,49,246,53],[242,54,246,58],[242,59,246,63],[242,64,246,68],[242,69,246,73],[242,74,246,78],[242,79,246,83],[242,84,246,88],[242,89,246,93],[242,94,246,98],[242,114,246,118],[242,119,246,123],[242,124,246,128],[242,134,246,138],[242,139,246,143],[242,144,246,148],[242,149,246,153],[242,154,246,158],[242,159,246,163],[242,164,246,168],[242,169,246,173],[242,174,246,178],[242,179,246,183],[242,184,246,188],[237,34,241,38],[237,39,241,43],[237,44,241,48],[237,49,241,53],[237,54,241,58],[237,59,241,63],[237,64,241,68],[237,69,241,73],[237,74,241,78],[237,79,241,83],[237,84,241,88],[237,89,241,93],[237,94,241,98],[237,99,246,113],[237,114,241,118],[237,119,241,123],[237,124,241,128],[228,99,236,108],[228,109,236,140],[237,129,241,133],[242,129,246,133],[237,134,241,138],[237,139,241,143],[237,144,241,148],[237,149,241,153],[237,154,241,158],[237,159,241,163],[237,164,241,168],[237,169,241,173],[228,150,230,155],[228,156,236,159],[231,150,233,155],[234,150,236,155],[228,89,230,92],[228,93,236,98],[228,168,230,171],[228,172,230,175],[237,174,241,178],[234,55,236,60],[234,73,236,76],[234,77,236,80],[234,81,236,84],[231,65,233,68],[231,69,233,72],[231,73,233,76],[231,77,233,80],[231,81,233,84],[228,141,236,145],[228,146,236,149],[231,164,233,167],[231,168,233,171],[231,172,233,175],[231,176,233,179],[231,180,233,183],[234,65,236,68],[234,69,236,72],[228,160,230,163],[228,164,230,167],[222,150,224,155],[222,160,224,163],[222,164,224,167],[222,168,224,171],[222,69,224,72],[222,73,224,76],[222,77,224,80],[222,81,224,84],[222,55,224,60],[222,65,224,68],[219,77,221,80],[219,81,221,84],[219,85,221,88],[222,85,224,88],[219,73,221,76],[222,176,224,179],[222,180,224,183],[228,4,236,13],[228,14,236,45],[228,46,236,50],[228,51,236,54],[228,55,230,60],[228,61,236,64],[231,55,233,60],[231,85,233,88],[231,89,233,92],[234,85,236,88],[234,89,236,92],[228,65,230,68],[228,69,230,72],[228,73,230,76],[228,77,230,80],[228,81,230,84],[228,85,230,88],[213,176,215,179],[213,180,215,183],[213,184,215,187],[216,55,218,60],[216,65,218,68],[216,69,218,72],[216,73,218,76],[216,77,218,80],[216,168,218,171],[216,176,218,179],[210,146,218,149],[210,150,212,155],[210,184,212,187],[210,176,212,179],[219,4,227,13],[219,14,227,45],[219,46,227,50],[219,51,227,54],[219,55,221,60],[219,61,227,64],[219,65,221,68],[219,69,221,72],[219,89,221,92],[219,93,227,98],[219,99,227,108],[219,109,227,140],[222,89,224,92],[225,89,227,92],[219,160,221,163],[219,164,221,167],[219,168,221,171],[210,4,218,13],[210,14,218,45],[210,46,218,50],[210,51,218,54],[210,55,212,60],[210,61,218,64],[210,65,212,68],[210,69,212,72],[210,73,212,76],[210,77,212,80],[210,81,212,84],[210,85,212,88],[210,89,212,92],[210,93,218,98],[210,99,218,108],[210,109,218,140],[210,141,218,145],[216,81,218,84],[216,85,218,88],[216,89,218,92],[213,81,215,84],[213,85,215,88],[213,89,215,92],[207,55,209,60],[201,77,203,80],[198,160,200,163],[198,164,200,167],[198,168,200,171],[198,172,200,175],[198,176,200,179],[198,180,200,183],[198,184,200,187],[201,4,209,13],[201,14,209,45],[201,46,209,50],[201,51,209,54],[201,55,203,60],[201,61,209,64],[201,65,203,68],[201,69,203,72],[201,73,203,76],[201,89,203,92],[201,93,209,98],[201,99,209,108],[201,109,209,140],[201,141,209,145],[201,146,209,149],[207,89,209,92],[201,150,203,155],[204,73,206,76],[204,77,206,80],[204,81,206,84],[204,85,206,88],[204,89,206,92],[204,150,206,155],[192,150,194,155],[195,150,197,155],[198,150,200,155],[192,156,200,159],[192,160,194,163],[192,164,194,167],[192,168,194,171],[192,172,194,175],[192,176,194,179],[195,160,197,163],[195,164,197,167],[195,168,197,171],[195,172,197,175],[207,65,209,68],[207,69,209,72],[207,73,209,76],[207,77,209,80],[207,81,209,84],[207,85,209,88],[207,150,209,155],[207,160,209,163],[207,164,209,167],[207,168,209,171],[207,172,209,175],[207,176,209,179],[201,156,209,159],[201,160,203,163],[201,164,203,167],[201,168,203,171],[201,172,203,175],[204,160,206,163],[204,164,206,167],[192,81,194,84],[192,85,194,88],[192,93,200,98],[192,99,200,108],[192,109,200,140],[192,141,200,145],[192,146,200,149],[198,85,200,88],[198,89,200,92],[192,4,200,13],[192,14,200,45],[192,46,200,50],[192,51,200,54],[192,55,194,60],[192,61,200,64],[192,65,194,68],[192,69,194,72],[192,89,194,92],[183,4,191,13],[183,14,191,45],[183,46,191,50],[183,51,191,54],[183,55,185,60],[183,61,191,64],[189,77,191,80],[189,81,191,84],[189,85,191,88],[183,109,191,140],[192,184,194,187],[192,188,200,193],[195,55,197,60],[195,65,197,68],[195,69,197,72],[195,73,197,76],[195,77,197,80],[195,81,197,84],[195,85,197,88],[195,89,197,92],[195,176,197,179],[195,180,197,183],[195,184,197,187],[198,55,200,60],[198,65,200,68],[198,69,200,72],[198,73,200,76],[198,77,200,80],[198,81,200,84],[192,73,194,76],[192,77,194,80],[183,81,185,84],[183,85,185,88],[183,89,185,92],[183,93,191,98],[189,65,191,68],[189,69,191,72],[189,73,191,76],[183,65,185,68],[183,69,185,72],[183,73,185,76],[183,77,185,80],[186,55,188,60],[174,156,182,159],[180,150,182,155],[174,160,176,163],[189,89,191,92],[177,65,179,68],[177,69,179,72],[177,73,179,76],[177,77,179,80],[177,81,179,84],[177,85,179,88],[186,65,188,68],[186,69,188,72],[186,73,188,76],[186,77,188,80],[186,81,188,84],[186,85,188,88],[183,99,191,108],[186,89,188,92],[177,150,179,155],[177,160,179,163],[177,164,179,167],[177,168,179,171],[177,172,179,175],[177,176,179,179],[177,180,179,183],[180,160,182,163],[180,164,182,167],[177,89,179,92],[186,164,188,167],[186,168,188,171],[186,172,188,175],[186,176,188,179],[186,180,188,183],[183,141,191,145],[183,146,191,149],[183,150,185,155],[183,156,191,159],[183,160,185,163],[186,150,188,155],[186,160,188,163],[189,150,191,155],[189,160,191,163],[189,164,191,167],[189,168,191,171],[174,14,182,45],[174,46,182,50],[174,51,182,54],[174,55,176,60],[174,61,182,64],[180,55,182,60],[174,73,176,76],[174,77,176,80],[174,81,176,84],[174,85,176,88],[174,89,176,92],[174,93,182,98],[180,73,182,76],[180,77,182,80],[180,81,182,84],[180,85,182,88],[180,65,182,68],[180,69,182,72],[174,65,176,68],[174,69,176,72],[180,89,182,92],[177,55,179,60],[171,77,173,80],[171,81,173,84],[165,69,167,72],[165,73,167,76],[168,55,170,60],[168,65,170,68],[168,69,170,72],[168,150,170,155],[174,4,182,13],[171,55,173,60],[171,65,173,68],[171,69,173,72],[171,184,173,187],[165,146,173,149],[165,150,167,155],[165,156,173,159],[165,160,167,163],[168,160,170,163],[171,150,173,155],[171,160,173,163],[165,164,167,167],[165,168,167,171],[165,172,167,175],[165,176,167,179],[168,73,170,76],[168,77,170,80],[168,81,170,84],[168,85,170,88],[168,89,170,92],[165,184,167,187],[168,164,170,167],[168,168,170,171],[156,46,164,50],[156,51,164,54],[156,55,158,60],[156,65,158,68],[156,69,158,72],[162,65,164,68],[156,73,158,76],[156,77,158,80],[156,81,158,84],[174,99,182,108],[174,109,182,140],[174,141,182,145],[174,146,182,149],[174,150,176,155],[165,4,173,13],[165,14,173,45],[165,46,173,50],[165,51,173,54],[165,55,167,60],[165,61,173,64],[165,65,167,68],[165,77,167,80],[165,81,167,84],[165,85,167,88],[165,89,167,92],[165,93,173,98],[165,99,173,108],[171,85,173,88],[171,89,173,92],[165,109,173,140],[165,141,173,145],[171,73,173,76],[153,73,155,76],[153,77,155,80],[153,81,155,84],[153,85,155,88],[153,89,155,92],[153,150,155,155],[153,180,155,183],[153,184,155,187],[153,164,155,167],[147,4,155,13],[162,77,164,80],[162,81,164,84],[162,85,164,88],[162,89,164,92],[162,160,164,163],[162,164,164,167],[162,168,164,171],[162,172,164,175],[156,156,164,159],[156,160,158,163],[156,164,158,167],[156,168,158,171],[156,172,158,175],[162,176,164,179],[162,180,164,183],[162,184,164,187],[156,89,158,92],[159,89,161,92],[162,69,164,72],[162,73,164,76],[156,4,164,13],[156,14,164,45],[147,164,149,167],[147,168,149,171],[147,172,149,175],[159,160,161,163],[159,85,161,88],[147,14,155,45],[147,46,155,50],[147,51,155,54],[147,55,149,60],[147,61,155,64],[147,65,149,68],[147,69,149,72],[147,73,149,76],[147,77,149,80],[147,81,149,84],[147,85,149,88],[147,89,149,92],[147,99,155,108],[147,109,155,140],[147,141,155,145],[147,146,155,149],[150,89,152,92],[150,55,152,60],[150,65,152,68],[150,69,152,72],[150,73,152,76],[150,77,152,80],[150,81,152,84],[150,85,152,88],[153,55,155,60],[153,65,155,68],[153,69,155,72],[141,65,143,68],[141,69,143,72]],"merged_total":1566,"flags":["merged_cut"]}
[]
[]
[null,null,null,null,null,null,null,null,null,null,null,null,null,null,null,null,null,null,null,null,null,null,null,null,null,null,null,null,null,null,null,null,null,null,null,null,null,null,null,null,{"$f":"MAX(IR:IR)","v":0},null,null,null,null,null,null,null,null,null,null,null,null,null,null,null,null,null,null,null,null,null,null,null,null,null,null,null,null,null,null,null,null,null,null,null,null,null,null,null,null,null,null,null,null,null,null,null,null,null,null,null,null,null,null,null,null,null,null,null,null,null,null,null,null,null,null,null,null,null,null,null,null,null,null,null,null,null,null,null,null,null,null,null,null,null,null,null,null,null,null,null,null,null,null,null,null,null,null,null,null,null,null,null,null,null,null,null,null,null,null,{"$f":"MAX(IS:IS)","v":0}]
[]
[]
[]
[]
[]
[]
[]
[]
[]
[]
[null,null,null,null,null,null,null,null,null,null,null,null,null,null,null,null,null,null,null,null,null,"H R V A T S K I   R U K O M E T N I   S A V E Z",null,null,null,null,null,null,null,null,null,null,null,null,null,null,null,null,null,null,null,null,null,null,null,null,null,null,null,null,null,null,null,null,null,null,null,null,null,null,null,null,null,null,null,null,null,null,null,null,null,null,null,null,null,null,null,null,null,null,null,null,null,null,null,null,null,null,null,null,null,null,null,null,null,null,null,null,null,null,null,null,null,null,null,null,null,null,null,null,null,null,null,null,null,null,null,null,null,null,null,null,null,null,null,null,null,null,null,null,null,null,null,null,null,null,null,null,{"$f":"IF(PODACI!N5=EM14,\"×\",\"\")","v":""},null,null,null,"Muški",null,null,null,null,null,null,null,null,null,null,null,null,null,null,null,null,null,null,null,null,null,null,null,{"$f":"IF(PODACI!N5=FO14,\"×\",\"\")","v":""},null,null,null,"Žene"]
[]
[]
[]
[null,null,null,null,null,null,null,null,null,null,null,null,null,null,null,null,null,null,null,null,null,null,null,null,null,null,null,null,null,null,null,null,null,null,null,null,null,null,null,null,null,null,null,null,null,null,null,null,null,null,null,null,null,null,null,null,null,null,null,null,null,null,null,null,null,null,null,null,null,null,null,null,null,null,null,null,null,null,null,null,null,null,null,null,null,null,null,null,null,null,null,null,null,null,null,null,null,null,null,null,null,null,null,null,null,null,null,null,null,null,null,null,null,null,null,null,null,null,null,null,null,null,null,null,null,null,null,null,null,null,null,null,null,null,null,null,null,null,{"$f":"IF(PODACI!N6=EM18,\"×\",\"\")","v":""},null,null,null,"Seniori",null,null,null,null,null,null,null,null,null,null,null,null,null,null,null,null,null,null,null,null,null,null,null,{"$f":"IF(PODACI!N7=FO18,\"×\",\"\")","v":""},null,null,null,"Prvenstvo"]
[null,null,null,null,null,null,null,null,null,null,null,null,null,null,null,null,null,null,null,null,null,"Zagreb, Metalčeva 5",null,null,null,null,null,null,null,null,null,null,null,null,null,null,null,null,null,null,null,null,null,null,null,null,null,null,null,null,null,null,null,null,null,null,null,null,null,null,null,null,null,null,null,null,null,null,null,null,null,null,{"$f":"IF(PODACI!P5=\"\",\"\",PODACI!P5)","v":"e-mail: b.filipovic@hrs.hr"}]
[]
[]
[null,null,null,null,null,null,null,null,null,null,null,null,null,null,null,null,null,null,null,null,null,null,null,null,null,null,null,null,null,null,null,null,null,null,null,null,null,null,null,null,null,null,null,null,null,null,null,null,null,null,null,null,null,null,null,null,null,null,null,null,null,null,null,null,null,null,null,null,null,null,null,null,null,null,null,null,null,null,null,null,null,null,null,null,null,null,null,null,null,null,null,null,null,null,null,null,null,null,null,null,null,null,null,null,null,null,null,null,null,null,null,null,null,null,null,null,null,null,null,null,null,null,null,null,null,null,null,null,null,null,null,null,null,null,null,null,null,null,{"$f":"IF(PODACI!N6=EM22,\"×\",\"\")","v":""},null,null,null,"Juniori",null,null,null,null,null,null,null,null,null,null,null,null,null,null,null,null,null,null,null,null,null,null,null,{"$f":"IF(PODACI!N7=FO22,\"×\",\"\")","v":""},null,null,null,"Kup"]
[]
[]
[]
[null,null,null,null,null,null,null,null,null,null,null,null,null,null,null,null,null,null,null,null,null,null,null,null,null,null,null,null,null,null,null,null,null,null,null,null,null,null,null,null,null,null,null,null,null,null,null,null,null,null,null,null,null,null,null,null,null,null,null,null,null,null,null,null,null,null,null,null,null,null,null,null,null,null,null,null,null,null,null,null,null,null,null,null,null,null,null,null,null,null,null,null,null,null,null,null,null,null,null,null,null,null,null,null,null,null,null,null,null,null,null,null,null,null,null,null,null,null,null,null,null,null,null,null,null,null,null,null,null,null,null,null,null,null,null,null,null,null,{"$f":"IF(PODACI!N6=EM26,\"×\",\"\")","v":""},null,null,null,"Kadeti",null,null,null,null,null,null,null,null,null,null,null,null,null,null,null,null,null,null,null,null,null,null,null,{"$f":"IF(PODACI!N7=FO26,\"×\",\"\")","v":""},null,null,null,"Turnir"]
[]
[null,null,null,null,null,null,null,null,null,null,null,null,null,null,null,null,null,null,null,null,null,null,null,null,"Glavni dežurni:",null,null,null,null,null,null,null,null,null,null,null,null,null,null,null,null,null,null,null,null,{"$f":"IF(PODACI!N21=\"\",\"\",UPPER(PODACI!N21))","v":""},null,null,null,null,null,null,null,null,null,null,null,null,null,null,null,null,null,null,null,null,null,null,null,null,null,null,null,null,null,null,null,null,null,null,null,null,null,null,{"$f":"IF(PODACI!P21=\"\",\"\",PODACI!P21)","v":""}]
[]
[null,null,null,null,null,null,null,null,null,null,null,null,null,null,null,null,null,null,null,null,null,null,null,null,null,null,null,null,null,null,null,null,null,null,null,null,null,null,null,null,null,null,null,null,null,null,null,null,null,null,null,null,null,null,null,null,null,null,null,null,null,null,null,null,null,null,null,null,null,null,null,null,null,null,null,null,null,null,null,null,null,null,null,null,null,null,null,null,null,null,null,null,null,null,null,null,null,null,null,null,null,null,null,null,null,null,null,null,null,null,null,null,null,null,null,null,null,null,null,null,null,null,null,null,null,null,null,null,null,null,null,null,null,null,null,null,null,null,{"$f":"IF(PODACI!N6=EM30,\"×\",\"\")","v":""},null,null,null,"Mlađi kadeti",null,null,null,null,null,null,null,null,null,null,null,null,null,null,null,null,null,null,null,null,null,null,null,{"$f":"IF(PODACI!N7=FO30,\"×\",\"\")","v":""},null,null,null,"Trening"]
[]
[null,null,null,null,null,null,null,null,null,null,null,null,null,null,null,null,null,null,null,null,null,null,null,null,"Liječnik:",null,null,null,null,null,null,null,null,null,null,null,null,null,null,null,null,null,null,null,null,{"$f":"IF(PODACI!N22=\"\",\"\",UPPER(PODACI!N22))","v":""},null,null,null,null,null,null,null,null,null,null,null,null,null,null,null,null,null,null,null,null,null,null,null,null,null,null,null,null,null,null,null,null,null,null,null,null,null,null,{"$f":"IF(PODACI!P22=\"\",\"\",PODACI!P22)","v":""}]
[]
[null,null,null,null,null,null,null,null,null,null,null,null,null,null,null,null,null,null,null,null,null,null,null,null,null,null,null,null,null,null,null,null,null,null,null,null,null,null,null,null,null,null,null,null,null,null,null,null,null,null,null,null,null,null,null,null,null,null,null,null,null,null,null,null,null,null,null,null,null,null,null,null,null,null,null,null,null,null,null,null,null,null,null,null,null,null,null,null,null,null,null,null,null,null,null,null,null,null,null,null,null,null,null,null,null,null,null,null,null,null,null,null,null,null,null,null,null,null,null,null,null,null,null,null,null,null,null,null,null,null,null,null,null,null,null,null,null,null,{"$f":"IF((COUNTIF(PODACI!S3:S7,PODACI!N6)=0),\"×\",\"\")","v":""},null,null,null,{"$f":"IF((COUNTIF(PODACI!S3:S7,PODACI!N6)=0),PODACI!N6,\"Ml. dobne skupine\")","v":"Ml. dobne skupine"}]
[]
[]
[]
[]
[null,null,null,null,null,null,null,null,null,null,"ZAPISNIK RUKOMETNE UTAKMICE",null,null,null,null,null,null,null,null,null,null,null,null,null,null,null,null,null,null,null,null,null,null,null,null,null,null,null,null,null,null,null,null,null,null,null,null,null,null,null,null,null,null,null,null,null,null,null,null,null,null,null,null,null,null,null,null,null,null,null,null,null,null,null,null,null,null,null,null,null,null,null,null,null,null,null,null,null,null,null,null,null,null,null,null,null,null,null,null,null,null,null,null,null,{"$f":"IF(PODACI!P11=\"\",\"\",PODACI!P11)","v":" "}]
[]
[]
[]
[]
[]
[]
[]
[null,null,null,null,null,null,"Domaćin",null,null,null,null,null,null,null,null,null,null,null,null,null,null,null,null,null,null,null,null,null,null,null,null,null,null,null,null,null,null,null,null,null,null,null,null,null,null,null,null,null,null,null,null,null,null,null,null,null,null,null,null,null,null,null,null,null,null,null,null,null,null,null,null,null,null,null,null,null,null,null,null,null,null,null,null,"Gost",null,null,null,null,null,null,null,null,null,null,null,null,null,null,null,null,null,null,null,null,null,null,null,null,null,null,null,null,null,null,null,null,null,null,null,null,null,null,null,null,null,null,null,null,null,null,null,null,null,null,null,null,null,null,null,null,null,null,null,null,null,null,null,null,null,null,null,null,null,null,null,null,null,null,"Krajnji ishod",null,null,null,null,null,null,null,null,null,null,null,"A",null,null,null,null,null,null,null,null,null,null,null,"B"]
[]
[]
[]
[null,null,null,null,"A",null,null,null,null,null,null,null,{"$f":"UPPER(PODACI!N13)","v":""},null,null,null,null,null,null,null,null,null,null,null,null,null,null,null,null,null,null,null,null,null,null,null,null,null,null,null,null,null,null,null,null,null,null,null,null,null,null,null,null,null,null,null,null,null,null,null,null,null,null,null,null,null,null,null,null,null,null,null,null,null,null,null,null,null,null,null,null,"B",null,null,null,null,null,null,null,{"$f":"UPPER(PODACI!N14)","v":""},null,null,null,null,null,null,null,null,null,null,null,null,null,null,null,null,null,null,null,null,null,null,null,null,null,null,null,null,null,null,null,null,null,null,null,null,null,null,null,null,null,null,null,null,null,null,null,null,null,null,null,null,null,null,null,null,null,null,null,null,null,null,null,null,null,null,null,null,null,null,null,null,null,null,null,null,null,null,null,null,{"$f":"SUM(CP94:CU237)","v":0},null,null,null,null,null,null,null,null,null,null,null,{"$f":"SUM(GG94:GL237)","v":0}]
[]
[]
[]
[]
[]
[]
[]
[null,null,null,null,"Ishod I.\npoluvremena",null,null,null,null,null,null,null,null,null,null,null,null,null,null,null,null,null,null,"A",null,null,null,null,null,null,null,null,null,"B",null,null,null,null,null,null,null,null,null,"Ishod poslije produžetaka",null,null,null,null,null,null,null,null,null,null,null,null,null,null,null,null,null,"A",null,null,null,null,null,null,null,null,null,"B",null,null,null,null,null,null,null,null,null,"Ishod nakon\nsedmeraca",null,null,null,null,null,null,null,null,null,null,null,null,null,null,null,null,null,"A",null,null,null,null,null,null,null,null,null,"B",null,null,null,null,null,null,null,null,null,null,null,null,"TO - A",null,null,null,null,null,null,null,null,null,null,null,"TO - A",null,null,null,null,null,null,null,null,null,null,null,"TO - A",null,null,null,null,null,null,null,null,null,null,null,"TO - B",null,null,null,null,null,null,null,null,null,null,null,"TO - B",null,null,null,null,null,null,null,null,null,null,null,"TO - B"]
[]
[]
[null,null,null,null,null,null,null,null,null,null,null,null,null,null,null,null,null,null,null,null,null,null,null,null,null,null,{"$f":"COUNTIFS(BN94:CO237,\"<=\"&PODACI!N3)","v":0},null,null,null,null,null,null,null,null,null,{"$f":"COUNTIFS(FE94:GF237,\"<=\"&PODACI!N3)","v":0},null,null,null,null,null,null,null,null,null,null,null,null,null,null,null,null,null,null,null,null,null,null,null,null,null,null,null,"/",null,null,null,null,null,null,null,null,null,"/",null,null,null,null,null,null,null,null,null,null,null,null,null,null,null,null,null,null,null,null,null,null,null,null,null,null,null,"/",null,null,null,null,null,null,null,null,null,"/"]
[]
[]
[]
[]
[]
[]
[null,null,null,null,"Mjesto igranja",null,null,null,null,null,null,null,null,null,null,null,null,null,null,null,null,null,null,null,null,null,null,null,null,null,null,null,null,null,null,null,null,null,null,null,null,null,null,null,null,null,null,null,null,null,null,null,"Naziv objekta",null,null,null,null,null,null,null,null,null,null,null,null,null,null,null,null,null,null,null,null,null,null,null,null,null,null,null,null,null,null,null,null,null,null,null,null,null,null,null,null,null,null,null,null,null,null,null,null,null,null,null,null,null,null,null,null,null,null,null,null,null,null,null,null,null,null,null,null,null,null,null,"Nadnevak",null,null,null,null,null,null,null,null,null,null,null,null,null,null,null,null,null,null,null,null,null,null,"Vrijeme početka",null,null,null,null,null,null,null,null,null,null,null,null,null,null,null,null,null,null,null,null,null,null,null,null,"Broj gledatelja"]
[]
[]
[null,null,null,null,null,null,null,null,null,null,null,null,null,null,{"$f":"IF(PODACI!N16=\"\",\"\",PODACI!N16)","v":""},null,null,null,null,null,null,null,null,null,null,null,null,null,null,null,null,null,null,null,null,null,null,null,null,null,null,null,null,null,null,null,null,null,null,null,null,null,{"$f":"IF(PODACI!N17=\"\",\"\",PODACI!N17)","v":""},null,null,null,null,null,null,null,null,null,null,null,null,null,null,null,null,null,null,null,null,null,null,null,null,null,null,null,null,null,null,null,null,null,null,null,null,null,null,null,null,null,null,null,null,null,null,null,null,null,null,null,null,null,null,null,null,null,null,null,null,null,null,null,null,null,null,null,null,null,null,null,{"$f":"IF(PODACI!N18=\"\",\"\",PODACI!N18)","v":""},null,null,null,null,null,null,null,null,null,null,null,null,null,null,null,null,null,null,null,null,null,null,{"$f":"IF(PODACI!N19=\"\",\"\",PODACI!N19)","v":""}]
[]
[]
[]
[]
[]
[]
[]
[null,null,null,null,"A",null,null,null,null,null,null,null,null,null,{"$f":"IF(PODACI!D26=\"\",\"\",UPPER(PODACI!D26))","v":""},null,null,null,null,null,null,null,null,null,null,null,null,null,null,null,null,null,null,null,null,null,null,null,null,null,null,null,null,null,null,null,null,null,null,null,null,null,null,null,null,null,null,null,null,null,null,null,null,null,null,null,null,null,null,null,null,null,null,null,null,null,null,null,null,null,null,null,null,null,null,null,null,null,null,null,null,null,null,null,null,null,null,null,null,"B",null,null,null,null,null,null,null,null,null,{"$f":"IF(PODACI!I26=\"\",\"\",UPPER(PODACI!I26))","v":""}]
[]
[]
[]
[]
[]
[]
[]
[null,null,null,null,"Matični\nbroj",null,null,null,null,null,null,null,null,null,"IME I PREZIME",null,null,null,null,null,null,null,null,null,null,null,null,null,null,null,null,null,null,null,null,null,null,null,null,null,null,null,null,null,null,null,"dres\nbroj",null,null,null,null,"O",null,null,null,"2'",null,null,null,null,null,"D",null,null,null,"POGOCI",null,null,null,null,null,null,null,null,null,null,null,null,null,null,null,null,null,null,null,null,null,null,null,null,null,null,null,null,null,null,null,null,null,"Matični\nbroj",null,null,null,null,null,null,null,null,null,"IME I PREZIME",null,null,null,null,null,null,null,null,null,null,null,null,null,null,null,null,null,null,null,null,null,null,null,null,null,null,null,null,null,null,null,"dres\nbroj",null,null,null,null,"O",null,null,null,"2'",null,null,null,null,null,"D",null,null,null,"POGOCI"]
[]
[]
[]
[]
[]
[null,null,null,null,{"$f":"PODACI!C3","v":0},null,null,null,null,null,null,null,null,null,{"$f":"PROPER(PODACI!D3)","v":""},null,null,null,null,null,null,null,null,null,null,null,null,null,null,null,null,null,null,null,null,null,null,null,null,null,null,null,null,null,null,null,{"$f":"PODACI!E3","v":""},null,null,null,null,null,null,null,null,null,null,null,null,null,null,null,null,null,null,null,null,null,null,null,null,null,null,null,null,null,null,null,null,null,null,null,null,null,null,null,null,null,null,null,null,null,null,{"$f":"COUNTA(BN94:CO102)","v":0},null,null,null,null,null,{"$f":"PODACI!H3","v":0},null,null,null,null,null,null,null,null,null,{"$f":"PROPER(PODACI!I3)","v":""},null,null,null,null,null,null,null,null,null,null,null,null,null,null,null,null,null,null,null,null,null,null,null,null,null,null,null,null,null,null,null,{"$f":"PODACI!J3","v":""},null,null,null,null,null,null,null,null,null,null,null,null,null,null,null,null,null,null,null,null,null,null,null,null,null,null,null,null,null,null,null,null,null,null,null,null,null,null,null,null,null,null,null,null,null,null,{"$f":"COUNTA(FE94:GF102)","v":0},null,null,null,null,null,null,null,null,null,null,null,null,null,null,null,null,null,null,null,null,null,null,null,null,null,null,null,null,null,null,null,null,null,null,null,null,null,null,null,null,null,null,null,null,null,null,null,null,null,null,null,null,null,null,null,null,null,null,null,null,null,null,null,null,null,{"$f":"IF(PODACI!B3=\"Golman\",\"G\",\"I\")","v":"I"},{"$f":"IF(PODACI!G3=\"Golman\",\"G\",\"I\")","v":"I"}]
[]
[]
[]
[]
[]
[]
[]
[]
[null,null,null,null,{"$f":"PODACI!C4","v":0},null,null,null,null,null,null,null,null,null,{"$f":"PROPER(PODACI!D4)","v":""},null,null,null,null,null,null,null,null,null,null,null,null,null,null,null,null,null,null,null,null,null,null,null,null,null,null,null,null,null,null,null,{"$f":"PODACI!E4","v":""},null,null,null,null,null,null,null,null,null,null,null,null,null,null,null,null,null,null,null,null,null,null,null,null,null,null,null,null,null,null,null,null,null,null,null,null,null,null,null,null,null,null,null,null,null,null,{"$f":"COUNTA(BN103:CO111)","v":0},null,null,null,null,null,{"$f":"PODACI!H4","v":0},null,null,null,null,null,null,null,null,null,{"$f":"PROPER(PODACI!I4)","v":""},null,null,null,null,null,null,null,null,null,null,null,null,null,null,null,null,null,null,null,null,null,null,null,null,null,null,null,null,null,null,null,{"$f":"PODACI!J4","v":""},null,null,null,null,null,null,null,null,null,null,null,null,null,null,null,null,null,null,null,null,null,null,null,null,null,null,null,null,null,null,null,null,null,null,null,null,null,null,null,null,null,null,null,null,null,null,{"$f":"COUNTA(FE103:GF111)","v":0},null,null,null,null,null,null,null,null,null,null,null,null,null,null,null,null,null,null,null,null,null,null,null,null,null,null,null,null,null,null,null,null,null,null,null,null,null,null,null,null,null,null,null,null,null,null,null,null,null,null,null,null,null,null,null,null,null,null,null,null,null,null,null,null,null,{"$f":"IF(PODACI!B4=\"Golman\",\"G\",\"I\")","v":"I"},{"$f":"IF(PODACI!G4=\"Golman\",\"G\",\"I\")","v":"I"}]
[]
[]
[]
[]
[]
[]
[]
[]
[null,null,null,null,{"$f":"PODACI!C5","v":0},null,null,null,null,null,null,null,null,null,{"$f":"PROPER(PODACI!D5)","v":""},null,null,null,null,null,null,null,null,null,null,null,null,null,null,null,null,null,null,null,null,null,null,null,null,null,null,null,null,null,null,null,{"$f":"PODACI!E5","v":""},null,null,null,null,null,null,null,null,null,null,null,null,null,null,null,null,null,null,null,null,null,null,null,null,null,null,null,null,null,null,null,null,null,null,null,null,null,null,null,null,null,null,null,null,null,null,{"$f":"COUNTA(BN112:CO120)","v":0},null,null,null,null,null,{"$f":"PODACI!H5","v":0},null,null,null,null,null,null,null,null,null,{"$f":"PROPER(PODACI!I5)","v":""},null,null,null,null,null,null,null,null,null,null,null,null,null,null,null,null,null,null,null,null,null,null,null,null,null,null,null,null,null,null,null,{"$f":"PODACI!J5","v":""},null,null,null,null,null,null,null,null,null,null,null,null,null,null,null,null,null,null,null,null,null,null,null,null,null,null,null,null,null,null,null,null,null,null,null,null,null,null,null,null,null,null,null,null,null,null,{"$f":"COUNTA(FE112:GF120)","v":0},null,null,null,null,null,null,null,null,null,null,null,null,null,null,null,null,null,null,null,null,null,null,null,null,null,null,null,null,null,null,null,null,null,null,null,null,null,null,null,null,null,null,null,null,null,null,null,null,null,null,null,null,null,null,null,null,null,null,null,null,null,null,null,null,null,{"$f":"IF(PODACI!B5=\"Golman\",\"G\",\"I\")","v":"I"},{"$f":"IF(PODACI!G5=\"Golman\",\"G\",\"I\")","v":"I"}]
[]
[]
[]
[]
[]
[]
[]
[]
[null,null,null,null,{"$f":"PODACI!C6","v":0},null,null,null,null,null,null,null,null,null,{"$f":"PROPER(PODACI!D6)","v":""},null,null,null,null,null,null,null,null,null,null,null,null,null,null,null,null,null,null,null,null,null,null,null,null,null,null,null,null,null,null,null,{"$f":"PODACI!E6","v":""},null,null,null,null,null,null,null,null,null,null,null,null,null,null,null,null,null,null,null,null,null,null,null,null,null,null,null,null,null,null,null,null,null,null,null,null,null,null,null,null,null,null,null,null,null,null,{"$f":"COUNTA(BN121:CO129)","v":0},null,null,null,null,null,{"$f":"PODACI!H6","v":0},null,null,null,null,null,null,null,null,null,{"$f":"PROPER(PODACI!I6)","v":""},null,null,null,null,null,null,null,null,null,null,null,null,null,null,null,null,null,null,null,null,null,null,null,null,null,null,null,null,null,null,null,{"$f":"PODACI!J6","v":""},null,null,null,null,null,null,null,null,null,null,null,null,null,null,null,null,null,null,null,null,null,null,null,null,null,null,null,null,null,null,null,null,null,null,null,null,null,null,null,null,null,null,null,null,null,null,{"$f":"COUNTA(FE121:GF129)","v":0},null,null,null,null,null,null,null,null,null,null,null,null,null,null,null,null,null,null,null,null,null,null,null,null,null,null,null,null,null,null,null,null,null,null,null,null,null,null,null,null,null,null,null,null,null,null,null,null,null,null,null,null,null,null,null,null,null,null,null,null,null,null,null,null,null,{"$f":"IF(PODACI!B6=\"Golman\",\"G\",\"I\")","v":"I"},{"$f":"IF(PODACI!G6=\"Golman\",\"G\",\"I\")","v":"I"}]
[]
[]
[]
[]
[]
[]
[]
[]
[null,null,null,null,{"$f":"PODACI!C7","v":0},null,null,null,null,null,null,null,null,null,{"$f":"PROPER(PODACI!D7)","v":""},null,null,null,null,null,null,null,null,null,null,null,null,null,null,null,null,null,null,null,null,null,null,null,null,null,null,null,null,null,null,null,{"$f":"PODACI!E7","v":""},null,null,null,null,null,null,null,null,null,null,null,null,null,null,null,null,null,null,null,null,null,null,null,null,null,null,null,null,null,null,null,null,null,null,null,null,null,null,null,null,null,null,null,null,null,null,{"$f":"COUNTA(BN130:CO138)","v":0},null,null,null,null,null,{"$f":"PODACI!H7","v":0},null,null,null,null,null,null,null,null,null,{"$f":"PROPER(PODACI!I7)","v":""},null,null,null,null,null,null,null,null,null,null,null,null,null,null,null,null,null,null,null,null,null,null,null,null,null,null,null,null,null,null,null,{"$f":"PODACI!J7","v":""},null,null,null,null,null,null,null,null,null,null,null,null,null,null,null,null,null,null,null,null,null,null,null,null,null,null,null,null,null,null,null,null,null,null,null,null,null,null,null,null,null,null,null,null,null,null,{"$f":"COUNTA(FE130:GF138)","v":0},null,null,null,null,null,null,null,null,null,null,null,null,null,null,null,null,null,null,null,null,null,null,null,null,null,null,null,null,null,null,null,null,null,null,null,null,null,null,null,null,null,null,null,null,null,null,null,null,null,null,null,null,null,null,null,null,null,null,null,null,null,null,null,null,null,{"$f":"IF(PODACI!B7=\"Golman\",\"G\",\"I\")","v":"I"},{"$f":"IF(PODACI!G7=\"Golman\",\"G\",\"I\")","v":"I"}]
[]
[]
[]
[]
[]
[]
[]
[]
[null,null,null,null,{"$f":"PODACI!C8","v":0},null,null,null,null,null,null,null,null,null,{"$f":"PROPER(PODACI!D8)","v":""},null,null,null,null,null,null,null,null,null,null,null,null,null,null,null,null,null,null,null,null,null,null,null,null,null,null,null,null,null,null,null,{"$f":"PODACI!E8","v":""},null,null,null,null,null,null,null,null,null,null,null,null,null,null,null,null,null,null,null,null,null,null,null,null,null,null,null,null,null,null,null,null,null,null,null,null,null,null,null,null,null,null,null,null,null,null,{"$f":"COUNTA(BN139:CO147)","v":0},null,null,null,null,null,{"$f":"PODACI!H8","v":0},null,null,null,null,null,null,null,null,null,{"$f":"PROPER(PODACI!I8)","v":""},null,null,null,null,null,null,null,null,null,null,null,null,null,null,null,null,null,null,null,null,null,null,null,null,null,null,null,null,null,null,null,{"$f":"PODACI!J8","v":""},null,null,null,null,null,null,null,null,null,null,null,null,null,null,null,null,null,null,null,null,null,null,null,null,null,null,null,null,null,null,null,null,null,null,null,null,null,null,null,null,null,null,null,null,null,null,{"$f":"COUNTA(FE139:GF147)","v":0},null,null,null,null,null,null,null,null,null,null,null,null,"PROVJERA\nREZULTATA",null,null,null,null,null,null,null,null,null,null,null,null,null,null,null,null,null,null,null,null,null,null,null,null,null,null,null,null,null,null,null,null,null,null,null,null,null,null,null,null,null,null,null,null,null,null,null,null,null,null,null,null,{"$f":"IF(PODACI!B8=\"Golman\",\"G\",\"I\")","v":"I"},{"$f":"IF(PODACI!G8=\"Golman\",\"G\",\"I\")","v":"I"}]
[]
[]
[]
[]
[]
[]
[]
[]
[null,null,null,null,{"$f":"PODACI!C9","v":0},null,null,null,null,null,null,null,null,null,{"$f":"PROPER(PODACI!D9)","v":""},null,null,null,null,null,null,null,null,null,null,null,null,null,null,null,null,null,null,null,null,null,null,null,null,null,null,null,null,null,null,null,{"$f":"PODACI!E9","v":""},null,null,null,null,null,null,null,null,null,null,null,null,null,null,null,null,null,null,null,null,null,null,null,null,null,null,null,null,null,null,null,null,null,null,null,null,null,null,null,null,null,null,null,null,null,null,{"$f":"COUNTA(BN148:CO156)","v":0},null,null,null,null,null,{"$f":"PODACI!H9","v":0},null,null,null,null,null,null,null,null,null,{"$f":"PROPER(PODACI!I9)","v":""},null,null,null,null,null,null,null,null,null,null,null,null,null,null,null,null,null,null,null,null,null,null,null,null,null,null,null,null,null,null,null,{"$f":"PODACI!J9","v":""},null,null,null,null,null,null,null,null,null,null,null,null,null,null,null,null,null,null,null,null,null,null,null,null,null,null,null,null,null,null,null,null,null,null,null,null,null,null,null,null,null,null,null,null,null,null,{"$f":"COUNTA(FE148:GF156)","v":0},null,null,null,null,null,null,null,null,null,null,null,null,{"$f":"FO51","v":0},null,null,null,null,null,null,null,null,null,null,null,null,null,null,null,null,null,null,null,null,null,null,null,null,null,null,null,null,null,null,null,null,null,null,null,null,null,null,null,null,null,null,null,null,null,null,null,null,null,null,null,null,{"$f":"IF(PODACI!B9=\"Golman\",\"G\",\"I\")","v":"I"},{"$f":"IF(PODACI!G9=\"Golman\",\"G\",\"I\")","v":"I"}]
[]
[]
[]
[]
[]
[]
[]
[]
[null,null,null,null,{"$f":"PODACI!C10","v":0},null,null,null,null,null,null,null,null,null,{"$f":"PROPER(PODACI!D10)","v":""},null,null,null,null,null,null,null,null,null,null,null,null,null,null,null,null,null,null,null,null,null,null,null,null,null,null,null,null,null,null,null,{"$f":"PODACI!E10","v":""},null,null,null,null,null,null,null,null,null,null,null,null,null,null,null,null,null,null,null,null,null,null,null,null,null,null,null,null,null,null,null,null,null,null,null,null,null,null,null,null,null,null,null,null,null,null,{"$f":"COUNTA(BN157:CO165)","v":0},null,null,null,null,null,{"$f":"PODACI!H10","v":0},null,null,null,null,null,null,null,null,null,{"$f":"PROPER(PODACI!I10)","v":""},null,null,null,null,null,null,null,null,null,null,null,null,null,null,null,null,null,null,null,null,null,null,null,null,null,null,null,null,null,null,null,{"$f":"PODACI!J10","v":""},null,null,null,null,null,null,null,null,null,null,null,null,null,null,null,null,null,null,null,null,null,null,null,null,null,null,null,null,null,null,null,null,null,null,null,null,null,null,null,null,null,null,null,null,null,null,{"$f":"COUNTA(FE157:GF165)","v":0},null,null,null,null,null,null,null,null,null,null,null,null,{"$f":"GA51","v":0},null,null,null,null,null,null,null,null,null,null,null,null,null,null,null,null,null,null,null,null,null,null,null,null,null,null,null,null,null,null,null,null,null,null,null,null,null,null,null,null,null,null,null,null,null,null,null,null,null,null,null,null,{"$f":"IF(PODACI!B10=\"Golman\",\"G\",\"I\")","v":"I"},{"$f":"IF(PODACI!G10=\"Golman\",\"G\",\"I\")","v":"I"}]
[]
[]
[]
[]
[]
[]
[]
[]
[null,null,null,null,{"$f":"PODACI!C11","v":0},null,null,null,null,null,null,null,null,null,{"$f":"PROPER(PODACI!D11)","v":""},null,null,null,null,null,null,null,null,null,null,null,null,null,null,null,null,null,null,null,null,null,null,null,null,null,null,null,null,null,null,null,{"$f":"PODACI!E11","v":""},null,null,null,null,null,null,null,null,null,null,null,null,null,null,null,null,null,null,null,null,null,null,null,null,null,null,null,null,null,null,null,null,null,null,null,null,null,null,null,null,null,null,null,null,null,null,{"$f":"COUNTA(BN166:CO174)","v":0},null,null,null,null,null,{"$f":"PODACI!H11","v":0},null,null,null,null,null,null,null,null,null,{"$f":"PROPER(PODACI!I11)","v":""},null,null,null,null,null,null,null,null,null,null,null,null,null,null,null,null,null,null,null,null,null,null,null,null,null,null,null,null,null,null,null,{"$f":"PODACI!J11","v":""},null,null,null,null,null,null,null,null,null,null,null,null,null,null,null,null,null,null,null,null,null,null,null,null,null,null,null,null,null,null,null,null,null,null,null,null,null,null,null,null,null,null,null,null,null,null,{"$f":"COUNTA(FE166:GF174)","v":0},null,null,null,null,null,null,null,null,null,null,null,null,"PROVJERA\nREZULTATA",null,null,null,null,null,null,null,null,null,null,null,null,null,null,null,null,null,null,null,null,null,null,null,null,null,null,null,null,null,null,null,null,null,null,null,null,null,null,null,null,null,null,null,null,null,null,null,null,null,null,null,null,{"$f":"IF(PODACI!B11=\"Golman\",\"G\",\"I\")","v":"I"},{"$f":"IF(PODACI!G11=\"Golman\",\"G\",\"I\")","v":"I"}]
[]
[]
[]
[]
[]
[]
[]
[]
[null,null,null,null,{"$f":"PODACI!C12","v":0},null,null,null,null,null,null,null,null,null,{"$f":"PROPER(PODACI!D12)","v":""},null,null,null,null,null,null,null,null,null,null,null,null,null,null,null,null,null,null,null,null,null,null,null,null,null,null,null,null,null,null,null,{"$f":"PODACI!E12","v":""},null,null,null,null,null,null,null,null,null,null,null,null,null,null,null,null,null,null,null,null,null,null,null,null,null,null,null,null,null,null,null,null,null,null,null,null,null,null,null,null,null,null,null,null,null,null,{"$f":"COUNTA(BN175:CO183)","v":0},null,null,null,null,null,{"$f":"PODACI!H12","v":0},null,null,null,null,null,null,null,null,null,{"$f":"PROPER(PODACI!I12)","v":""},null,null,null,null,null,null,null,null,null,null,null,null,null,null,null,null,null,null,null,null,null,null,null,null,null,null,null,null,null,null,null,{"$f":"PODACI!J12","v":""},null,null,null,null,null,null,null,null,null,null,null,null,null,null,null,null,null,null,null,null,null,null,null,null,null,null,null,null,null,null,null,null,null,null,null,null,null,null,null,null,null,null,null,null,null,null,{"$f":"COUNTA(FE175:GF183)","v":0},null,null,null,null,null,null,null,null,null,null,null,null,null,null,null,null,null,null,null,null,null,null,null,null,null,null,null,null,null,null,null,null,null,null,null,null,null,null,null,null,null,null,null,null,null,null,null,null,null,null,null,null,null,null,null,null,null,null,null,null,null,null,null,null,null,{"$f":"IF(PODACI!B12=\"Golman\",\"G\",\"I\")","v":"I"},{"$f":"IF(PODACI!G12=\"Golman\",\"G\",\"I\")","v":"I"}]
[]
[]
[]
[]
[]
[]
[]
[]
[null,null,null,null,{"$f":"PODACI!C13","v":0},null,null,null,null,null,null,null,null,null,{"$f":"PROPER(PODACI!D13)","v":""},null,null,null,null,null,null,null,null,null,null,null,null,null,null,null,null,null,null,null,null,null,null,null,null,null,null,null,null,null,null,null,{"$f":"PODACI!E13","v":""},null,null,null,null,null,null,null,null,null,null,null,null,null,null,null,null,null,null,null,null,null,null,null,null,null,null,null,null,null,null,null,null,null,null,null,null,null,null,null,null,null,null,null,null,null,null,{"$f":"COUNTA(BN184:CO192)","v":0},null,null,null,null,null,{"$f":"PODACI!H13","v":0},null,null,null,null,null,null,null,null,null,{"$f":"PROPER(PODACI!I13)","v":""},null,null,null,null,null,null,null,null,null,null,null,null,null,null,null,null,null,null,null,null,null,null,null,null,null,null,null,null,null,null,null,{"$f":"PODACI!J13","v":""},null,null,null,null,null,null,null,null,null,null,null,null,null,null,null,null,null,null,null,null,null,null,null,null,null,null,null,null,null,null,null,null,null,null,null,null,null,null,null,null,null,null,null,null,null,null,{"$f":"COUNTA(FE184:GF192)","v":0},null,null,null,null,null,null,null,null,null,null,null,null,null,null,null,null,null,null,null,null,null,null,null,null,null,null,null,null,null,null,null,null,null,null,null,null,null,null,null,null,null,null,null,null,null,null,null,null,null,null,null,null,null,null,null,null,null,null,null,null,null,null,null,null,null,{"$f":"IF(PODACI!B13=\"Golman\",\"G\",\"I\")","v":"I"},{"$f":"IF(PODACI!G13=\"Golman\",\"G\",\"I\")","v":"I"}]
[]
[]
[]
[]
[]
[]
[]
[]
[null,null,null,null,{"$f":"PODACI!C14","v":0},null,null,null,null,null,null,null,null,null,{"$f":"PROPER(PODACI!D14)","v":""},null,null,null,null,null,null,null,null,null,null,null,null,null,null,null,null,null,null,null,null,null,null,null,null,null,null,null,null,null,null,null,{"$f":"PODACI!E14","v":""},null,null,null,null,null,null,null,null,null,null,null,null,null,null,null,null,null,null,null,null,null,null,null,null,null,null,null,null,null,null,null,null,null,null,null,null,null,null,null,null,null,null,null,null,null,null,{"$f":"COUNTA(BN193:CO201)","v":0},null,null,null,null,null,{"$f":"PODACI!H14","v":0},null,null,null,null,null,null,null,null,null,{"$f":"PROPER(PODACI!I14)","v":""},null,null,null,null,null,null,null,null,null,null,null,null,null,null,null,null,null,null,null,null,null,null,null,null,null,null,null,null,null,null,null,{"$f":"PODACI!J14","v":""},null,null,null,null,null,null,null,null,null,null,null,null,null,null,null,null,null,null,null,null,null,null,null,null,null,null,null,null,null,null,null,null,null,null,null,null,null,null,null,null,null,null,null,null,null,null,{"$f":"COUNTA(FE193:GF201)","v":0},null,null,null,null,null,null,null,null,null,null,null,null,null,null,null,null,null,null,null,null,null,null,null,null,null,null,null,null,null,null,null,null,null,null,null,null,null,null,null,null,null,null,null,null,null,null,null,null,null,null,null,null,null,null,null,null,null,null,null,null,null,null,null,null,null,{"$f":"IF(PODACI!B14=\"Golman\",\"G\",\"I\")","v":"I"},{"$f":"IF(PODACI!G14=\"Golman\",\"G\",\"I\")","v":"I"}]
[]
[]
[]
[]
[]
[]
[]
[]
[null,null,null,null,{"$f":"PODACI!C15","v":0},null,null,null,null,null,null,null,null,null,{"$f":"PROPER(PODACI!D15)","v":""},null,null,null,null,null,null,null,null,null,null,null,null,null,null,null,null,null,null,null,null,null,null,null,null,null,null,null,null,null,null,null,{"$f":"PODACI!E15","v":""},null,null,null,null,null,null,null,null,null,null,null,null,null,null,null,null,null,null,null,null,null,null,null,null,null,null,null,null,null,null,null,null,null,null,null,null,null,null,null,null,null,null,null,null,null,null,{"$f":"COUNTA(BN202:CO210)","v":0},null,null,null,null,null,{"$f":"PODACI!H15","v":0},null,null,null,null,null,null,null,null,null,{"$f":"PROPER(PODACI!I15)","v":""},null,null,null,null,null,null,null,null,null,null,null,null,null,null,null,null,null,null,null,null,null,null,null,null,null,null,null,null,null,null,null,{"$f":"PODACI!J15","v":""},null,null,null,null,null,null,null,null,null,null,null,null,null,null,null,null,null,null,null,null,null,null,null,null,null,null,null,null,null,null,null,null,null,null,null,null,null,null,null,null,null,null,null,null,null,null,{"$f":"COUNTA(FE202:GF210)","v":0},null,null,null,null,null,null,null,null,null,null,null,null,null,null,null,null,null,null,null,null,null,null,null,null,null,null,null,null,null,null,null,null,null,null,null,null,null,null,null,null,null,null,null,null,null,null,null,null,null,null,null,null,null,null,null,null,null,null,null,null,null,null,null,null,null,{"$f":"IF(PODACI!B15=\"Golman\",\"G\",\"I\")","v":"I"},{"$f":"IF(PODACI!G15=\"Golman\",\"G\",\"I\")","v":"I"}]
[]
[]
[]
[]
[]
[]
[]
[]
[null,null,null,null,{"$f":"PODACI!C16","v":0},null,null,null,null,null,null,null,null,null,{"$f":"PROPER(PODACI!D16)","v":""},null,null,null,null,null,null,null,null,null,null,null,null,null,null,null,null,null,null,null,null,null,null,null,null,null,null,null,null,null,null,null,{"$f":"PODACI!E16","v":""},null,null,null,null,null,null,null,null,null,null,null,null,null,null,null,null,null,null,null,null,null,null,null,null,null,null,null,null,null,null,null,null,null,null,null,null,null,null,null,null,null,null,null,null,null,null,{"$f":"COUNTA(BN211:CO219)","v":0},null,null,null,null,null,{"$f":"PODACI!H16","v":0},null,null,null,null,null,null,null,null,null,{"$f":"PROPER(PODACI!I16)","v":""},null,null,null,null,null,null,null,null,null,null,null,null,null,null,null,null,null,null,null,null,null,null,null,null,null,null,null,null,null,null,null,{"$f":"PODACI!J16","v":""},null,null,null,null,null,null,null,null,null,null,null,null,null,null,null,null,null,null,null,null,null,null,null,null,null,null,null,null,null,null,null,null,null,null,null,null,null,null,null,null,null,null,null,null,null,null,{"$f":"COUNTA(FE211:GF219)","v":0},null,null,null,null,null,null,null,null,null,null,null,null,null,null,null,null,null,null,null,null,null,null,null,null,null,null,null,null,null,null,null,null,null,null,null,null,null,null,null,null,null,null,null,null,null,null,null,null,null,null,null,null,null,null,null,null,null,null,null,null,null,null,null,null,null,{"$f":"IF(PODACI!B16=\"Golman\",\"G\",\"I\")","v":"I"},{"$f":"IF(PODACI!G16=\"Golman\",\"G\",\"I\")","v":"I"}]
[]
[]
[]
[]
[]
[]
[]
[]
[null,null,null,null,{"$f":"PODACI!C17","v":0},null,null,null,null,null,null,null,null,null,{"$f":"PROPER(PODACI!D17)","v":""},null,null,null,null,null,null,null,null,null,null,null,null,null,null,null,null,null,null,null,null,null,null,null,null,null,null,null,null,null,null,null,{"$f":"PODACI!E17","v":""},null,null,null,null,null,null,null,null,null,null,null,null,null,null,null,null,null,null,null,null,null,null,null,null,null,null,null,null,null,null,null,null,null,null,null,null,null,null,null,null,null,null,null,null,null,null,{"$f":"COUNTA(BN220:CO228)","v":0},null,null,null,null,null,{"$f":"PODACI!H17","v":0},null,null,null,null,null,null,null,null,null,{"$f":"PROPER(PODACI!I17)","v":""},null,null,null,null,null,null,null,null,null,null,null,null,null,null,null,null,null,null,null,null,null,null,null,null,null,null,null,null,null,null,null,{"$f":"PODACI!J17","v":""},null,null,null,null,null,null,null,null,null,null,null,null,null,null,null,null,null,null,null,null,null,null,null,null,null,null,null,null,null,null,null,null,null,null,null,null,null,null,null,null,null,null,null,null,null,null,{"$f":"COUNTA(FE220:GF228)","v":0},null,null,null,null,null,null,null,null,null,null,null,null,null,null,null,null,null,null,null,null,null,null,null,null,null,null,null,null,null,null,null,null,null,null,null,null,null,null,null,null,null,null,null,null,null,null,null,null,null,null,null,null,null,null,null,null,null,null,null,null,null,null,null,null,null,{"$f":"IF(PODACI!B17=\"Golman\",\"G\",\"I\")","v":"I"},{"$f":"IF(PODACI!G17=\"Golman\",\"G\",\"I\")","v":"I"}]
[]
[]
[]
[]
[]
[]
[]
[]
[null,null,null,null,{"$f":"PODACI!C18","v":0},null,null,null,null,null,null,null,null,null,{"$f":"PROPER(PODACI!D18)","v":""},null,null,null,null,null,null,null,null,null,null,null,null,null,null,null,null,null,null,null,null,null,null,null,null,null,null,null,null,null,null,null,{"$f":"PODACI!E18","v":""},null,null,null,null,null,null,null,null,null,null,null,null,null,null,null,null,null,null,null,null,null,null,null,null,null,null,null,null,null,null,null,null,null,null,null,null,null,null,null,null,null,null,null,null,null,null,{"$f":"COUNTA(BN229:CO237)","v":0},null,null,null,null,null,{"$f":"PODACI!H18","v":0},null,null,null,null,null,null,null,null,null,{"$f":"PROPER(PODACI!I18)","v":""},null,null,null,null,null,null,null,null,null,null,null,null,null,null,null,null,null,null,null,null,null,null,null,null,null,null,null,null,null,null,null,{"$f":"PODACI!J18","v":""},null,null,null,null,null,null,null,null,null,null,null,null,null,null,null,null,null,null,null,null,null,null,null,null,null,null,null,null,null,null,null,null,null,null,null,null,null,null,null,null,null,null,null,null,null,null,{"$f":"COUNTA(FE229:GF237)","v":0},null,null,null,null,null,null,null,null,null,null,null,null,null,null,null,null,null,null,null,null,null,null,null,null,null,null,null,null,null,null,null,null,null,null,null,null,null,null,null,null,null,null,null,null,null,null,null,null,null,null,null,null,null,null,null,null,null,null,null,null,null,null,null,null,null,{"$f":"IF(PODACI!B18=\"Golman\",\"G\",\"I\")","v":"I"},{"$f":"IF(PODACI!G18=\"Golman\",\"G\",\"I\")","v":"I"}]
[]
[]
[]
[]
[]
[]
[]
[]
[null,null,null,null,"SEDMERCI",null,null,null,null,null,null,null,null,null,null,null,null,null,null,"min",null,null,null,null,null,null,null,null,null,null,null,null,null,null,null,null,null,null,null,null,null,null,null,null,null,null,null,null,null,null,null,null,null,null,null,null,null,null,null,null,null,null,null,null,null,null,null,null,null,null,null,null,null,null,null,null,null,null,null,null,null,null,null,null,null,null,null,null,null,null,null,null,null,null,null,null,null,null,null,"SEDMERCI",null,null,null,null,null,null,null,null,null,null,null,null,null,null,"min"]
[]
[]
[]
[]
[null,null,null,null,null,null,null,null,null,null,null,null,null,null,null,null,null,null,null,"broj",null,null,null,null,null,null,null,null,null,null,null,null,null,null,null,null,null,null,null,null,null,null,null,null,null,null,null,null,null,null,null,null,null,null,null,null,null,null,null,null,null,null,null,null,null,null,null,null,null,null,null,null,null,null,null,null,null,null,null,null,null,null,null,null,null,null,null,null,null,null,null,null,null,null,null,null,null,null,null,null,null,null,null,null,null,null,null,null,null,null,null,null,null,null,"broj"]
[]
[]
[]
[]
[]
[]
[null,null,null,null,"I m e  i  p r e z i m e",null,null,null,null,null,null,null,null,null,null,null,null,null,null,null,null,null,null,null,null,null,null,null,null,null,null,null,null,null,null,null,null,null,null,null,null,null,null,null,null,null,null,null,null,null,null,null,null,null,null,null,"Mat. br.",null,null,null,null,null,null,null,null,null,null,null,null,null,null,null,null,null,null,"O",null,null,null,null,null,null,null,"2'",null,null,null,null,null,null,null,"D",null,null,null,null,null,null,null,"I m e  i  p r e z i m e",null,null,null,null,null,null,null,null,null,null,null,null,null,null,null,null,null,null,null,null,null,null,null,null,null,null,null,null,null,null,null,null,null,null,null,null,null,null,null,null,null,null,null,null,null,null,null,null,null,null,null,"Mat. br.",null,null,null,null,null,null,null,null,null,null,null,null,null,null,null,null,null,null,"O",null,null,null,null,null,null,null,"2'",null,null,null,null,null,null,null,"D"]
[]
[]
[]
[null,null,null,null,{"$f":"PODACI!B21","v":"Sl. predst. (A)"},null,null,null,null,null,null,null,null,null,null,null,null,null,null,null,null,{"$f":"PROPER(PODACI!D21)","v":""},null,null,null,null,null,null,null,null,null,null,null,null,null,null,null,null,null,null,null,null,null,null,null,null,null,null,null,null,null,null,null,null,null,null,{"$f":"IF(PODACI!C21=\"\",\"\",PODACI!C21)","v":""},null,null,null,null,null,null,null,null,null,null,null,null,null,null,null,null,null,null,null,null,null,null,null,null,null,null,null,null,null,null,null,null,null,null,null,null,null,null,null,null,null,null,{"$f":"PODACI!G21","v":"Sl. predst. (A)"},null,null,null,null,null,null,null,null,null,null,null,null,null,null,null,null,{"$f":"PROPER(PODACI!I21)","v":""},null,null,null,null,null,null,null,null,null,null,null,null,null,null,null,null,null,null,null,null,null,null,null,null,null,null,null,null,null,null,null,null,null,null,{"$f":"IF(PODACI!H21=\"\",\"\",PODACI!H21)","v":""}]
[]
[]
[]
[null,null,null,null,{"$f":"PODACI!B22","v":"Trener (B)"},null,null,null,null,null,null,null,null,null,null,null,null,null,null,null,null,{"$f":"PROPER(PODACI!D22)","v":""},null,null,null,null,null,null,null,null,null,null,null,null,null,null,null,null,null,null,null,null,null,null,null,null,null,null,null,null,null,null,null,null,null,null,{"$f":"IF(PODACI!C22=\"\",\"\",PODACI!C22)","v":""},null,null,null,null,null,null,null,null,null,null,null,null,null,null,null,null,null,null,null,null,null,null,null,null,null,null,null,null,null,null,null,null,null,null,null,null,null,null,null,null,null,null,{"$f":"PODACI!G22","v":"Trener (B)"},null,null,null,null,null,null,null,null,null,null,null,null,null,null,null,null,{"$f":"PROPER(PODACI!I22)","v":""},null,null,null,null,null,null,null,null,null,null,null,null,null,null,null,null,null,null,null,null,null,null,null,null,null,null,null,null,null,null,null,null,null,null,{"$f":"IF(PODACI!H22=\"\",\"\",PODACI!H22)","v":""}]
[]
[]
[]
[null,null,null,null,{"$f":"PODACI!B23","v":0},null,null,null,null,null,null,null,null,null,null,null,null,null,null,null,null,{"$f":"PROPER(PODACI!D23)","v":""},null,null,null,null,null,null,null,null,null,null,null,null,null,null,null,null,null,null,null,null,null,null,null,null,null,null,null,null,null,null,null,null,null,null,{"$f":"IF(PODACI!C23=\"\",\"\",PODACI!C23)","v":""},null,null,null,null,null,null,null,null,null,null,null,null,null,null,null,null,null,null,null,null,null,null,null,null,null,null,null,null,null,null,null,null,null,null,null,null,null,null,null,null,null,null,{"$f":"PODACI!G23","v":0},null,null,null,null,null,null,null,null,null,null,null,null,null,null,null,null,{"$f":"PROPER(PODACI!I23)","v":""},null,null,null,null,null,null,null,null,null,null,null,null,null,null,null,null,null,null,null,null,null,null,null,null,null,null,null,null,null,null,null,null,null,null,{"$f":"IF(PODACI!H23=\"\",\"\",PODACI!H23)","v":""}]
[]
[]
[]
[null,null,null,null,{"$f":"PODACI!B24","v":0},null,null,null,null,null,null,null,null,null,null,null,null,null,null,null,null,{"$f":"PROPER(PODACI!D24)","v":""},null,null,null,null,null,null,null,null,null,null,null,null,null,null,null,null,null,null,null,null,null,null,null,null,null,null,null,null,null,null,null,null,null,null,{"$f":"IF(PODACI!C24=\"\",\"\",PODACI!C24)","v":""},null,null,null,null,null,null,null,null,null,null,null,null,null,null,null,null,null,null,null,null,null,null,null,null,null,null,null,null,null,null,null,null,null,null,null,null,null,null,null,null,null,null,{"$f":"PODACI!G24","v":0},null,null,null,null,null,null,null,null,null,null,null,null,null,null,null,null,{"$f":"PROPER(PODACI!I24)","v":""},null,null,null,null,null,null,null,null,null,null,null,null,null,null,null,null,null,null,null,null,null,null,null,null,null,null,null,null,null,null,null,null,null,null,{"$f":"IF(PODACI!H24=\"\",\"\",PODACI!H24)","v":""}]
[]
[]
[]
[null,null,null,null,"Potpis službenog predstavnika ekipe A",null,null,null,null,null,null,null,null,null,null,null,null,null,null,null,null,null,null,null,null,null,null,null,null,null,null,null,null,null,null,null,null,null,null,null,null,null,null,null,null,null,null,null,null,null,null,null,null,null,null,null,null,null,null,null,null,null,null,null,null,null,null,null,null,null,null,null,null,null,null,null,null,null,null,null,null,null,null,null,null,null,null,null,null,null,null,null,null,null,null,null,null,null,null,"Potpis službenog predstavnika ekipe B"]
[]
[]
[]
[]
[]
[]
[]
[]
[null,null,null,null,null,null,null,null,null,"Promjena ishoda tijekom utakmice:",null,null,null,null,null,null,null,null,null,null,null,null,null,null,null,null,null,null,null,null,null,null,null,null,null,null,null,null,null,null,null,null,null,null,null,null,null,null,null,null,null,null,null,null,null,null,null,{"$f":"IR2","v":0},null,null,null,null,{"$f":"IF(BF279+BM279=0,\"\",\":\")","v":""},null,{"$f":"IS2","v":0},null,null,null,null,{"$f":"IR3","v":0},null,null,null,null,{"$f":"IF(BR279+BY279=0,\"\",\":\")","v":""},null,{"$f":"IS3","v":0},null,null,null,null,{"$f":"IR4","v":0},null,null,null,null,{"$f":"IF(CD279+CK279=0,\"\",\":\")","v":""},null,{"$f":"IS4","v":0},null,null,null,null,{"$f":"IR5","v":0},null,null,null,null,{"$f":"IF(CP279+CW279=0,\"\",\":\")","v":""},null,{"$f":"IS5","v":0},null,null,null,null,{"$f":"IR6","v":0},null,null,null,null,{"$f":"IF(DB279+DI279=0,\"\",\":\")","v":""},null,{"$f":"IS6","v":0},null,null,null,null,{"$f":"IR7","v":0},null,null,null,null,{"$f":"IF(DN279+DU279=0,\"\",\":\")","v":""},null,{"$f":"IS7","v":0},null,null,null,null,{"$f":"IR8","v":0},null,null,null,null,{"$f":"IF(DZ279+EG279=0,\"\",\":\")","v":""},null,{"$f":"IS8","v":0},null,null,null,null,{"$f":"IR9","v":0},null,null,null,null,{"$f":"IF(EL279+ES279=0,\"\",\":\")","v":""},null,{"$f":"IS9","v":0},null,null,null,null,{"$f":"IR10","v":0},null,null,null,null,{"$f":"IF(EX279+FE279=0,\"\",\":\")","v":""},null,{"$f":"IS10","v":0},null,null,null,null,{"$f":"IR11","v":0},null,null,null,null,{"$f":"IF(FJ279+FQ279=0,\"\",\":\")","v":""},null,{"$f":"IS11","v":0},null,null,null,null,{"$f":"IR12","v":0},null,null,null,null,{"$f":"IF(FV279+GC279=0,\"\",\":\")","v":""},null,{"$f":"IS12","v":0}]
[]
[]
[]
[null,null,null,null,null,null,null,null,null,{"$f":"IR13","v":0},null,null,null,null,{"$f":"IF(J283+Q283=0,\"\",\":\")","v":""},null,{"$f":"IS13","v":0},null,null,null,null,{"$f":"IR14","v":0},null,null,null,null,{"$f":"IF(V283+AC283=0,\"\",\":\")","v":""},null,{"$f":"IS14","v":0},null,null,null,null,{"$f":"IR15","v":0},null,null,null,null,{"$f":"IF(AH283+AO283=0,\"\",\":\")","v":""},null,{"$f":"IS15","v":0},null,null,null,null,{"$f":"IR16","v":0},null,null,null,null,{"$f":"IF(AT283+BA283=0,\"\",\":\")","v":""},null,{"$f":"IS16","v":0},null,null,null,null,{"$f":"IR17","v":0},null,null,null,null,{"$f":"IF(BF283+BM283=0,\"\",\":\")","v":""},null,{"$f":"IS17","v":0},null,null,null,null,{"$f":"IR18","v":0},null,null,null,null,{"$f":"IF(BR283+BY283=0,\"\",\":\")","v":""},null,{"$f":"IS18","v":0},null,null,null,null,{"$f":"IR19","v":0},null,null,null,null,{"$f":"IF(CD283+CK283=0,\"\",\":\")","v":""},null,{"$f":"IS19","v":0},null,null,null,null,{"$f":"IR20","v":0},null,null,null,null,{"$f":"IF(CP283+CW283=0,\"\",\":\")","v":""},null,{"$f":"IS20","v":0},null,null,null,null,{"$f":"IR21","v":0},null,null,null,null,{"$f":"IF(DB283+DI283=0,\"\",\":\")","v":""},null,{"$f":"IS21","v":0},null,null,null,null,{"$f":"IR22","v":0},null,null,null,null,{"$f":"IF(DN283+DU283=0,\"\",\":\")","v":""},null,{"$f":"IS22","v":0},null,null,null,null,{"$f":"IR23","v":0},null,null,null,null,{"$f":"IF(DZ283+EG283=0,\"\",\":\")","v":""},null,{"$f":"IS23","v":0},null,null,null,null,{"$f":"IR24","v":0},null,null,null,null,{"$f":"IF(EL283+ES283=0,\"\",\":\")","v":""},null,{"$f":"IS24","v":0},null,null,null,null,{"$f":"IR25","v":0},null,null,null,null,{"$f":"IF(EX283+FE283=0,\"\",\":\")","v":""},null,{"$f":"IS25","v":0},null,null,null,null,{"$f":"IR26","v":0},null,null,null,null,{"$f":"IF(FJ283+FQ283=0,\"\",\":\")","v":""},null,{"$f":"IS26","v":0},null,null,null,null,{"$f":"IR27","v":0},null,null,null,null,{"$f":"IF(FV283+GC283=0,\"\",\":\")","v":""},null,{"$f":"IS27","v":0}]
[]
[]
[]
[null,null,null,null,null,null,null,null,null,{"$f":"IR28","v":0},null,null,null,null,{"$f":"IF(J287+Q287=0,\"\",\":\")","v":""},null,{"$f":"IS28","v":0},null,null,null,null,{"$f":"IR29","v":0},null,null,null,null,{"$f":"IF(V287+AC287=0,\"\",\":\")","v":""},null,{"$f":"IS29","v":0},null,null,null,null,{"$f":"IR30","v":0},null,null,null,null,{"$f":"IF(AH287+AO287=0,\"\",\":\")","v":""},null,{"$f":"IS30","v":0},null,null,null,null,{"$f":"IR31","v":0},null,null,null,null,{"$f":"IF(AT287+BA287=0,\"\",\":\")","v":""},null,{"$f":"IS31","v":0},null,null,null,null,{"$f":"IR32","v":0},null,null,null,null,{"$f":"IF(BF287+BM287=0,\"\",\":\")","v":""},null,{"$f":"IS32","v":0},null,null,null,null,{"$f":"IR33","v":0},null,null,null,null,{"$f":"IF(BR287+BY287=0,\"\",\":\")","v":""},null,{"$f":"IS33","v":0},null,null,null,null,{"$f":"IR34","v":0},null,null,null,null,{"$f":"IF(CD287+CK287=0,\"\",\":\")","v":""},null,{"$f":"IS34","v":0},null,null,null,null,{"$f":"IR35","v":0},null,null,null,null,{"$f":"IF(CP287+CW287=0,\"\",\":\")","v":""},null,{"$f":"IS35","v":0},null,null,null,null,{"$f":"IR36","v":0},null,null,null,null,{"$f":"IF(DB287+DI287=0,\"\",\":\")","v":""},null,{"$f":"IS36","v":0},null,null,null,null,{"$f":"IR37","v":0},null,null,null,null,{"$f":"IF(DN287+DU287=0,\"\",\":\")","v":""},null,{"$f":"IS37","v":0},null,null,null,null,{"$f":"IR38","v":0},null,null,null,null,{"$f":"IF(DZ287+EG287=0,\"\",\":\")","v":""},null,{"$f":"IS38","v":0},null,null,null,null,{"$f":"IR39","v":0},null,null,null,null,{"$f":"IF(EL287+ES287=0,\"\",\":\")","v":""},null,{"$f":"IS39","v":0},null,null,null,null,{"$f":"IR40","v":0},null,null,null,null,{"$f":"IF(EX287+FE287=0,\"\",\":\")","v":""},null,{"$f":"IS40","v":0},null,null,null,null,{"$f":"IR41","v":0},null,null,null,null,{"$f":"IF(FJ287+FQ287=0,\"\",\":\")","v":""},null,{"$f":"IS41","v":0},null,null,null,null,{"$f":"IR42","v":0},null,null,null,null,{"$f":"IF(FV287+GC287=0,\"\",\":\")","v":""},null,{"$f":"IS42","v":0}]
[]
[]
[]
[null,null,null,null,null,null,null,null,null,{"$f":"IR43","v":0},null,null,null,null,{"$f":"IF(J291+Q291=0,\"\",\":\")","v":""},null,{"$f":"IS43","v":0},null,null,null,null,{"$f":"IR44","v":0},null,null,null,null,{"$f":"IF(V291+AC291=0,\"\",\":\")","v":""},null,{"$f":"IS44","v":0},null,null,null,null,{"$f":"IR45","v":0},null,null,null,null,{"$f":"IF(AH291+AO291=0,\"\",\":\")","v":""},null,{"$f":"IS45","v":0},null,null,null,null,{"$f":"IR46","v":0},null,null,null,null,{"$f":"IF(AT291+BA291=0,\"\",\":\")","v":""},null,{"$f":"IS46","v":0},null,null,null,null,{"$f":"IR47","v":0},null,null,null,null,{"$f":"IF(BF291+BM291=0,\"\",\":\")","v":""},null,{"$f":"IS47","v":0},null,null,null,null,{"$f":"IR48","v":0},null,null,null,null,{"$f":"IF(BR291+BY291=0,\"\",\":\")","v":""},null,{"$f":"IS48","v":0},null,null,null,null,{"$f":"IR49","v":0},null,null,null,null,{"$f":"IF(CD291+CK291=0,\"\",\":\")","v":""},null,{"$f":"IS49","v":0},null,null,null,null,{"$f":"IR50","v":0},null,null,null,null,{"$f":"IF(CP291+CW291=0,\"\",\":\")","v":""},null,{"$f":"IS50","v":0},null,null,null,null,{"$f":"IR51","v":0},null,null,null,null,{"$f":"IF(DB291+DI291=0,\"\",\":\")","v":""},null,{"$f":"IS51","v":0},null,null,null,null,{"$f":"IR52","v":0},null,null,null,null,{"$f":"IF(DN291+DU291=0,\"\",\":\")","v":""},null,{"$f":"IS52","v":0},null,null,null,null,{"$f":"IR53","v":0},null,null,null,null,{"$f":"IF(DZ291+EG291=0,\"\",\":\")","v":""},null,{"$f":"IS53","v":0},null,null,null,null,{"$f":"IR54","v":0},null,null,null,null,{"$f":"IF(EL291+ES291=0,\"\",\":\")","v":""},null,{"$f":"IS54","v":0},null,null,null,null,{"$f":"IR55","v":0},null,null,null,null,{"$f":"IF(EX291+FE291=0,\"\",\":\")","v":""},null,{"$f":"IS55","v":0},null,null,null,null,{"$f":"IR56","v":0},null,null,null,null,{"$f":"IF(FJ291+FQ291=0,\"\",\":\")","v":""},null,{"$f":"IS56","v":0},null,null,null,null,{"$f":"IR57","v":0},null,null,null,null,{"$f":"IF(FV291+GC291=0,\"\",\":\")","v":""},null,{"$f":"IS57","v":0}]
[]
[]
[]
[null,null,null,null,null,null,null,null,null,{"$f":"IR58","v":0},null,null,null,null,{"$f":"IF(J295+Q295=0,\"\",\":\")","v":""},null,{"$f":"IS58","v":0},null,null,null,null,{"$f":"IR59","v":0},null,null,null,null,{"$f":"IF(V295+AC295=0,\"\",\":\")","v":""},null,{"$f":"IS59","v":0},null,null,null,null,{"$f":"IR60","v":0},null,null,null,null,{"$f":"IF(AH295+AO295=0,\"\",\":\")","v":""},null,{"$f":"IS60","v":0},null,null,null,null,{"$f":"IR61","v":0},null,null,null,null,{"$f":"IF(AT295+BA295=0,\"\",\":\")","v":""},null,{"$f":"IS61","v":0},null,null,null,null,{"$f":"IR62","v":0},null,null,null,null,{"$f":"IF(BF295+BM295=0,\"\",\":\")","v":""},null,{"$f":"IS62","v":0},null,null,null,null,{"$f":"IR63","v":0},null,null,null,null,{"$f":"IF(BR295+BY295=0,\"\",\":\")","v":""},null,{"$f":"IS63","v":0},null,null,null,null,{"$f":"IR64","v":0},null,null,null,null,{"$f":"IF(CD295+CK295=0,\"\",\":\")","v":""},null,{"$f":"IS64","v":0},null,null,null,null,{"$f":"IR65","v":0},null,null,null,null,{"$f":"IF(CP295+CW295=0,\"\",\":\")","v":""},null,{"$f":"IS65","v":0},null,null,null,null,{"$f":"IR66","v":0},null,null,null,null,{"$f":"IF(DB295+DI295=0,\"\",\":\")","v":""},null,{"$f":"IS66","v":0},null,null,null,null,{"$f":"IR67","v":0},null,null,null,null,{"$f":"IF(DN295+DU295=0,\"\",\":\")","v":""},null,{"$f":"IS67","v":0},null,null,null,null,{"$f":"IR68","v":0},null,null,null,null,{"$f":"IF(DZ295+EG295=0,\"\",\":\")","v":""},null,{"$f":"IS68","v":0},null,null,null,null,{"$f":"IR69","v":0},null,null,null,null,{"$f":"IF(EL295+ES295=0,\"\",\":\")","v":""},null,{"$f":"IS69","v":0},null,null,null,null,{"$f":"IR70","v":0},null,null,null,null,{"$f":"IF(EX295+FE295=0,\"\",\":\")","v":""},null,{"$f":"IS70","v":0},null,null,null,null,{"$f":"IR71","v":0},null,null,null,null,{"$f":"IF(FJ295+FQ295=0,\"\",\":\")","v":""},null,{"$f":"IS71","v":0},null,null,null,null,{"$f":"IR72","v":0},null,null,null,null,{"$f":"IF(FV295+GC295=0,\"\",\":\")","v":""},null,{"$f":"IS72","v":0}]
[]
[]
[]
[null,null,null,null,null,null,null,null,null,{"$f":"IR73","v":0},null,null,null,null,{"$f":"IF(J299+Q299=0,\"\",\":\")","v":""},null,{"$f":"IS73","v":0},null,null,null,null,{"$f":"IR74","v":0},null,null,null,null,{"$f":"IF(V299+AC299=0,\"\",\":\")","v":""},null,{"$f":"IS74","v":0},null,null,null,null,{"$f":"IR75","v":0},null,null,null,null,{"$f":"IF(AH299+AO299=0,\"\",\":\")","v":""},null,{"$f":"IS75","v":0},null,null,null,null,{"$f":"IR76","v":0},null,null,null,null,{"$f":"IF(AT299+BA299=0,\"\",\":\")","v":""},null,{"$f":"IS76","v":0},null,null,null,null,{"$f":"IR77","v":0},null,null,null,null,{"$f":"IF(BF299+BM299=0,\"\",\":\")","v":""},null,{"$f":"IS77","v":0},null,null,null,null,{"$f":"IR78","v":0},null,null,null,null,{"$f":"IF(BR299+BY299=0,\"\",\":\")","v":""},null,{"$f":"IS78","v":0},null,null,null,null,{"$f":"IR79","v":0},null,null,null,null,{"$f":"IF(CD299+CK299=0,\"\",\":\")","v":""},null,{"$f":"IS79","v":0},null,null,null,null,{"$f":"IR80","v":0},null,null,null,null,{"$f":"IF(CP299+CW299=0,\"\",\":\")","v":""},null,{"$f":"IS80","v":0},null,null,null,null,{"$f":"IR81","v":0},null,null,null,null,{"$f":"IF(DB299+DI299=0,\"\",\":\")","v":""},null,{"$f":"IS81","v":0},null,null,null,null,{"$f":"IR82","v":0},null,null,null,null,{"$f":"IF(DN299+DU299=0,\"\",\":\")","v":""},null,{"$f":"IS82","v":0},null,null,null,null,{"$f":"IR83","v":0},null,null,null,null,{"$f":"IF(DZ299+EG299=0,\"\",\":\")","v":""},null,{"$f":"IS83","v":0},null,null,null,null,{"$f":"IR84","v":0},null,null,null,null,{"$f":"IF(EL299+ES299=0,\"\",\":\")","v":""},null,{"$f":"IS84","v":0},null,null,null,null,{"$f":"IR85","v":0},null,null,null,null,{"$f":"IF(EX299+FE299=0,\"\",\":\")","v":""},null,{"$f":"IS85","v":0},null,null,null,null,{"$f":"IR86","v":0},null,null,null,null,{"$f":"IF(FJ299+FQ299=0,\"\",\":\")","v":""},null,{"$f":"IS86","v":0},null,null,null,null,{"$f":"IR87","v":0},null,null,null,null,{"$f":"IF(FV299+GC299=0,\"\",\":\")","v":""},null,{"$f":"IS87","v":0}]
[]
[]
[]
[null,null,null,null,null,null,null,null,null,null,null,null,null,null,null,null,null,null,null,null,null,null,null,null,null,null,null,null,null,null,null,null,null,null,null,null,null,null,null,null,null,null,null,null,null,null,null,null,null,null,null,null,null,null,null,null,null,null,null,null,null,null,null,null,null,null,null,null,null,null,null,null,null,null,null,null,null,null,null,null,null,null,null,null,null,null,null,null,null,null,null,null,null,null,null,null,null,null,null,null,null,null,null,null,null,null,null,null,null,null,null,null,null,null,null,null,null,null,null,null,null,null,null,null,null,null,null,null,null,null,null,null,null,null,null,null,null,null,null,null,null,{"$f":"IR88","v":0},null,null,null,null,{"$f":"IF(EL303+ES303=0,\"\",\":\")","v":""},null,{"$f":"IS88","v":0},null,null,null,null,{"$f":"IR89","v":0},null,null,null,null,{"$f":"IF(EX303+FE303=0,\"\",\":\")","v":""},null,{"$f":"IS89","v":0},null,null,null,null,{"$f":"IR90","v":0},null,null,null,null,{"$f":"IF(FJ303+FQ303=0,\"\",\":\")","v":""},null,{"$f":"IS90","v":0},null,null,null,null,{"$f":"IR91","v":0},null,null,null,null,{"$f":"IF(FV303+GC303=0,\"\",\":\")","v":""},null,{"$f":"IS91","v":0}]
[]
[]
[]
[null,null,null,null,"Suci:",null,null,null,null,null,null,null,null,null,null,null,"1.",null,null,null,null,null,{"$f":"IF(PODACI!N24=\"\",\"\",PROPER(PODACI!N24))","v":""},null,null,null,null,null,null,null,null,null,null,null,null,null,null,null,null,null,null,null,null,null,null,null,null,null,null,null,null,null,null,null,null,null,null,null,null,null,null,null,null,null,null,"iz",null,null,null,null,{"$f":"IF(PODACI!P24=\"\",\"\",PROPER(PODACI!P24))","v":""},null,null,null,null,null,null,null,null,null,null,null,null,null,null,null,null,null,null,null,null,null,null,null,null,null,null,null,null,null,null,null,null,null,null,null,null,null,null,null,null,null,null,null,null,null,null,null,null,null,null,null,null,null,null,null,null,null,null,null,null,null,null,null,null,null,null,null,null,null,null,{"$f":"IR92","v":0},null,null,null,null,{"$f":"IF(EL307+ES307=0,\"\",\":\")","v":""},null,{"$f":"IS92","v":0},null,null,null,null,{"$f":"IR93","v":0},null,null,null,null,{"$f":"IF(EX307+FE307=0,\"\",\":\")","v":""},null,{"$f":"IS93","v":0},null,null,null,null,{"$f":"IR94","v":0},null,null,null,null,{"$f":"IF(FJ307+FQ307=0,\"\",\":\")","v":""},null,{"$f":"IS94","v":0},null,null,null,null,{"$f":"IR95","v":0},null,null,null,null,{"$f":"IF(FV307+GC307=0,\"\",\":\")","v":""},null,{"$f":"IS95","v":0}]
[]
[]
[]
[null,null,null,null,null,null,null,null,null,null,null,null,null,null,null,null,null,null,null,null,null,null,null,null,null,null,null,null,null,null,null,null,null,null,null,null,null,null,null,null,null,null,null,null,null,null,null,null,null,null,null,null,null,null,null,null,null,null,null,null,null,null,null,null,null,null,null,null,null,null,null,null,null,null,null,null,null,null,null,null,null,null,null,null,null,null,null,null,null,null,null,null,null,null,null,null,null,null,null,null,null,null,null,null,null,null,null,null,null,null,null,null,null,null,null,null,null,null,null,null,null,null,null,null,null,null,null,null,null,null,null,null,null,null,null,null,null,null,null,null,null,{"$f":"IR96","v":0},null,null,null,null,{"$f":"IF(EL311+ES311=0,\"\",\":\")","v":""},null,{"$f":"IS96","v":0},null,null,null,null,{"$f":"IR97","v":0},null,null,null,null,{"$f":"IF(EX311+FE311=0,\"\",\":\")","v":""},null,{"$f":"IS97","v":0},null,null,null,null,{"$f":"IR98","v":0},null,null,null,null,{"$f":"IF(FJ311+FQ311=0,\"\",\":\")","v":""},null,{"$f":"IS98","v":0},null,null,null,null,{"$f":"IR99","v":0},null,null,null,null,{"$f":"IF(FV311+GC311=0,\"\",\":\")","v":""},null,{"$f":"IS99","v":0}]
[]
[null,null,null,null,null,null,null,null,null,null,null,null,null,null,null,null,"2.",null,null,null,null,null,{"$f":"IF(PODACI!N25=\"\",\"\",PROPER(PODACI!N25))","v":""},null,null,null,null,null,null,null,null,null,null,null,null,null,null,null,null,null,null,null,null,null,null,null,null,null,null,null,null,null,null,null,null,null,null,null,null,null,null,null,null,null,null,"iz",null,null,null,null,{"$f":"IF(PODACI!P25=\"\",\"\",PROPER(PODACI!P25))","v":""}]
[]
[]
[]
[]
[]
[null,null,null,null,"Nadzornik:",null,null,null,null,null,null,null,null,null,null,null,null,null,null,null,null,null,{"$f":"IF(PODACI!N26=\"\",\"\",PROPER(PODACI!N26))","v":""},null,null,null,null,null,null,null,null,null,null,null,null,null,null,null,null,null,null,null,null,null,null,null,null,null,null,null,null,null,null,null,null,null,null,null,null,null,null,null,null,null,null,"iz",null,null,null,null,{"$f":"IF(PODACI!P26=\"\",\"\",PROPER(PODACI!P26))","v":""},null,null,null,null,null,null,null,null,null,null,null,null,null,null,null,null,null,null,null,null,null,null,null,null,null,null,null,null,null,null,null,null,null,null,null,null,null,null,null,null,null,null,null,null,null,null,null,null,null,null,null,null,null,null,null,null,null,null,null,null,null,null,null,null,null,null,null,null,null,null,null,null,null,null,null,"Dodatno\nizvješće slijedi",null,null,null,null,null,null,null,null,null,null,null,null,null,null,null,null,null,null,null,null,null,"DA",null,null,null,null,null,null,null,null,null,null,null,null,null,"NE"]
[]
[]
[]
[]
[]
[null,null,null,null,"Mjer. vremena:",null,null,null,null,null,null,null,null,null,null,null,null,null,null,null,null,null,{"$f":"IF(PODACI!N28=\"\",\"\",PROPER(PODACI!N28))","v":""},null,null,null,null,null,null,null,null,null,null,null,null,null,null,null,null,null,null,null,null,null,null,null,null,null,null,null,null,null,null,null,null,null,null,null,null,null,null,null,null,null,null,"iz",null,null,null,null,{"$f":"IF(PODACI!P28=\"\",\"\",PROPER(PODACI!P28))","v":""},null,null,null,null,null,null,null,null,null,null,null,null,null,null,null,null,null,null,null,null,null,null,null,null,null,null,null,null,null,null,null,null,null,null,null,null,null,null,null,null,null,null,null,null,null,null,null,null,null,null,null,null,null,null,null,null,null,null,null,null,null,null,null,null,null,null,null,null,null,null,null,null,null,null,null,null,null,null,{"$f":"IF(EL325+EV325=0,\"\",\":\")","v":""},null,null,null,null,null,null,null,null,null,null,null,{"$f":"IF(FA325+FH325=0,\"\",\":\")","v":""},null,null,null,null,null,null,null,null,null,null,null,{"$f":"IF(FM325+FT325=0,\"\",\":\")","v":""}]
[]
[]
[]
[null,null,null,null,null,null,null,null,null,null,null,null,null,null,null,null,null,null,null,null,null,null,null,null,null,null,null,null,null,null,null,null,null,null,null,null,null,null,null,null,null,null,null,null,null,null,null,null,null,null,null,null,null,null,null,null,null,null,null,null,null,null,null,null,null,null,null,null,null,null,null,null,null,null,null,null,null,null,null,null,null,null,null,null,null,null,null,null,null,null,null,null,null,null,null,null,null,null,null,null,null,null,null,null,null,null,null,null,null,null,null,null,null,null,null,null,null,null,null,null,null,null,null,null,null,null,null,null,null,null,null,null,null,null,null,null,null,null,null,null,null,null,null,null,null,null,"Broj privitaka",null,null,null,null,null,null,null,null,null,null,null,null,null,null,null,null,null,null,null,null,null,null,null,null,null,null,{"$f":"IF(FM329+FT329=0,\"\",\":\")","v":""},{"$f":"IF(ISBLANK(GG319),\"\",0)","v":""}]
[null,null,null,null,"Zapisničar:",null,null,null,null,null,null,null,null,null,null,null,null,null,null,null,null,null,{"$f":"IF(PODACI!N29=\"\",\"\",PROPER(PODACI!N29))","v":""},null,null,null,null,null,null,null,null,null,null,null,null,null,null,null,null,null,null,null,null,null,null,null,null,null,null,null,null,null,null,null,null,null,null,null,null,null,null,null,null,null,null,"iz",null,null,null,null,{"$f":"IF(PODACI!P29=\"\",\"\",PROPER(PODACI!P29))","v":""}]
[]
[]
[]
[]
[]
[]
[]
[]
[]
[]
[]
[]
[]
[]
[]
[]
[]
[]
[]
[]
[]
[]
[]
[]
[]
[]
[]
[]
[]
[]
[]
[]
[]
[]
[]
[]
[]
[]
[]
[]
[]
[]
[]
[]
[]
[]
[]
[]
[]
[]
[]
[null,null,null,"Razvoj osnovne verzije: tomislav.vratic@gmail.com"]
[]
[]
[null,null,null,"Razvoj naprednih funkcionalnosti: nevena.krajcar@gmail.com"]

{"sheet":"PODACI","index":1,"n_rows":30,"n_cols":31,"rows_kept":30,"cut":false,"hidden":false,"merged":[[28,13,28,14],[11,13,11,14],[0,1,0,4],[0,6,0,9],[20,13,20,14],[21,13,21,14],[8,13,8,14],[9,13,9,14],[10,13,10,14],[12,13,12,14],[13,13,13,14],[17,13,17,14],[22,13,22,14],[23,13,23,14],[19,13,19,14],[27,13,27,14],[15,13,15,14],[18,13,18,14],[24,13,24,14],[25,13,25,14],[26,13,26,14],[16,13,16,14]]}
[null,"DOMAĆI",null,null,null,null,"GOSTI"]
[null,null,"Mat.br","Ime i prezime","Dres\nbroj",null,null,"Mat.br","Ime i prezime","Dres\nbroj"]
[null,"Igrač",null,{"$f":"IF(ISNA(VLOOKUP(C3,Igraci!$A$1:$B$53078,2,FALSE)=TRUE),\"\",VLOOKUP(C3,Igraci!$A$1:$B$53078,2,FALSE))","v":""},{"$f":"IF(ISNA(VLOOKUP(C3,Igraci!$A$1:$C$53078,3,FALSE)=TRUE),\"\",VLOOKUP(C3,Igraci!$A$1:$C$53078,3,FALSE))","v":""},null,"Igrač",null,{"$f":"IF(ISNA(VLOOKUP(H3,Igraci!$A$1:$B$53078,2,FALSE)=TRUE),\"\",VLOOKUP(H3,Igraci!$A$1:$B$53078,2,FALSE))","v":""},{"$f":"IF(ISNA(VLOOKUP(H3,Igraci!$A$1:$C$53078,3,FALSE)=TRUE),\"\",VLOOKUP(H3,Igraci!$A$1:$C$53078,3,FALSE))","v":""},null,"PERIOD IGRE","2 ×",30,"minuta",null,null,null,"Uzrast","Spol","Vrsta","Uloga","E-mail voditelja",".","Natjecanje","Dvorana",null,"Igrač",null,{"$f":"IF(ISNA(VLOOKUP(AC3,Igraci!$A$1:$B$53078,2,FALSE)=TRUE),\"\",VLOOKUP(AC3,Igraci!$A$1:$B$53078,2,FALSE))","v":""},{"$f":"IF(ISNA(VLOOKUP(AC3,Igraci!$A$1:$C$53078,3,FALSE)=TRUE),\"\",VLOOKUP(AC3,Igraci!$A$1:$C$53078,3,FALSE))","v":""}]
[null,"Igrač",null,{"$f":"IF(ISNA(VLOOKUP(C4,Igraci!$A$1:$B$53078,2,FALSE)=TRUE),\"\",VLOOKUP(C4,Igraci!$A$1:$B$53078,2,FALSE))","v":""},{"$f":"IF(ISNA(VLOOKUP(C4,Igraci!$A$1:$C$53078,3,FALSE)=TRUE),\"\",VLOOKUP(C4,Igraci!$A$1:$C$53078,3,FALSE))","v":""},null,"Igrač",null,{"$f":"IF(ISNA(VLOOKUP(H4,Igraci!$A$1:$B$53078,2,FALSE)=TRUE),\"\",VLOOKUP(H4,Igraci!$A$1:$B$53078,2,FALSE))","v":""},{"$f":"IF(ISNA(VLOOKUP(H4,Igraci!$A$1:$C$53078,3,FALSE)=TRUE),\"\",VLOOKUP(H4,Igraci!$A$1:$C$53078,3,FALSE))","v":""},null,null,null,null,null,null,null,"Igrač","Seniori","Muški","Prvenstvo","Sl. predst. (A)","e-mail: b.filipovic@hrs.hr",".",null,null,null,"Igrač",null,{"$f":"IF(ISNA(VLOOKUP(AC4,Igraci!$A$1:$B$53078,2,FALSE)=TRUE),\"\",VLOOKUP(AC4,Igraci!$A$1:$B$53078,2,FALSE))","v":""},{"$f":"IF(ISNA(VLOOKUP(AC4,Igraci!$A$1:$C$53078,3,FALSE)=TRUE),\"\",VLOOKUP(AC4,Igraci!$A$1:$C$53078,3,FALSE))","v":""}]
[null,"Igrač",null,{"$f":"IF(ISNA(VLOOKUP(C5,Igraci!$A$1:$B$53078,2,FALSE)=TRUE),\"\",VLOOKUP(C5,Igraci!$A$1:$B$53078,2,FALSE))","v":""},{"$f":"IF(ISNA(VLOOKUP(C5,Igraci!$A$1:$C$53078,3,FALSE)=TRUE),\"\",VLOOKUP(C5,Igraci!$A$1:$C$53078,3,FALSE))","v":""},null,"Igrač",null,{"$f":"IF(ISNA(VLOOKUP(H5,Igraci!$A$1:$B$53078,2,FALSE)=TRUE),\"\",VLOOKUP(H5,Igraci!$A$1:$B$53078,2,FALSE))","v":""},{"$f":"IF(ISNA(VLOOKUP(H5,Igraci!$A$1:$C$53078,3,FALSE)=TRUE),\"\",VLOOKUP(H5,Igraci!$A$1:$C$53078,3,FALSE))","v":""},null,"SPOL",null,"Spol",null,"e-mail: b.filipovic@hrs.hr","  VODITELJ LIGE","Golman","Juniori","Žene","Kup","Trener (B)","e-mail: t.lukic@hrs.hr",".",null,null,null,"Igrač",null,{"$f":"IF(ISNA(VLOOKUP(AC5,Igraci!$A$1:$B$53078,2,FALSE)=TRUE),\"\",VLOOKUP(AC5,Igraci!$A$1:$B$53078,2,FALSE))","v":""},{"$f":"IF(ISNA(VLOOKUP(AC5,Igraci!$A$1:$C$53078,3,FALSE)=TRUE),\"\",VLOOKUP(AC5,Igraci!$A$1:$C$53078,3,FALSE))","v":""}]
[null,"Igrač",null,{"$f":"IF(ISNA(VLOOKUP(C6,Igraci!$A$1:$B$53078,2,FALSE)=TRUE),\"\",VLOOKUP(C6,Igraci!$A$1:$B$53078,2,FALSE))","v":""},{"$f":"IF(ISNA(VLOOKUP(C6,Igraci!$A$1:$C$53078,3,FALSE)=TRUE),\"\",VLOOKUP(C6,Igraci!$A$1:$C$53078,3,FALSE))","v":""},null,"Igrač",null,{"$f":"IF(ISNA(VLOOKUP(H6,Igraci!$A$1:$B$53078,2,FALSE)=TRUE),\"\",VLOOKUP(H6,Igraci!$A$1:$B$53078,2,FALSE))","v":""},{"$f":"IF(ISNA(VLOOKUP(H6,Igraci!$A$1:$C$53078,3,FALSE)=TRUE),\"\",VLOOKUP(H6,Igraci!$A$1:$C$53078,3,FALSE))","v":""},null,"UZRAST",null,"Uzrast",null,null,null,null,"Kadeti",null,"Turnir","Pom. trener (C)",null,".",null,null,null,"Igrač",null,{"$f":"IF(ISNA(VLOOKUP(AC6,Igraci!$A$1:$B$53078,2,FALSE)=TRUE),\"\",VLOOKUP(AC6,Igraci!$A$1:$B$53078,2,FALSE))","v":""},{"$f":"IF(ISNA(VLOOKUP(AC6,Igraci!$A$1:$C$53078,3,FALSE)=TRUE),\"\",VLOOKUP(AC6,Igraci!$A$1:$C$53078,3,FALSE))","v":""}]
[null,"Igrač",null,{"$f":"IF(ISNA(VLOOKUP(C7,Igraci!$A$1:$B$53078,2,FALSE)=TRUE),\"\",VLOOKUP(C7,Igraci!$A$1:$B$53078,2,FALSE))","v":""},{"$f":"IF(ISNA(VLOOKUP(C7,Igraci!$A$1:$C$53078,3,FALSE)=TRUE),\"\",VLOOKUP(C7,Igraci!$A$1:$C$53078,3,FALSE))","v":""},null,"Igrač",null,{"$f":"IF(ISNA(VLOOKUP(H7,Igraci!$A$1:$B$53078,2,FALSE)=TRUE),\"\",VLOOKUP(H7,Igraci!$A$1:$B$53078,2,FALSE))","v":""},{"$f":"IF(ISNA(VLOOKUP(H7,Igraci!$A$1:$C$53078,3,FALSE)=TRUE),\"\",VLOOKUP(H7,Igraci!$A$1:$C$53078,3,FALSE))","v":""},null,"VRSTA UTAKMICE",null,"Vrsta",null,null,null,null,"Mlađi kadeti",null,"Trening","Tehniko (C)",null,".",null,null,null,"Igrač",null,{"$f":"IF(ISNA(VLOOKUP(AC7,Igraci!$A$1:$B$53078,2,FALSE)=TRUE),\"\",VLOOKUP(AC7,Igraci!$A$1:$B$53078,2,FALSE))","v":""},{"$f":"IF(ISNA(VLOOKUP(AC7,Igraci!$A$1:$C$53078,3,FALSE)=TRUE),\"\",VLOOKUP(AC7,Igraci!$A$1:$C$53078,3,FALSE))","v":""}]
[null,"Igrač",null,{"$f":"IF(ISNA(VLOOKUP(C8,Igraci!$A$1:$B$53078,2,FALSE)=TRUE),\"\",VLOOKUP(C8,Igraci!$A$1:$B$53078,2,FALSE))","v":""},{"$f":"IF(ISNA(VLOOKUP(C8,Igraci!$A$1:$C$53078,3,FALSE)=TRUE),\"\",VLOOKUP(C8,Igraci!$A$1:$C$53078,3,FALSE))","v":""},null,"Igrač",null,{"$f":"IF(ISNA(VLOOKUP(H8,Igraci!$A$1:$B$53078,2,FALSE)=TRUE),\"\",VLOOKUP(H8,Igraci!$A$1:$B$53078,2,FALSE))","v":""},{"$f":"IF(ISNA(VLOOKUP(H8,Igraci!$A$1:$C$53078,3,FALSE)=TRUE),\"\",VLOOKUP(H8,Igraci!$A$1:$C$53078,3,FALSE))","v":""},null,null,null,null,null,null,null,null,"Dječaci A",null,null,"Tehniko (D)",null,".",null,null,null,"Igrač",null,{"$f":"IF(ISNA(VLOOKUP(AC8,Igraci!$A$1:$B$53078,2,FALSE)=TRUE),\"\",VLOOKUP(AC8,Igraci!$A$1:$B$53078,2,FALSE))","v":""},{"$f":"IF(ISNA(VLOOKUP(AC8,Igraci!$A$1:$C$53078,3,FALSE)=TRUE),\"\",VLOOKUP(AC8,Igraci!$A$1:$C$53078,3,FALSE))","v":""}]
[null,"Igrač",null,{"$f":"IF(ISNA(VLOOKUP(C9,Igraci!$A$1:$B$53078,2,FALSE)=TRUE),\"\",VLOOKUP(C9,Igraci!$A$1:$B$53078,2,FALSE))","v":""},{"$f":"IF(ISNA(VLOOKUP(C9,Igraci!$A$1:$C$53078,3,FALSE)=TRUE),\"\",VLOOKUP(C9,Igraci!$A$1:$C$53078,3,FALSE))","v":""},null,"Igrač",null,{"$f":"IF(ISNA(VLOOKUP(H9,Igraci!$A$1:$B$53078,2,FALSE)=TRUE),\"\",VLOOKUP(H9,Igraci!$A$1:$B$53078,2,FALSE))","v":""},{"$f":"IF(ISNA(VLOOKUP(H9,Igraci!$A$1:$C$53078,3,FALSE)=TRUE),\"\",VLOOKUP(H9,Igraci!$A$1:$C$53078,3,FALSE))","v":""},null,null,"NATJECANJE  ",null,null,null,null,null,"Djevojčice A",null,null,"Fizioter. (C)",null,null,null,null,null,"Igrač",null,{"$f":"IF(ISNA(VLOOKUP(AC9,Igraci!$A$1:$B$53078,2,FALSE)=TRUE),\"\",VLOOKUP(AC9,Igraci!$A$1:$B$53078,2,FALSE))","v":""},{"$f":"IF(ISNA(VLOOKUP(AC9,Igraci!$A$1:$C$53078,3,FALSE)=TRUE),\"\",VLOOKUP(AC9,Igraci!$A$1:$C$53078,3,FALSE))","v":""}]
[null,"Igrač",null,{"$f":"IF(ISNA(VLOOKUP(C10,Igraci!$A$1:$B$53078,2,FALSE)=TRUE),\"\",VLOOKUP(C10,Igraci!$A$1:$B$53078,2,FALSE))","v":""},{"$f":"IF(ISNA(VLOOKUP(C10,Igraci!$A$1:$C$53078,3,FALSE)=TRUE),\"\",VLOOKUP(C10,Igraci!$A$1:$C$53078,3,FALSE))","v":""},null,"Igrač",null,{"$f":"IF(ISNA(VLOOKUP(H10,Igraci!$A$1:$B$53078,2,FALSE)=TRUE),\"\",VLOOKUP(H10,Igraci!$A$1:$B$53078,2,FALSE))","v":""},{"$f":"IF(ISNA(VLOOKUP(H10,Igraci!$A$1:$C$53078,3,FALSE)=TRUE),\"\",VLOOKUP(H10,Igraci!$A$1:$C$53078,3,FALSE))","v":""},null,null,"BROJ UTAKMICE  ",null,null,{"$f":"IF(N10=\"\",\"\",( \" (br. utakmice \" & N10 & \")\"))","v":""},null,null,"Dječaci B",null,null,"Fizioter. (D)",null,null,null,null,null,"Igrač",null,{"$f":"IF(ISNA(VLOOKUP(AC10,Igraci!$A$1:$B$53078,2,FALSE)=TRUE),\"\",VLOOKUP(AC10,Igraci!$A$1:$B$53078,2,FALSE))","v":""},{"$f":"IF(ISNA(VLOOKUP(AC10,Igraci!$A$1:$C$53078,3,FALSE)=TRUE),\"\",VLOOKUP(AC10,Igraci!$A$1:$C$53078,3,FALSE))","v":""}]
[null,"Igrač",null,{"$f":"IF(ISNA(VLOOKUP(C11,Igraci!$A$1:$B$53078,2,FALSE)=TRUE),\"\",VLOOKUP(C11,Igraci!$A$1:$B$53078,2,FALSE))","v":""},{"$f":"IF(ISNA(VLOOKUP(C11,Igraci!$A$1:$C$53078,3,FALSE)=TRUE),\"\",VLOOKUP(C11,Igraci!$A$1:$C$53078,3,FALSE))","v":""},null,"Igrač",null,{"$f":"IF(ISNA(VLOOKUP(H11,Igraci!$A$1:$B$53078,2,FALSE)=TRUE),\"\",VLOOKUP(H11,Igraci!$A$1:$B$53078,2,FALSE))","v":""},{"$f":"IF(ISNA(VLOOKUP(H11,Igraci!$A$1:$C$53078,3,FALSE)=TRUE),\"\",VLOOKUP(H11,Igraci!$A$1:$C$53078,3,FALSE))","v":""},null,null,"kolo",null,null,{"$f":"IF(N11=\"\",\" \",(N9&\", \"&N11&\". \" & M11 &P10))","v":" "},null,null,"Djevojčice B",null,null,null,null,null,null,null,null,"Igrač",null,{"$f":"IF(ISNA(VLOOKUP(AC11,Igraci!$A$1:$B$53078,2,FALSE)=TRUE),\"\",VLOOKUP(AC11,Igraci!$A$1:$B$53078,2,FALSE))","v":""},{"$f":"IF(ISNA(VLOOKUP(AC11,Igraci!$A$1:$C$53078,3,FALSE)=TRUE),\"\",VLOOKUP(AC11,Igraci!$A$1:$C$53078,3,FALSE))","v":""}]
[null,"Igrač",null,{"$f":"IF(ISNA(VLOOKUP(C12,Igraci!$A$1:$B$53078,2,FALSE)=TRUE),\"\",VLOOKUP(C12,Igraci!$A$1:$B$53078,2,FALSE))","v":""},{"$f":"IF(ISNA(VLOOKUP(C12,Igraci!$A$1:$C$53078,3,FALSE)=TRUE),\"\",VLOOKUP(C12,Igraci!$A$1:$C$53078,3,FALSE))","v":""},null,"Igrač",null,{"$f":"IF(ISNA(VLOOKUP(H12,Igraci!$A$1:$B$53078,2,FALSE)=TRUE),\"\",VLOOKUP(H12,Igraci!$A$1:$B$53078,2,FALSE))","v":""},{"$f":"IF(ISNA(VLOOKUP(H12,Igraci!$A$1:$C$53078,3,FALSE)=TRUE),\"\",VLOOKUP(H12,Igraci!$A$1:$C$53078,3,FALSE))","v":""},null,null,"Kolo/Krug (odabrati)",null,null,null,null,null,null,null,null,null,null,null,null,null,null,"Igrač",null,{"$f":"IF(ISNA(VLOOKUP(AC12,Igraci!$A$1:$B$53078,2,FALSE)=TRUE),\"\",VLOOKUP(AC12,Igraci!$A$1:$B$53078,2,FALSE))","v":""},{"$f":"IF(ISNA(VLOOKUP(AC12,Igraci!$A$1:$C$53078,3,FALSE)=TRUE),\"\",VLOOKUP(AC12,Igraci!$A$1:$C$53078,3,FALSE))","v":""}]
[null,"Igrač",null,{"$f":"IF(ISNA(VLOOKUP(C13,Igraci!$A$1:$B$53078,2,FALSE)=TRUE),\"\",VLOOKUP(C13,Igraci!$A$1:$B$53078,2,FALSE))","v":""},{"$f":"IF(ISNA(VLOOKUP(C13,Igraci!$A$1:$C$53078,3,FALSE)=TRUE),\"\",VLOOKUP(C13,Igraci!$A$1:$C$53078,3,FALSE))","v":""},null,"Igrač",null,{"$f":"IF(ISNA(VLOOKUP(H13,Igraci!$A$1:$B$53078,2,FALSE)=TRUE),\"\",VLOOKUP(H13,Igraci!$A$1:$B$53078,2,FALSE))","v":""},{"$f":"IF(ISNA(VLOOKUP(H13,Igraci!$A$1:$C$53078,3,FALSE)=TRUE),\"\",VLOOKUP(H13,Igraci!$A$1:$C$53078,3,FALSE))","v":""},null,null,"DOMAĆI  ",null,null,null,null,null,null,null,null,null,null,null,null,null,null,"Igrač",null,{"$f":"IF(ISNA(VLOOKUP(AC13,Igraci!$A$1:$B$53078,2,FALSE)=TRUE),\"\",VLOOKUP(AC13,Igraci!$A$1:$B$53078,2,FALSE))","v":""},{"$f":"IF(ISNA(VLOOKUP(AC13,Igraci!$A$1:$C$53078,3,FALSE)=TRUE),\"\",VLOOKUP(AC13,Igraci!$A$1:$C$53078,3,FALSE))","v":""}]
[null,"Igrač",null,{"$f":"IF(ISNA(VLOOKUP(C14,Igraci!$A$1:$B$53078,2,FALSE)=TRUE),\"\",VLOOKUP(C14,Igraci!$A$1:$B$53078,2,FALSE))","v":""},{"$f":"IF(ISNA(VLOOKUP(C14,Igraci!$A$1:$C$53078,3,FALSE)=TRUE),\"\",VLOOKUP(C14,Igraci!$A$1:$C$53078,3,FALSE))","v":""},null,"Igrač",null,{"$f":"IF(ISNA(VLOOKUP(H14,Igraci!$A$1:$B$53078,2,FALSE)=TRUE),\"\",VLOOKUP(H14,Igraci!$A$1:$B$53078,2,FALSE))","v":""},{"$f":"IF(ISNA(VLOOKUP(H14,Igraci!$A$1:$C$53078,3,FALSE)=TRUE),\"\",VLOOKUP(H14,Igraci!$A$1:$C$53078,3,FALSE))","v":""},null,null,"GOSTI  ",null,null,null,null,null,null,null,null,null,null,null,null,null,null,"Igrač",null,{"$f":"IF(ISNA(VLOOKUP(AC14,Igraci!$A$1:$B$53078,2,FALSE)=TRUE),\"\",VLOOKUP(AC14,Igraci!$A$1:$B$53078,2,FALSE))","v":""},{"$f":"IF(ISNA(VLOOKUP(AC14,Igraci!$A$1:$C$53078,3,FALSE)=TRUE),\"\",VLOOKUP(AC14,Igraci!$A$1:$C$53078,3,FALSE))","v":""}]
[null,"Igrač",null,{"$f":"IF(ISNA(VLOOKUP(C15,Igraci!$A$1:$B$53078,2,FALSE)=TRUE),\"\",VLOOKUP(C15,Igraci!$A$1:$B$53078,2,FALSE))","v":""},{"$f":"IF(ISNA(VLOOKUP(C15,Igraci!$A$1:$C$53078,3,FALSE)=TRUE),\"\",VLOOKUP(C15,Igraci!$A$1:$C$53078,3,FALSE))","v":""},null,"Igrač",null,{"$f":"IF(ISNA(VLOOKUP(H15,Igraci!$A$1:$B$53078,2,FALSE)=TRUE),\"\",VLOOKUP(H15,Igraci!$A$1:$B$53078,2,FALSE))","v":""},{"$f":"IF(ISNA(VLOOKUP(H15,Igraci!$A$1:$C$53078,3,FALSE)=TRUE),\"\",VLOOKUP(H15,Igraci!$A$1:$C$53078,3,FALSE))","v":""},null,null,null,null,null,null,null,null,null,null,null,null,null,null,null,null,null,"Igrač",null,{"$f":"IF(ISNA(VLOOKUP(AC15,Igraci!$A$1:$B$53078,2,FALSE)=TRUE),\"\",VLOOKUP(AC15,Igraci!$A$1:$B$53078,2,FALSE))","v":""},{"$f":"IF(ISNA(VLOOKUP(AC15,Igraci!$A$1:$C$53078,3,FALSE)=TRUE),\"\",VLOOKUP(AC15,Igraci!$A$1:$C$53078,3,FALSE))","v":""}]
[null,"Igrač",null,{"$f":"IF(ISNA(VLOOKUP(C16,Igraci!$A$1:$B$53078,2,FALSE)=TRUE),\"\",VLOOKUP(C16,Igraci!$A$1:$B$53078,2,FALSE))","v":""},{"$f":"IF(ISNA(VLOOKUP(C16,Igraci!$A$1:$C$53078,3,FALSE)=TRUE),\"\",VLOOKUP(C16,Igraci!$A$1:$C$53078,3,FALSE))","v":""},null,"Igrač",null,{"$f":"IF(ISNA(VLOOKUP(H16,Igraci!$A$1:$B$53078,2,FALSE)=TRUE),\"\",VLOOKUP(H16,Igraci!$A$1:$B$53078,2,FALSE))","v":""},{"$f":"IF(ISNA(VLOOKUP(H16,Igraci!$A$1:$C$53078,3,FALSE)=TRUE),\"\",VLOOKUP(H16,Igraci!$A$1:$C$53078,3,FALSE))","v":""},null,null,"GRAD  ",null,null,null,null,null,null,null,null,null,null,null,null,null,null,"Igrač",null,{"$f":"IF(ISNA(VLOOKUP(AC16,Igraci!$A$1:$B$53078,2,FALSE)=TRUE),\"\",VLOOKUP(AC16,Igraci!$A$1:$B$53078,2,FALSE))","v":""},{"$f":"IF(ISNA(VLOOKUP(AC16,Igraci!$A$1:$C$53078,3,FALSE)=TRUE),\"\",VLOOKUP(AC16,Igraci!$A$1:$C$53078,3,FALSE))","v":""}]
[null,"Igrač",null,{"$f":"IF(ISNA(VLOOKUP(C17,Igraci!$A$1:$B$53078,2,FALSE)=TRUE),\"\",VLOOKUP(C17,Igraci!$A$1:$B$53078,2,FALSE))","v":""},{"$f":"IF(ISNA(VLOOKUP(C17,Igraci!$A$1:$C$53078,3,FALSE)=TRUE),\"\",VLOOKUP(C17,Igraci!$A$1:$C$53078,3,FALSE))","v":""},null,"Igrač",null,{"$f":"IF(ISNA(VLOOKUP(H17,Igraci!$A$1:$B$53078,2,FALSE)=TRUE),\"\",VLOOKUP(H17,Igraci!$A$1:$B$53078,2,FALSE))","v":""},{"$f":"IF(ISNA(VLOOKUP(H17,Igraci!$A$1:$C$53078,3,FALSE)=TRUE),\"\",VLOOKUP(H17,Igraci!$A$1:$C$53078,3,FALSE))","v":""},null,null,"DVORANA  ",null,null,null,null,null,null,null,null,null,null,null,null,null,null,"Igrač",null,{"$f":"IF(ISNA(VLOOKUP(AC17,Igraci!$A$1:$B$53078,2,FALSE)=TRUE),\"\",VLOOKUP(AC17,Igraci!$A$1:$B$53078,2,FALSE))","v":""},{"$f":"IF(ISNA(VLOOKUP(AC17,Igraci!$A$1:$C$53078,3,FALSE)=TRUE),\"\",VLOOKUP(AC17,Igraci!$A$1:$C$53078,3,FALSE))","v":""}]
[null,"Igrač",null,{"$f":"IF(ISNA(VLOOKUP(C18,Igraci!$A$1:$B$53078,2,FALSE)=TRUE),\"\",VLOOKUP(C18,Igraci!$A$1:$B$53078,2,FALSE))","v":""},{"$f":"IF(ISNA(VLOOKUP(C18,Igraci!$A$1:$C$53078,3,FALSE)=TRUE),\"\",VLOOKUP(C18,Igraci!$A$1:$C$53078,3,FALSE))","v":""},null,"Igrač",null,{"$f":"IF(ISNA(VLOOKUP(H18,Igraci!$A$1:$B$53078,2,FALSE)=TRUE),\"\",VLOOKUP(H18,Igraci!$A$1:$B$53078,2,FALSE))","v":""},{"$f":"IF(ISNA(VLOOKUP(H18,Igraci!$A$1:$C$53078,3,FALSE)=TRUE),\"\",VLOOKUP(H18,Igraci!$A$1:$C$53078,3,FALSE))","v":""},null,null,"DATUM  ",null,null,null,null,null,null,null,null,null,null,null,null,null,null,"Igrač",null,{"$f":"IF(ISNA(VLOOKUP(AC18,Igraci!$A$1:$B$53078,2,FALSE)=TRUE),\"\",VLOOKUP(AC18,Igraci!$A$1:$B$53078,2,FALSE))","v":""},{"$f":"IF(ISNA(VLOOKUP(AC18,Igraci!$A$1:$C$53078,3,FALSE)=TRUE),\"\",VLOOKUP(AC18,Igraci!$A$1:$C$53078,3,FALSE))","v":""}]
[null,null,null,null,null,null,null,null,null,null,null,null,"VRIJEME  "]
[null,null,"Mat.br.","Ime i prezime",null,null,null,"Mat.br","Ime i prezime",null,null,null,null,"Ime i prezime",null,"Broj OI/licence",null,null,null,null,null,null,null,null,null,null,null,"Sl. predst. (A)",null,{"$f":"IF(ISNA(VLOOKUP(AC20,Igraci!$A$1:$B$53078,2,FALSE)=TRUE),\"\",VLOOKUP(AC20,Igraci!$A$1:$B$53078,2,FALSE))","v":""}]
[null,"Sl. predst. (A)",null,{"$f":"IF(ISNA(VLOOKUP(C21,Igraci!$A$1:$B$53078,2,FALSE)=TRUE),\"\",VLOOKUP(C21,Igraci!$A$1:$B$53078,2,FALSE))","v":""},null,null,"Sl. predst. (A)",null,{"$f":"IF(ISNA(VLOOKUP(H21,Igraci!$A$1:$B$53078,2,FALSE)=TRUE),\"\",VLOOKUP(H21,Igraci!$A$1:$B$53078,2,FALSE))","v":""},null,null,null,"GL. DEŽURNI  ",null,null,null,null,null,"Utakmica",{"$f":"IF(N11=\"\",\" \",(N9&\", \"&N11&\". \" & M11&\" - \"&N13&\" - \"&N14 &P10))","v":" "},null,null,null,null,null,null,null,"Trener (B)",null,{"$f":"IF(ISNA(VLOOKUP(AC21,Igraci!$A$1:$B$53078,2,FALSE)=TRUE),\"\",VLOOKUP(AC21,Igraci!$A$1:$B$53078,2,FALSE))","v":""}]
[null,"Trener (B)",null,{"$f":"IF(ISNA(VLOOKUP(C22,Igraci!$A$1:$B$53078,2,FALSE)=TRUE),\"\",VLOOKUP(C22,Igraci!$A$1:$B$53078,2,FALSE))","v":""},null,null,"Trener (B)",null,{"$f":"IF(ISNA(VLOOKUP(H22,Igraci!$A$1:$B$53078,2,FALSE)=TRUE),\"\",VLOOKUP(H22,Igraci!$A$1:$B$53078,2,FALSE))","v":""},null,null,null,"LIJEČNIK  ",null,null,null,null,null,null,null,null,null,null,null,null,null,null,null,null,{"$f":"IF(ISNA(VLOOKUP(AC22,Igraci!$A$1:$B$53078,2,FALSE)=TRUE),\"\",VLOOKUP(AC22,Igraci!$A$1:$B$53078,2,FALSE))","v":""}]
[null,null,null,{"$f":"IF(ISNA(VLOOKUP(C23,Igraci!$A$1:$B$53078,2,FALSE)=TRUE),\"\",VLOOKUP(C23,Igraci!$A$1:$B$53078,2,FALSE))","v":""},null,null,null,null,{"$f":"IF(ISNA(VLOOKUP(H23,Igraci!$A$1:$B$53078,2,FALSE)=TRUE),\"\",VLOOKUP(H23,Igraci!$A$1:$B$53078,2,FALSE))","v":""},null,null,null,null,"Ime i prezime",null,"Iz",null,null,null,{"$f":"IF(ISNA(VLOOKUP(S23,Igraci!$A$1:$B$53078,2,FALSE)=TRUE),\"\",VLOOKUP(S23,Igraci!$A$1:$B$53078,2,FALSE))","v":""},{"$f":"IF(ISNA(VLOOKUP(S23,Igraci!$A$1:$C$53078,3,FALSE)=TRUE),\"\",VLOOKUP(S23,Igraci!$A$1:$C$53078,3,FALSE))","v":""},null,null,null,null,null,null,null,null,{"$f":"IF(ISNA(VLOOKUP(AC23,Igraci!$A$1:$B$53078,2,FALSE)=TRUE),\"\",VLOOKUP(AC23,Igraci!$A$1:$B$53078,2,FALSE))","v":""}]
[null,null,null,{"$f":"IF(ISNA(VLOOKUP(C24,Igraci!$A$1:$B$53078,2,FALSE)=TRUE),\"\",VLOOKUP(C24,Igraci!$A$1:$B$53078,2,FALSE))","v":""},null,null,null,null,{"$f":"IF(ISNA(VLOOKUP(H24,Igraci!$A$1:$B$53078,2,FALSE)=TRUE),\"\",VLOOKUP(H24,Igraci!$A$1:$B$53078,2,FALSE))","v":""},null,null,null,"SUDAC 1  ",null,null,{"$f":"IF(ISNA(VLOOKUP(N24,Suci!$A$1:$B$857,2,FALSE)=TRUE),\"\",VLOOKUP(N24,Suci!$A$1:$B$857,2,FALSE))","v":""},null,null,"Pomoćna formula za automatsko popunjavanje"]
[null,null,null,null,null,null,null,null,null,null,null,null,"SUDAC 2  ",null,null,{"$f":"IF(ISNA(VLOOKUP(N25,Suci!$A$1:$B$857,2,FALSE)=TRUE),\"\",VLOOKUP(N25,Suci!$A$1:$B$857,2,FALSE))","v":""},null,null,null,null,null,null,null,null,null,null,null,null,{"$f":"IF(ISNA(VLOOKUP(AA25,Suci!$A$1:$B$857,2,FALSE)=TRUE),\"\",VLOOKUP(AA25,Suci!$A$1:$B$857,2,FALSE))","v":""}]
[null,null,"BOJA DRESA ",null,null,null,null,"BOJA DRESA ",null,null,null,null,"NADZORNIK  ",null,null,{"$f":"IF(ISNA(VLOOKUP(N26,Suci!$A$1:$B$857,2,FALSE)=TRUE),\"\",VLOOKUP(N26,Suci!$A$1:$B$857,2,FALSE))","v":""},null,null,null,null,null,null,null,null,null,null,null,null,{"$f":"IF(ISNA(VLOOKUP(AA26,Suci!$A$1:$B$857,2,FALSE)=TRUE),\"\",VLOOKUP(AA26,Suci!$A$1:$B$857,2,FALSE))","v":""}]
[null,null,null,null,null,null,null,null,null,null,null,null,null,"Ime i prezime",null,"Iz",null,null,null,null,null,null,null,null,null,null,null,null,{"$f":"IF(ISNA(VLOOKUP(AA27,Suci!$A$1:$B$857,2,FALSE)=TRUE),\"\",VLOOKUP(AA27,Suci!$A$1:$B$857,2,FALSE))","v":""}]
[null,null,null,null,null,null,null,null,null,null,null,null,"MJERITELJ VREMENA  ",null,null,{"$f":"IF(ISNA(VLOOKUP(N28,Suci!$A$1:$B$857,2,FALSE)=TRUE),\"\",VLOOKUP(N28,Suci!$A$1:$B$857,2,FALSE))","v":""}]
[null,null,null,null,null,null,null,null,null,null,null,null,"ZAPISNIČAR  ",null,null,{"$f":"IF(ISNA(VLOOKUP(N29,Suci!$A$1:$B$857,2,FALSE)=TRUE),\"\",VLOOKUP(N29,Suci!$A$1:$B$857,2,FALSE))","v":""},null,null,null,null,null,null,null,null,null,null,null,null,{"$f":"IF(ISNA(VLOOKUP(AA29,Suci!$A$1:$B$857,2,FALSE)=TRUE),\"\",VLOOKUP(AA29,Suci!$A$1:$B$857,2,FALSE))","v":""}]
[null,null,null,null,null,null,null,null,null,null,null,null,null,null,null,null,null,null,null,null,null,null,null,null,null,null,null,null,{"$f":"IF(ISNA(VLOOKUP(AA30,Suci!$A$1:$B$857,2,FALSE)=TRUE),\"\",VLOOKUP(AA30,Suci!$A$1:$B$857,2,FALSE))","v":""}]

{"sheet":"Igraci","index":2,"n_rows":52498,"n_cols":5,"rows_kept":4500,"cut":true,"hidden":false,"merged":[],"bounds":{"rows_first":2000,"rows_last":500,"rows_between":2000,"halvings":0}}
["Broj licence","Igrač","Broj","Službeni","Klub"]
[1,"ŽELJKO BUJAS"]
[2,"MATKO BUJAS"]
[3,"DAVOR BUJAS"]
[6,"MARKO BUŽANČIĆ"]
[7,"GORAN ČARAPINA"]
[8,"MARTIN GRGIĆ"]
[9,"DAMIR KORJENIĆ"]
[10,"MLADEN BUŽANČIĆ"]
[11,"MATEO BULJAN"]
[12,"NENAD ALFIREVIĆ"]
[13,"TONČI BAJIĆ"]
[14,"DAMIR BILONIĆ"]
[15,"STIPE DELONGA"]
[16,"ANTE DELONGA"]
[27,"SILVANA BONKOVIĆ"]
[29,"VALERIJ TRUMBIĆ"]
[31,"PETRA KABIĆ"]
[32,"MIRELA JELIČIĆ"]
[33,"STIPE BARADA"]
[35,"BRANKO MATAS"]
[36,"MARIJA HRGOVIĆ - TOMIĆ"]
[37,"IVANA MEDIĆ"]
[38,"ANTE BOŽIĆ"]
[39,"IRENA DŽEKO"]
[40,"ANA BRČIĆ"]
[41,"Nina DŽEKO"]
[42,"JOŠKO ČIZMIĆ"]
[43,"MARINA ANDABAK"]
[44,"MATEA ANDABAK"]
[45,"MARINA BAKOVIĆ"]
[46,"MARTINA MARKIĆ"]
[47,"DORIS BILANDŽIĆ"]
[48,"MILICA-MIA BILOKAPIĆ"]
[49,"JOSIPA BITUNJAC"]
[50,"MARIJA MATIJAŠ"]
[51,"KRISTINA BOBAN"]
[52,"MATIJA BOBAN"]
[53,"DAJANA BOBAN"]
[54,"MAJA BOKO"]
[55,"IVANA BOROZAN"]
[56,"JELENA BORZIĆ"]
[57,"IVANA BOŽIĆ"]
[58,"ANTE BRČIĆ"]
[59,"PETRA BRKOVIĆ"]
[60,"JOSIPA BRKOVIĆ"]
[61,"MATEA BULIĆ"]
[62,"NIKOLINA BULJAN"]
[63,"IVONA BULJAN"]
[64,"NIKOLINA BURILOVIĆ"]
[65,"IVANA BURNAČ"]
[66,"IVANA BUŠELIĆ"]
[67,"MARIJA BUZOV"]
[68,"MARINA BUZOV"]
[69,"TINA CRNJAK"]
[70,"IVONA ČAVKA"]
[71,"MIRNA ČEKO"]
[72,"PETRA ČERINA"]
[73,"SUZANA ČOKO-VULIKIĆ"]
[74,"NIKOLINA ČULIĆ"]
[75,"MARIJANA ĆURIĆ"]
[76,"TINA DELIĆ"]
[77,"PETRA DOMAZET"]
[78,"NIKOLINA DUDE"]
[79,"ŽELJANA DUDE"]
[80,"STIPE ĐURAN"]
[81,"ANĐELA ĐURAN"]
[82,"NIKOLINA FRANIĆ"]
[83,"ŽELJANA FRANIĆ"]
[84,"MIA GOTOVAC"]
[85,"NIKOLINA GRUBIŠIĆ"]
[86,"IVONA JANKOV"]
[87,"ANTONIJA JERKOVIĆ"]
[88,"JOSIPA JERKOVIĆ"]
[89,"MARTINA KALINIĆ"]
[90,"PETRA KAMENŠEK"]
[91,"MARTA KAPIĆ"]
[92,"MATIJA KAPITANOVIĆ"]
[93,"VEDRANA KASUM"]
[94,"ANA KLIŠANIN"]
[95,"ŽELJANA KRAJINA"]
[96,"TEA LISICA"]
[97,"ANTEA LISICA"]
[98,"MATEA LONČAR"]
[99,"IVANA LONČAR"]
[100,"TEREZA LOZICA"]
[101,"KATARINA LJUBIČIĆ"]
[102,"Marija LJUBIČIĆ"]
[103,"ANA MARAŠ"]
[104,"HELENA MARETIĆ"]
[105,"NIKOLINA MARIĆ BANJE"]
[106,"LUCIJA MARKUSOVIĆ"]
[107,"DRAGICA MAROVIĆ"]
[108,"NINA MEŠTROVIĆ"]
[109,"MILA MIHOVILOVIĆ"]
[110,"MARKO GEBAUER"]
[111,"DRAŽEN BARTOLOVIĆ"]
[112,"DANIEL PLEŠA"]
[113,"MARKO VUČINIĆ"]
[114,"JAN MALIK MILOŠEVIC"]
[115,"VINKO PERUŠIĆ"]
[116,"MARIN SIMIĆ"]
[117,"MILAN MIHALJEVIĆ"]
[119,"STEFAN GUNARIĆ"]
[120,"DIKA JERKO"]
[121,"TOMISLAV PROSEN"]
[122,"MARIN CUCULIĆ"]
[123,"ALEN BARTOLOVIĆ"]
[124,"BRUNA BABIĆ"]
[125,"INES BABIĆ"]
[126,"IVANA ŠKRGATIĆ"]
[127,"TAMARA BUTOLO"]
[128,"ZORANA BUTORAC"]
[129,"MILICA DORIC"]
[130,"VALENTINA GRAČANIN"]
[131,"VIŠNJA HRMIĆ"]
[132,"BOŽIDAR KATALINIĆ"]
[133,"IVANA KATALINIĆ"]
[134,"SILVA KATALINIĆ"]
[135,"MAJA KNEŽEVIĆ"]
[136,"MONIKA LEKA"]
[137,"SANDRA MILINOVIĆ"]
[138,"SARA ORLIĆ"]
[139,"SINIŠA ORLIĆ"]
[140,"INES PRPIĆ"]
[141,"MIROSLAV PRPIĆ"]
[142,"MARTINA RAJČIĆ"]
[144,"ANDREJA SIMČIĆ"]
[145,"JELENA ŠTRUIĆ"]
[146,"JELENA ŠPALJ"]
[147,"MARIN TOMLJANOVIĆ"]
[148,"MARITA TOMLJANOVIĆ"]
[149,"SANJA TOMLJANOVIĆ"]
[150,"SNJEŽA TOMLJANOVIĆ"]
[151,"TEA TOMLJANOVIĆ"]
[152,"MANUELA ILIĆ"]
[153,"MARINA ĆUŽIĆ"]
[154,"ANA NIKOLIĆ"]
[155,"Marina GLAVAN"]
[156,"IVANA VEKIĆ"]
[157,"Nikolina GRMOJA"]
[158,"MARTINA NIKOLIĆ"]
[159,"VESNA ĆUŽE"]
[160,"VEDRANA MORDŽIN"]
[161,"MARIJANA DOMINIKOVIĆ"]
[162,"TONKA PRUSAC"]
[163,"ANAMARIJA VIDIĆ"]
[164,"Iva PETKOVIĆ"]
[165,"IVANA MARKOTA "]
[166,"RENATA MEDAK"]
[167,"ZDRAVKA ŠILJEG "]
[168,"MATE NIKOLIC"]
[169,"DINKO KOREN"]
[170,"ŽELJKO DUKAVAC"]
[171,"NIKOLA ŠIMUNIĆ"]
[172,"MARKO GOLIĆ"]
[173,"BOŽO MARKOVIĆ"]
[174,"MARKO PRAŽIĆ"]
[175,"LUKA BALEN"]
[176,"DAVOR LJEVAR"]
[177,"STIPE JURJEVIĆ"]
[178,"DRAŽEN CAR"]
[179,"MILAN RADMANOVIĆ"]
[180,"MILAN RADAKOVIĆ"]
[181,"IVAN PLEŠA"]
[182,"LUKA BLAŽEVIĆ"]
[183,"TOMISLAV GOLIĆ"]
[184,"MARIJAN JELIĆ"]
[185,"TOMISLAV ŽIVKOVIĆ"]
[186,"GORAN DOŠEN"]
[187,"IGOR MARGARETIĆ"]
[188,"TOMICA JELINIĆ"]
[189,"MARIO STAROSELČIĆ"]
[190,"MARTIN CAPAR"]
[191,"VEDRAN SRŠEN"]
[192,"Ante MLADINIĆ"]
[193,"IVAN ŽIVKOVIĆ"]
[195,"IVAN PAVLEKOVIĆ"]
[196,"MARKO CAGA"]
[197,"MARKO BRKLJAČIĆ"]
[198,"MARKO ŠIMIĆ"]
[199,"DOMAGOJ SORIĆ"]
[200,"ZVONIMIR KNEŽEVIĆ"]
[201,"VANJA ANTIĆ"]
[202,"Marin FURČIĆ"]
[203,"NIKOLA PAVELIĆ"]
[204,"JURICA STARČEVIĆ"]
[205,"MOJMIR BUNETA"]
[206,"MILAN PAĐEN"]
[207,"DARIO KRPAN"]
[208,"DENIS PLEŠA"]
[209,"IVAN SORIĆ"]
[210,"MARIJAN RUPČIĆ"]
[211,"JOSO STARČEVIĆ"]
[212,"MILAN MARAS"]
[213,"MILE FAJDIĆ"]
[215,"SUZANA BADURINA"]
[216,"INES DUMIČIĆ"]
[217,"SUZANA TOPIĆ"]
[218,"SANDRA BRMALJ"]
[219,"DAMIR VIDAČKOVIĆ"]
[220,"SERGIO DE PRIVITELLIO"]
[221,"DAMIR ČAVLOVIĆ"]
[222,"JOSIP JURČIĆ"]
[223,"Jelena PIRŠL"]
[224,"SANJA FABIJANIĆ"]
[225,"ROBERTA VUČIĆ"]
[226,"TEA MARIČEVIĆ"]
[227,"VANDA ŽIGANTO"]
[228,"IVA STRELEC"]
[229,"STELLA MATEŠA"]
[230,"MAGDALENA POTOČNIK"]
[231,"JELENA ČVORAK"]
[232,"MARIJANA JUKIĆ"]
[233,"IVANA VUKOVIĆ"]
[234,"ROMINA SABO"]
[235,"DINA BRČIĆ"]
[236,"SANDRA ZORIĆ"]
[237,"NIKOLINA REBIĆ RAČIĆ"]
[238,"RADA CIGANOVIĆ"]
[239,"SARA KERT "]
[240,"ANA MUJEVIĆ"]
[241,"ENY NAZALEVIĆ "]
[242,"KLARA MAJDANDŽIĆ"]
[243,"BARBARA VUKOVIĆ"]
[244,"IVA VUKOJA"]
[245,"KATARINA KOVAČIĆ"]
[246,"ELLA BUKVIĆ"]
[247,"GLORIA ARAPOVIĆ"]
[248,"MARIJA SESAR"]
[249,"ANDREA KINOLI"]
[250,"SANDRA ZUBALJ"]
[251,"ANA PAUREVIĆ"]
[252,"ESTELLE SILLI"]
[253,"NIKOLINA POTOČNJAK"]
[254,"IVANA ĐURICA"]
[255,"PETRA MIŠ-ČAK"]
[256,"LARA ŽIDEK"]
[257,"TAMARA VUJMILOVIĆ"]
[258,"DUNJA TINTOR"]
[259,"LUCIJA BALJAK"]
[260,"ELIZABETA RADOŠEVIĆ"]
[261,"MATEJA JURIŠIĆ"]
[262,"NINA DŽAFIĆ"]
[263,"IRMA JUPIĆ"]
[264,"IVANA JURIČIĆ"]
[265,"MARIJA TUS"]
[266,"ENA ŠMIT"]
[267,"KRISTINA JURAC"]
[268,"NATAŠA VIŠNJIĆ"]
[269,"ANA ČUPOVIĆ"]
[270,"ŽELJKO VUJMILOVIĆ"]
[271,"STEFANI BOROVINA"]
[272,"AMINA MUMINOVIĆ"]
[273,"MARTINA GNJIDIĆ"]
[274,"SARA BENIĆ"]
[275,"MARTINA JURIŠIĆ"]
[276,"ALEKSANDRA RAKOVIĆ"]
[277,"LEA LOPAC"]
[278,"NINA CVITKOVIĆ"]
[279,"ANAMARIJA MARAŠ"]
[280,"VALENTINA MARETIĆ"]
[281,"JERKO ALUJEVIĆ"]
[282,"ZDRAVKO VUČIĆEVIĆ"]
[283,"KATICA BROZOVIĆ"]
[284,"ANTONIO OBRVAN"]
[285,"JAKOV BAJO"]
[286,"Ilija BROZOVIĆ"]
[287,"JURE KOZINA"]
[288,"MIRKO LJUBAS"]
[289,"ILIJA  SKOČIBUŠIĆ"]
[290,"Stipe ŽDERIĆ"]
[291,"MARKO JERKOVIĆ"]
[292,"MATE MIJIĆ"]
[293,"SLAVICA LAKIĆ"]
[294,"BRANKA KONTA"]
[295,"SREĆKO SALOPEK "]
[296,"SANJIN LUČIČANIN"]
[297,"TATJANA ĐUKIĆ"]
[298,"Ena KONTA"]
[299,"ANJA KONTA"]
[300,"SANJA ŠIMIĆ"]
[301,"IRMA NASIĆ"]
[302,"SANJA SIMIĆ"]
[303,"ALENA MARMARAC"]
[304,"INES SALOPEK"]
[305,"AMELA HODŽIĆ"]
[306,"TAMARA MORIĆ"]
[307,"GABRIJELA DRAMAC"]
[308,"IVA TABAR"]
[309,"SANJA CAPAN"]
[310,"HELENA DAPČIĆ"]
[311,"ANDREA PERUŠIĆ"]
[312,"ZORA MARKOV"]
[313,"CORINA IVKIĆ"]
[314,"ANJA ISKRA"]
[315,"SREĆKO MARIĆ"]
[316,"IRIS BRADANOVIĆ"]
[317,"ŽELJKO JURKOVIĆ"]
[317,"MAGDALENA MEŠTROVIĆ"]
[318,"ROBERTA MERCENICH"]
[318,"MARKO VEKIĆ"]
[319,"ANĐELA BAČIĆ"]
[319,"LEON DODIG"]
[320,"PETRA BARJAŠIĆ"]
[321,"PATRICIA PERKOVIĆ"]
[322,"ADRIANA BUNDALO"]
[322,"ZORAN KALEB"]
[323,"ANA BAŠIĆ"]
[324,"MATEA MALNAR"]
[324,"ANDREJ - LEO VULIĆ"]
[325,"SARA GRUBIĆ"]
[325,"ANTONIO PERLETA "]
[326,"Nikola BROZOVIĆ"]
[327,"Darko KRNDELJ"]
[328,"IVANA SAMARDŽIĆ"]
[329,"SARA BABIĆ"]
[330,"PETRA BOROVIĆ"]
[330,"ZVONIMIR  VEGO"]
[331,"PAULA GRŠKOVIĆ"]
[332,"TEA BRADANOVIĆ"]
[333,"IVA STANIĆ"]
[334,"TONI MALIĆ"]
[334,"NERA NALIĆ"]
[335,"MAJA NIKIĆ"]
[336,"Dejana MILOSAVLJEVIĆ"]
[337,"VIKTOR KONCUL"]
[338,"IVAN GRBAVAC"]
[339,"NIKOLA PALAMETA"]
[340,"MARIN ZLOIĆ"]
[341,"ANTE MARIĆ"]
[342,"NEDJELJKO DOMINIKOVIĆ"]
[343,"ZVONIMIR BRNAS"]
[344,"TONI KURAN"]
[345,"TOMISLAV MATIĆ"]
[346,"ANTE RAIC"]
[347,"BRANIMIR VUČKOVIĆ"]
[348,"ROKO  MARKOTA"]
[349,"JURICA MEDIĆ"]
[350,"LOVRE OBŠIVAČ"]
[351,"ROKO ŽAJA"]
[352,"Domagoj SRŠEN"]
[353,"DAVORIN GOLIK"]
[354,"ALEN ČIPAK"]
[355,"LUKA GUDELJ"]
[356,"MASSIMO KRALJEVIĆ"]
[357,"ANTONIJO VOZILA"]
[358,"ADRIANO VOZILA"]
[359,"MARKO OPALIĆ"]
[360,"EGON DAKIĆ"]
[361,"LOREN MUNJAS"]
[362,"David ŠUNJIĆ"]
[363,"MARIN MILARDOVIĆ"]
[364,"BRUNO RAVLIĆ"]
[365,"MATEO ŽIC"]
[366,"MARIN NARANĐA"]
[367,"BOJAN JAJALO"]
[368,"MLADEN BANJANIN"]
[369,"MILAN MILOŠEVIĆ"]
[370,"SANDRO KOZULIĆ"]
[371,"NIKOLA KOSANOVIĆ"]
[372,"RENATO ŠEGAN"]
[374,"LUKA MATOŠIĆ"]
[375,"Hrvoje VUKELIĆ"]
[376,"ZORAN LEČEK"]
[380,"DRAŽENKO DANIČIĆ"]
[381,"ANDREA ČUBRANIĆ"]
[382,"MARIN MIŠKOVIĆ"]
[383,"MILE MARAVIĆ"]
[384,"IGOR TOMIĆ"]
[385,"MATKO CRNČAN"]
[386,"MARKO ŠARLIJA"]
[387,"BORNA FANADEL"]
[388,"DARIO ZELIĆ"]
[389,"TOMISLAV HULJINA"]
[390,"JOSIP SOLDO"]
[391,"MILAN KOSANOVIĆ"]
[392,"ANJA WOLFAND"]
[393,"MARTINA DEMO "]
[394,"MORENA SIMČIĆ"]
[395,"ANDREJA ORLIĆ"]
[396,"TEA KARAČIĆ"]
[397,"GORANA ČUPOVIĆ"]
[398,"IVONA ZRON"]
[399,"DRAGAN BARBIR"]
[400,"LUJO ILIĆ"]
[402,"IVAN GABRIĆ"]
[403,"IVAN SRŠEN"]
[404,"PAVO ĆERLEK"]
[405,"MARIO ILIĆ"]
[406,"Vedran ŽDERIĆ"]
[407,"MIRKO VOLAREVIĆ"]
[408,"BORIS JURKOVIĆ"]
[409,"ANTE BARBIR"]
[410,"IVAN JURKOVIĆ"]
[411,"TEO GNJEČ"]
[412,"RUDI ILIĆ"]
[413,"ZVONIMIR LOVRIĆ"]
[414,"KRISTIJAN ORŠULIĆ"]
[415,"JAKOV PREVIŠIĆ"]
[416,"Hrvoje BATINOVIĆ"]
[417,"IVAN CRNČEVIĆ"]
[418,"BRANIMIR VUČKOVIĆ"]
[419,"ŽELJKO MIKULIĆ"]
[420,"LJUBLJENKO DUBIĆ"]
[421,"RADAN STARČEVIĆ"]
[422,"PERICA PRIBANIĆ"]
[423,"VLADO LIPOVIĆ"]
[424,"DUŠAN ĆUŠKA"]
[425,"ŽELJKO MIKULIĆ"]
[426,"FRAN MARAŽ"]
[428,"MARKO VIDOVIĆ"]
[429,"MATIJA MESIĆ"]
[430,"MATEO BAČIĆ"]
[431,"TOMO BOSANAC"]
[432,"TONI ŽUDIĆ"]
[433,"MATEO MALNAR"]
[434,"ANDREJ ZEC"]
[435,"ANTONIO TOMIĆ"]
[436,"OGNJEN JANKOVIĆ"]
[437,"JURICA RAIĆ"]
[438,"BOJAN UZELAC"]
[439,"MARIN STANIĆ"]
[440,"NINO PRIBANIĆ"]
[441,"MATEJ BRIŠKI"]
[442,"LUKA NEGOVETIĆ"]
[443,"ANTE JUREŠKO"]
[444,"LUKA UŠALJ"]
[445,"PAOLO KRIVAČIĆ"]
[446,"LEO MALNAR"]
[447,"ANDREJ VORKAPIĆ"]
[448,"NINO GULIJA"]
[449,"LUKA DOŠEN"]
[450,"MATEO SABLJAK"]
[451,"LUCIANO VERGIĆ MERCOGLIANO"]
[452,"MARINO SABLJAK"]
[453,"DUŠAN ĆUŠKA"]
[454,"BOJAN JAJALO"]
[455,"BERNARD GULIJA"]
[456,"DAVOR LONČARIĆ"]
[457,"ANTONIO BRNIĆ"]
[458,"DINO BOBINAC"]
[459,"IVAN BOBINAC"]
[460,"DENIS JOVANOVIĆ"]
[461,"TOMISLAV NIKOLIĆ"]
[462,"BORIS BANDERA"]
[463,"DARKO DOKMANOVIĆ"]
[464,"EDI LINIĆ"]
[465,"BRUNO SUPERINA"]
[466,"EDIN BADNJEVIĆ"]
[467,"SANJIN LAMZA"]
[468,"IGOR TOMIĆ"]
[469,"ZORAN MUDRIĆ"]
[470,"ANTONIO KRANJAC"]
[471,"SVEN BANDERA"]
[472,"ALEN KURBANOVIĆ"]
[473,"DAVOR BRIŠKI"]
[474,"MARIO DUJMOVIĆ"]
[475,"ANDREJ BUTORAC"]
[476,"BOJAN LONČARIĆ"]
[477,"DINO ŠPIRANEC"]
[478,"IVAN LUKETIĆ"]
[479,"MATEJ PRIBANIĆ"]
[480,"FARUK BADNJEVIĆ"]
[481,"DENI GULIJA"]
[482,"FILIP BRIŠKI"]
[483,"DINO BAČIĆ"]
[484,"LUKA KONČAR"]
[485,"ANTE VERŠIĆ"]
[486,"LEON VEČERINA"]
[487,"FILIP KOSTELAC"]
[488,"ANTON KAVRAN"]
[489,"FRANJO DRAGANIĆ"]
[490,"LUKAS ČEDIĆ"]
[491,"FILIP ĆURJURIĆ"]
[492,"LINO BRKIĆ"]
[493,"RENATO BARIĆEVAC"]
[494,"FILIP ŽILJAK"]
[495,"KRISTIJAN ŠTEFOK"]
[496,"LINO SMILOVIĆ"]
[497,"DAVIDE RASOL"]
[498,"DARIO POLIĆ"]
[499,"DORIAN JELIČIĆ"]
[500,"FILIP BOŽIČEVIĆ"]
[501,"MATIJA BJELOVUK"]
[502,"KARLO BALAS"]
[503,"MARKO ŠUVER"]
[504,"NEREO ŽIDANIK"]
[505,"IVAN RAJČIĆ"]
[506,"KARLO PRPIĆ"]
[507,"MARKO MRAKOVČIĆ"]
[508,"IVO KURTOVIĆ"]
[509,"MATEJ KRUŠIĆ"]
[510,"IVAN KATALINIĆ"]
[511,"IGOR JAVOR"]
[512,"EMIL JAVOR"]
[513,"DOMAGOJ VIČEVIĆ"]
[514,"LUKA RONČEVIĆ"]
[515,"DOMINIK BADURINA"]
[516,"DINO MATOŠEVIĆ"]
[517,"MARKO MARINIĆ"]
[518,"MARIN JURJEVIĆ"]
[519,"VILI HRUNKA"]
[520,"VALENTINO ČOLIĆ"]
[521,"FRANKO BRIŠKI"]
[522,"MATEJ BRIŠKI"]
[523,"BORNA BARIČEVIĆ"]
[524,"DOMENIKO ACALINOVIĆ"]
[525,"DAVID SABLJAK"]
[526,"ANTONIO GAUTA"]
[527,"ANTONIO MANAGAROV"]
[528,"ELDIN OKANOVIĆ"]
[529,"IVAN NAVRATIL"]
[530,"GINO PASTORČIĆ"]
[531,"MILENKO BARIĆ"]
[532,"NIKOLA BABIĆ"]
[533,"JOSIP UKALOVIĆ"]
[534,"MILJENKO TURKALJ"]
[535,"CHRISTIAN BROZOVIĆ"]
[536,"MARIN BARIĆ"]
[537,"DINO PASTORČIĆ"]
[538,"ALEN ĐAKOVIĆ"]
[539,"MARKO KAČANIĆ"]
[540,"MARIJAN ŠKRINJAR"]
[541,"MATEO MATIJEVIĆ"]
[542,"Nikola BABIĆ"]
[543,"LUKA LUKETIĆ"]
[544,"VEDRAN ŽUNIĆ"]
[545,"BOJAN KLARIĆ"]
[546,"MARIN PREVOLŠEK"]
[547,"KREŠIMIR TOMLJANOVIĆ"]
[548,"NIKO KONJUH"]
[549,"MATEJ MOSER"]
[550,"LUKA ZEKANOVIĆ"]
[551,"LEO VENTIN"]
[552,"STJEPAN PILČIĆ"]
[553,"FILIP NEKIĆ"]
[554,"MATIJA ŠVOB"]
[555,"KLAUDIO ZRNIĆ"]
[556,"ANDRO AMANČIĆ"]
[557,"MORENO MUŠKOVIĆ"]
[558,"LOVRO PLIŠIĆ"]
[559,"SANDRO GRBAC"]
[560,"Rajo JEFTIĆ"]
[561,"Rajko ROŽA "]
[562,"Ante Branislav KAJFEŽ"]
[563,"Željko PAJTAK"]
[564,"Tomislav ŠTIMAC"]
[565,"Dino ŠTRLEK"]
[566,"Srećko HORENEC"]
[567,"Goran MELNJAK"]
[568,"Mario BREZOVEC"]
[569,"Nikica LONČAR"]
[570,"Matija PEČEK"]
[571,"Bruno PETRINJAK"]
[572,"Robert PREKUPEC"]
[573,"TEODOR KELEMEN"]
[574,"Darko BREGOVIĆ"]
[575,"Denis ČIBARIĆ"]
[576,"Vanja KUŠEN"]
[577,"Matija IVANUŠIĆ"]
[578,"KEVIN LIND"]
[579,"Mario HRG"]
[580,"Marko ŽIMBREK"]
[581,"Ivan FICKO"]
[582,"Ernest VIDMAN"]
[583,"Neven GALIĆ"]
[584,"Igor KRAMARIĆ"]
[585,"Nikola KOŠKI"]
[586,"Stjepan POJE"]
[587,"Ivan HUDOLETNJAK"]
[588,"Franjo HARJAČ"]
[589,"Milorad ŽELEŽIĆ"]
[590,"Vladimir LJUBIĆ"]
[591,"Stjepan LANČIĆ"]
[592,"Zlatko KOLARIĆ"]
[593,"Ivan ČIBARIĆ"]
[594,"Branko KOZINA "]
[595,"Tomislav LEVANIĆ"]
[596,"Dragutin DARABUŠ"]
[597,"Klaus LIND"]
[598,"Josip KUŠEN"]
[599,"Srećko KRAMARIĆ"]
[600,"Branko CANJUGA"]
[601,"Drago GUŽVINEC"]
[602,"Nenad HUĐ"]
[603,"Vladimir KUTNJAK"]
[604,"Draženko JAKOPOVIĆ"]
[605,"Tihomir BREZIĆ"]
[606,"Mladen VIDAČEK"]
[607,"Neven KUŠEN"]
[608,"Vladimir HRG"]
[609,"Jurica VIDAČEK"]
[610,"Marko TEŽAK"]
[611,"Ivan BREZIĆ"]
[612,"Josip STRMEČKI"]
[613,"Drago CUKOVIĆ"]
[614,"Goran SPASOJEVIĆ"]
[615,"Ivan CERJAN"]
[616,"Marko BREZOVEC"]
[617,"Marko BRLEK"]
[618,"Mario ZAGORŠČAK"]
[619,"Kruno KUČEJ"]
[620,"Robert ŠTEFIČAR"]
[621,"Dino HALAMEK"]
[622,"Kristijan ŠTEFIČAR"]
[623,"Patrik POSAVEC"]
[624,"Matija MATUČEC"]
[625,"Matej SEVER"]
[626,"JELENA DOMINIKOVIĆ"]
[627,"MARITA BRAJEVIĆ"]
[628,"MARINA VEKIĆ"]
[629,"ANTONIO TOMIĆ"]
[630,"IVAN ŠETKA"]
[631,"DARIO DOMINIKOVIĆ"]
[632,"IVAN VOLAREVIĆ"]
[633,"ANTE PEHAR"]
[634,"JOSIP KEŽIĆ"]
[635,"TOMISLAV ĆOSIĆ"]
[636,"KARLO VRNOGA"]
[637,"JOSIP IVANKOVIĆ"]
[638,"JOSIP ILIĆ"]
[639,"DAMIR MATAGA"]
[640,"JOSIP BULJUBAŠIĆ"]
[641,"DANIJEL ARAPOVIĆ"]
[642,"NIKOLA GOVORKO"]
[644,"VIDE VLAHIĆ"]
[645,"ANTE ZOVKO"]
[646,"RUDOLF ĆUŽIĆ"]
[647,"VLADIMIR ZELIĆ"]
[648,"MATKO KURAN"]
[649,"IVAN KARABATIĆ"]
[650,"MARIN NIKOLIĆ"]
[651,"STIPE BOROVAC"]
[652,"ANTE GRANIĆ"]
[653,"DUJE NIKOLIĆ"]
[654,"DANIJEL POPOVIĆ"]
[655,"IVAN VUČKOVIĆ"]
[656,"DINO CRNČEVIĆ"]
[657,"DUJE ŠILJEG "]
[658,"SLOBODAN BATINOVIĆ"]
[659,"EMIR JUNUZOVIĆ"]
[660,"NIKOLA ČUPIĆ"]
[661,"NIKICA DOMINIKOVIĆ"]
[662,"MARIO BATINOVIĆ"]
[663,"DUŠAN TODOROVIĆ"]
[664,"Vanja HUDOLETNJAK"]
[665,"Milan CERJAN"]
[666,"Ivan GOTAL"]
[667,"Martin ŠOŠTAR"]
[668,"Matija KUŠEN"]
[669,"Vedran HUĐ"]
[670,"Bojan MAČEK"]
[671,"Vinko STRMEČKI"]
[672,"Dominik PEČEK"]
[673,"Siniša SAMARŽIJA"]
[674,"Alen GRD"]
[675,"Branimir KUTNJAK"]
[676,"Karlo STRUGAR"]
[677,"Dario DRŽAIĆ"]
[678,"Jurica POSAVEC"]
[679,"Goran ZAGORŠČAK"]
[680,"Marko HRG"]
[681,"Matija HLEVNJAK"]
[682,"Marko POSAVEC"]
[683,"Luka LANČIĆ"]
[684,"Karlo ŠOŠTAR"]
[686,"Mario DARABOŠ"]
[687,"Boris HALAMEK"]
[688,"Mario POSARIĆ"]
[689,"LEOPOLD DOMBAJ"]
[690,"Tomislav GOTAL"]
[691,"Matija HARJAČ"]
[692,"Kristijan PUTAREK"]
[693,"Luka PEČEK"]
[694,"Luka LEVANIĆ"]
[695,"Vladimir HARJAČ"]
[696,"Dino GEČEK"]
[697,"Valentino ŽUPANIĆ"]
[698,"Siniša BREGOVIĆ"]
[699,"Ivan JAKOPOVIĆ"]
[700,"Aleksandar MATEŠA"]
[701,"Jurica MATEŠA"]
[702,"Saša BRKINJAČ"]
[703,"Vesna BENCEK"]
[704,"Višnja SURJAK"]
[705,"Nadica LEVANIĆ"]
[706,"Ana SREDNOSELEC"]
[707,"Lana VLAISAVLJEVIĆ"]
[708,"Kristina KOZINA"]
[709,"Ana GRĐAN"]
[710,"Petra PETRINJAK"]
[711,"Kaja ŽULIĆ"]
[712,"Magdalena ŠLOPAR"]
[713,"Martina RUDNIČKI"]
[714,"Janja RAJH"]
[715,"Ana GEČEK"]
[716,"IVA BIŠKUP"]
[717,"Tamara FERENEC"]
[718,"Stella GOTAL"]
[719,"Suzana HORVATIĆ"]
[720,"Tatjana DARABOŠ"]
[721,"Darinka PAVLEKOVIĆ"]
[722,"Jelena LANČIĆ"]
[723,"Maja HABEK"]
[724,"Marina LEVANIĆ"]
[725,"Monika INJIĆ"]
[726,"Marina MARTINČEVIĆ-MIKIĆ"]
[727,"Katarina BREZIĆ"]
[728,"Matee LEVANIĆ"]
[729,"Jasna PUTAR-MATUZA"]
[730,"Maja URŠULIN"]
[731,"KRISTINA JUG"]
[732,"Maja OŠTARJAŠ"]
[733,"Kristina LJUBIĆ"]
[734,"Anamarija SLUNJSKI"]
[735,"Petra OŠTARJAŠ"]
[736,"Tea BENCEK"]
[737,"Milivoj JEREC"]
[738,"Ivan HRMAN"]
[739,"Kristijan KOSEC"]
[740,"Mario ŠPIRANEC"]
[741,"Vjeran PETRINA"]
[742,"Ivan MAGIĆ"]
[743,"Tihomir ŠPIRANEC"]
[744,"Sebastijan VINCEK"]
[745,"Alen TUĐAN"]
[746,"Luka ŠIPOŠ"]
[747,"Mario GOLUBIĆ"]
[748,"Dalibor JURAK"]
[749,"Matija MIŠAK"]
[750,"Nikola DOMITER"]
[751,"Antonio NOVOSEL"]
[752,"Mario ROGINA"]
[753,"Filip KEČKAN"]
[754,"Siniša JAGAČIĆ"]
[755,"Renato BENČEK"]
[756,"Lovro MARJANOVIĆ"]
[757,"Mario SLUNJSKI"]
[758,"Dražen KAVUR"]
[759,"Darko CIKAČ"]
[760,"Zoran CIKAČ"]
[761,"Damir HORVAT"]
[762,"Dean KARLOVIĆ"]
[763,"Predrag BREGOVIĆ"]
[764,"Damir BENČEK"]
[765,"Zlatko BOROVEC"]
[766,"Božo ŽITNJAK"]
[767,"Robert LEVANIĆ"]
[768,"Vladimir KUŠČER"]
[769,"Dominik BOGDANOVIĆ"]
[770,"Ratko POČAKAL"]
[771,"Igor HORVAT"]
[772,"Hrvoje HORVAT"]
[773,"Krunoslav KOSIR"]
[774,"Darko JAGIĆ"]
[775,"Darko STRUŠKI"]
[776,"Neven JERBIĆ"]
[777,"Darko HLUPIĆ"]
[778,"Alen KIŠIĆ"]
[779,"Andrija PIŠPEK"]
[780,"Igor HORVAT"]
[781,"Domagoj BOBNJARIĆ"]
[782,"Damir SKUPNJAK"]
[783,"Mate DOTUR"]
[784,"Bojan ŽUGEC"]
[785,"Bojan BUNČIĆ"]
[786,"Nikola FRANČIĆ"]
[787,"Mario MARGIĆ"]
[788,"Vanja PIŠPEK"]
[789,"Elvin PETROŠANEC"]
[790,"Marko HRANJEC"]
[791,"Igor OREHOVEC"]
[792,"Mario BOBETIĆ"]
[793,"Marko LEDINSKI"]
[794,"Boris SAKAČ"]
[795,"Mario TEČIĆ"]
[796,"Dario MAKAR"]
[797,"Nikola NOVOTA"]
[798,"Elvis HRELJA"]
[799,"Lino ZMAIĆ"]
[800,"Igor MURIĆ"]
[801,"Ivan BOBNJARIĆ"]
[802,"Dejan HUS"]
[803,"Stanko KEŽMAN"]
[804,"Zlatko MATKOVIĆ"]
[805,"Vladimir PREMUŽ"]
[806,"Željko KUŠTER"]
[807,"Kristijan IGREC"]
[808,"Jadranko GOLUBIĆ"]
[809,"Mario SLUNJSKI"]
[810,"Siniša KLIČEK"]
[811,"Siniša LACKOVIĆ"]
[812,"Ivan KLIČEK"]
[813,"Ivan POZDER"]
[814,"Matija KOŠIĆ"]
[815,"Marin KLIČEK"]
[816,"Marko PLANTIĆ"]
[817,"Anđelko ŽIROVEC"]
[818,"Filip SURJAK"]
[819,"David POZDER"]
[820,"Valentino CAFUK"]
[821,"Dominik POZDER"]
[822,"Igor OZMEC"]
[823,"Ivan ŽUPANIĆ"]
[824,"Marko KOLENKO"]
[825,"Luka OSREDEK"]
[826,"Denis LEŠNJAK"]
[827,"Nikola BANIĆ"]
[828,"Domagoj ČRNILA"]
[829,"Igor HALILOVIĆ"]
[830,"Tomislav ZAVRTNIK"]
[831,"Ivan PAJIĆ"]
[832,"Tomislav DODIGOVIĆ"]
[833,"Nikola KOVAČIĆ"]
[834,"Željko LILIĆ"]
[835,"Matija ĐORĐEVIĆ"]
[836,"Dino NOVKO"]
[837,"Zoran POSAVEC"]
[838,"Goran KUŠTER"]
[839,"Luka ŽNIDARIĆ"]
[840,"Nenad MELNJAK"]
[841,"Miljenko MELNJAK"]
[842,"Goran KOŠĆAK"]
[843,"Denis JERGAN"]
[844,"Igor SENEČIĆ"]
[845,"Alen COBAN"]
[846,"Željko KOŠIĆ"]
[847,"Jakov KOLARIC"]
[849,"IVANA BIKIĆ"]
[850,"LUCIJA ANDREIS"]
[851,"MARIJA ŽUVELA"]
[852,"MARIJELA SURJAN"]
[853,"MAJA ANĐIĆ"]
[854,"LUCIA PADOVAN"]
[855,"SANDA TASOVAC"]
[856,"TIHANA RADIĆ"]
[857,"ANKA MARINOVIĆ"]
[858,"MARIJA ŠEPAROVIĆ"]
[859,"NIKOLINA-NINA ANDREIS"]
[860,"OFELIJA DRAGOJEVIĆ"]
[861,"JURICA DRAGOJEVIĆ"]
[862,"Petra RADIĆ"]
[863,"ANA - MARIJA TABAIN"]
[864,"ANA ŠEPAROVIĆ"]
[865,"MARINKA ŽUVELA"]
[866,"JELENA FRANIČEVIĆ"]
[868,"DEAN BIGOVIĆ"]
[869,"IVAN ŽUVIĆ"]
[870,"ANTON ĐUNĐEK"]
[871,"HRVOJE PERIĆ"]
[872,"DEJAN TOIĆ"]
[873,"IVICA ŽUVIĆ"]
[874,"DOMAGOJ TOMEE"]
[875,"KARLO KOVAČ"]
[876,"MARIN PERIĆ"]
[877,"FILIP ILIJIĆ"]
[878,"JULIO KOJIĆ"]
[879,"GORAN MAVROVIĆ"]
[880,"MARKO ŽUVIĆ"]
[881,"BORIS MARTINČIĆ"]
[882,"SAŠA DOZET"]
[883,"SENKO SMOLJAN"]
[884,"JOSIP DERANJA"]
[885,"FRAN KURTOVIĆ"]
[886,"HRVOJE TROŠELJ"]
[887,"MAURO SUDAR"]
[888,"PAULO DEROSSI"]
[889,"Armen MUTIŠI"]
[890,"LUKA PEĐEN"]
[891,"JASMIN OMERAŠEVIĆ"]
[892,"DUBRAVKO BUTORAC"]
[893,"SANJIN OMIĆ"]
[894,"IVOR BENIĆ"]
[895,"FILIP DERANJA"]
[896,"DOMINIK CAR"]
[897,"TOMISLAV VUKOJA"]
[898,"DEJAN PERIĆ"]
[899,"Tin ANTIĆ"]
[900,"ANTONEL ANUŠIĆ"]
[901,"NEVIO BUTORAC"]
[902,"ZENA LIRIDONU"]
[903,"JADRANKO STOJANOVIĆ"]
[904,"DOMAGOJ MARGETA"]
[905,"NINO LUKŠIĆ"]
[906,"AZZARO MUJIĆ"]
[907,"MAURO JURIŠIĆ"]
[908,"DARIO MALATESTINIĆ"]
[909,"JOSIP GOLOMEJIĆ"]
[910,"HRVOJE PETROVIĆ"]
[911,"IGOR DOMIJAN"]
[912,"BRANKO BRNČIĆ"]
[913,"BENJAMIN ČAJIĆ"]
[914,"DINO DOBRINIĆ"]
[915,"TEDI MRAKOVČIĆ"]
[916,"Petrit MEMA"]
[917,"ZLATKO BUTKOVIĆ"]
[918,"ADRIJAN ČAJIĆ"]
[919,"ARDIAN PALUCA"]
[920,"DAMIR BARIČEVIĆ"]
[921,"NOVICA LEPIR"]
[922,"DOMAGOJ MATAIJA"]
[923,"VLADIMIR MATEJČIĆ"]
[924,"KRISTIJAN CAR"]
[925,"MILAN BOGDANOVIĆ"]
[926,"EDUARD KALANJ"]
[927,"ROBERT HRELJA"]
[928,"DRAGO ŽILJAK"]
[929,"IVAN POŽARIĆ"]
[930,"ROBERT MANESTAR"]
[931,"ANĐELKO FRKOVIĆ"]
[932,"DANIELA CAR"]
[933,"ANTON LJAČI"]
[934,"VLADIMIR MONTANARI"]
[935,"BRUNO KOSAGOV"]
[936,"NATAŠA HRELJAC"]
[937,"RUDOLF SMOLJAN"]
[938,"BRANKO SUDAR"]
[939,"INES CAR"]
[940,"DRAŽEN BRNČIĆ"]
[941,"ZVONIMIR KUTIJA"]
[942,"IGOR SARŠON"]
[943,"IGOR DOKMANOVIĆ"]
[944,"IGOR MONTANARI"]
[945,"MARKO ZELIĆ"]
[946,"ANDREJ SEKULIĆ"]
[947,"DALIBOR PROKOPIĆ"]
[948,"MIRJAN HORVAT"]
[949,"IGOR PEJIĆ"]
[950,"BOJAN PEZELJ"]
[951,"SANJIN JELOVAC"]
[952,"PAVO ŽUPAN"]
[953,"EGON PALJAR"]
[955,"DENIS MODRIĆ"]
[956,"DAVOR BEZJAK"]
[957,"BOŽIDAR TOMLJANOVIĆ"]
[958,"BOŽIDAR BIONDIĆ"]
[959,"SLOBODAN KLJUČANIN"]
[960,"TIHOMIR BRDAR"]
[961,"ANTO TOMAS"]
[962,"MARIN RUKAVINA"]
[963,"JURICA FILIPOVIĆ"]
[964,"JOSIP MESIĆ"]
[965,"STJEPAN GREGOVIĆ"]
[966,"ANTE TOMLJANOVIĆ"]
[967,"DARKO JELIČIĆ"]
[968,"JOSIP ŠTOKIĆ"]
[969,"NENAD PLEŠA"]
[970,"DAMIR NEKIĆ"]
[971,"ALEN FILIPOVIĆ"]
[972,"Ivan HRANIĆ"]
[973,"Dino RAČKI"]
[974,"Ivana PETRINEC"]
[975,"Marin KNEZ"]
[976,"Ivan ŠTIMAC"]
[977,"Marko GOTAL"]
[978,"Boris VUJOVIĆ"]
[980,"Tihomir MUSTAPIĆ"]
[981,"Neven PROLE"]
[982,"Marko ŽGANEC"]
[983,"Nikola GOLUB"]
[984,"Emerson ŽNIDARIĆ"]
[985,"Ante IVANOVIĆ"]
[986,"Vedran KEŽMAN"]
[987,"Danijel MATIJEVIĆ"]
[988,"Milan TOLIĆ"]
[989,"Alen MELNJAK"]
[990,"Tomislav BALENT"]
[991,"Rene LOVRENČIĆ"]
[992,"Nino LILIĆ"]
[993,"Mario BRELJAK"]
[994,"Nikola SVETEC"]
[995,"Siniša BENKO"]
[996,"Boris LILIĆ"]
[997,"Božidar ŽITNJAK"]
[998,"Marijan DOLENEC"]
[999,"Tatjana GAŠPARIĆ"]
[1000,"Matija CINGESAR"]
[1001,"Dino MAČEK"]
[1002,"Dejan KUTNJAK"]
[1003,"Neven ZADRAVEC"]
[1004,"Tomislav GRGIĆ"]
[1005,"Damir CRNČEC"]
[1006,"Filip GAŠPARIĆ"]
[1007,"Ervin IMAMOVIĆ"]
[1008,"Igor RUTIC"]
[1009,"Boris STEPAN"]
[1010,"Nikola MAJCEN"]
[1011,"Martin MARČEC"]
[1012,"Filip HLAPČIĆ"]
[1013,"Vedran HORVAT"]
[1014,"Leon HORENEC"]
[1015,"Dino HRASTOVEC"]
[1016,"Petar KLANEČEK"]
[1017,"Mihael MARENČIĆ"]
[1018,"Karlo LONČAR"]
[1019,"Marko MOŽEK"]
[1020,"Branimir NOVKO"]
[1021,"Valentino KOCIJAN"]
[1022,"Kristijan FIŠTREK"]
[1023,"Alen POŽGAJ"]
[1024,"Jurica BREZOVEC"]
[1025,"Filip MARTINEZ"]
[1026,"Ivan BRLIĆ"]
[1027,"Ivan RAMUŠČAK"]
[1028,"Domagoj GOLUBIĆ"]
[1029,"Srećko TKALČEC"]
[1030,"Tihomir BEŠENIĆ"]
[1031,"Dominik PAVLEK"]
[1032,"Darko HLAPČIĆ"]
[1033,"Matej PAVLOVIĆ"]
[1034,"David MAČEK"]
[1035,"Filip SLUNJSKI"]
[1036,"Josip NOVAK"]
[1037,"Goran KLASIĆ"]
[1038,"Marin JERGAN"]
[1039,"Igor ŽITNJAK"]
[1040,"Domagoj DRETAR"]
[1041,"Konrad DAVIDOVIĆ"]
[1042,"Hrvoje MATIJAŠEC"]
[1043,"Filip POŽGAJ"]
[1044,"Mateo VUK"]
[1045,"Elio DOLENEC"]
[1046,"Karlo KUTNJAK"]
[1047,"Matija PLANTAK"]
[1048,"Nikola BEDEKOVIĆ"]
[1049,"Karlo ŠPIRELJA"]
[1050,"Bruno MUŠKA"]
[1052,"NIKI ŠTIMAC"]
[1053,"VEDRAN DEVČIĆ"]
[1054,"VEDRAN TOMAŠEVIĆ"]
[1055,"SINIŠA MIŠKOVIĆ"]
[1056,"GRGUR STARČEVIĆ"]
[1057,"RAUL VALKOVIĆ"]
[1058,"ŽELJKO RADANOVIĆ"]
[1059,"SAŠA FRANK"]
[1060,"ZORAN BABIĆ"]
[1061,"MARKO KRMPOTIĆ"]
[1062,"GORAN STAŠEK"]
[1063,"MARKO VOJNOVIĆ"]
[1064,"BOŠKO KARLAŠ"]
[1065,"DAVOR BRAJNOVIĆ"]
[1066,"MARKO LAĆA"]
[1067,"VALTER FAVRETTO"]
[1068,"TONI KUČIĆ"]
[1069,"LOVRO TOMOVIĆ"]
[1070,"ANTE MIŠE"]
[1071,"PHILIPE LINIĆ"]
[1072,"ALEN KASIĆ"]
[1073,"SANJIN VUKUŠIĆ"]
[1074,"SAŠA OLUIĆ"]
[1075,"DAMIR PLEŠA"]
[1076,"IVAN LOVRIĆ"]
[1077,"IVANA ISKRA"]
[1078,"METTEA MILIJEVIĆ"]
[1079,"MIHAELA  POPOVIĆ "]
[1080,"Zdenko SEKELJ"]
[1082,"Ivan ŠERUGA"]
[1083,"Čedomir MRĐEN"]
[1084,"Zoran KVEDER"]
[1085,"Borna SABOLIĆ"]
[1086,"Domagoj BAČANI"]
[1087,"Matej MANDEK"]
[1088,"Saša KAMENAR"]
[1089,"Martin TAČI"]
[1090,"Luka TROJKO"]
[1091,"Benjamin ŽITNJAK"]
[1092,"Renato TROPŠA"]
[1093,"Tomislav DOBRINIĆ"]
[1094,"Dominik KNAPIĆ"]
[1095,"Marin MRĐEN"]
[1096,"Mislav PREMUŽIĆ"]
[1097,"Lovro LUKAVEČKI"]
[1098,"Karlo CIKAČ"]
[1099,"Luka OBELIĆ"]
[1100,"Goran ŠIMUNČIĆ"]
[1101,"Matija MARUŠIĆ"]
[1102,"Karlo ŠANTEK-JOHAN"]
[1103,"Tomislav HIRŠ"]
[1104,"Luka MATIJAŠIĆ"]
[1105,"Marko LUKAVEČKI"]
[1106,"Matija BORŠČAK"]
[1107,"Juraj KVEDER"]
[1108,"Edo KANIŽIĆ"]
[1109,"Tihomir MAJCEN"]
[1110,"Martin MAVRIČEK"]
[1111,"Borna HORENEC"]
[1112,"Daren DIMITRIJEVIĆ"]
[1113,"Petar SVETEC"]
[1114,"Karlo HLAPČIĆ"]
[1115,"Domagoj VRTOVŠNIK"]
[1116,"Luka VRBANIĆ"]
[1117,"Mateo NOVOSELEC"]
[1118,"Vitomil PASCUTTINI"]
[1119,"Karlo SEKETIN"]
[1120,"Karlo DRŽAIĆ"]
[1121,"Ivan PUTAREK"]
[1122,"Denis NOVOSELEC"]
[1123,"Lovro KOLAR"]
[1124,"Marko DUSPARA"]
[1125,"Željko GOLIK"]
[1126,"Tomislav DOBOVIČNIK"]
[1127,"Alen OŽURA"]
[1128,"Mirko ŠAMARIJA"]
[1129,"Nada ŠAMARIJA"]
[1130,"Đurđa SIMON"]
[1131,"Snježana HORVAT"]
[1132,"Zvonimir MELNJAK"]
[1133,"Lana SUŠEC"]
[1134,"SIMONA HAJDUK"]
[1135,"Dunja VESELOVAC"]
[1136,"Snježana HORVAT"]
[1137,"Rija KRIŽANIĆ"]
[1138,"Mateja SAMBOLEC"]
[1139,"Danijela KRANJEC"]
[1140,"Lea SEKELJ"]
[1141,"Josipa HUSAJINA"]
[1142,"Barbara FURJAN"]
[1143,"Anja VINCEK"]
[1144,"Brigita ZVONAR"]
[1145,"Vanja HORVAT"]
[1146,"Tena MARUŠEVEC"]
[1147,"Ivana JURKOVIĆ"]
[1148,"Klaudija VRANČIĆ"]
[1149,"Josipa ERŠEG"]
[1150,"Andreja ŠOKMAN"]
[1151,"Valentina BENČINA"]
[1152,"Barbara KARLOVČEC"]
[1153,"Valentina MUŽEK"]
[1154,"Tea JALUŠIĆ"]
[1155,"Rosana ĐUGA"]
[1156,"Paula KOCIJAN"]
[1157,"Melanija BRKINJAČ"]
[1158,"Radojica MATIJAŠEVIĆ"]
[1159,"Tea KOCIJAN"]
[1160,"Maja ŠOKMAN"]
[1161,"Mihaela LALJEK"]
[1162,"Petra POZDER"]
[1163,"Sandra BAJEC"]
[1164,"Morena MATIJAŠEVIĆ"]
[1165,"Tihana ŠAFRAN"]
[1166,"SARA LOVRENČIĆ"]
[1167,"Donna MALIĆ"]
[1168,"Jelena SAJKO"]
[1169,"Petra TOMIŠA"]
[1170,"Romana SAJKO"]
[1171,"Ines BODALEC"]
[1172,"Marinela DROŽĐEK"]
[1173,"Maja HRASTOVEC"]
[1174,"Dona ŠOŠTARIĆ"]
[1175,"Romina HADROVIĆ"]
[1176,"Nikol BODALEC"]
[1177,"Tea CESNIK"]
[1178,"Valentina HEREGA"]
[1179,"Lana ROJC"]
[1180,"Robert VRTOVŠNIK"]
[1181,"Lea ČEVIZOVIĆ"]
[1182,"Marina KOLAREVIĆ"]
[1183,"Iva ŠOBAK"]
[1184,"Anja DOMINIĆ"]
[1185,"Doroteja JALŠOVEČKI VALJAK"]
[1186,"Silvia PAVLOVIĆ"]
[1187,"Fani SOLOMUN"]
[1188,"Sara HRASTOVEC"]
[1189,"Laura ŠIPOŠ"]
[1190,"Nikolina KUZEL"]
[1191,"IVAN ŠIMUNIĆ"]
[1192,"MARKO PRPIĆ"]
[1193,"MAŠA LAKIĆEVIĆ"]
[1194,"MORENA ŽUNIĆ"]
[1196,"DRAŽEN TUČEK"]
[1197,"DAVOR ŠUNJIĆ"]
[1198,"Nevenka ĐURAK"]
[1199,"Mia PERŠI"]
[1200,"Ivona SAČIĆ"]
[1201,"Ena ZGREBEC"]
[1202,"Lorena KITNER"]
[1203,"Danijela FURJAN"]
[1204,"Elena DARABUŠ"]
[1205,"Elizabeta SKOČIBUŠIĆ"]
[1206,"Matea STRUPAR"]
[1207,"Lea LACKOVIĆ"]
[1208,"Matea BODALEC"]
[1209,"Nika FOŠNAR"]
[1210,"Matea POLJAN"]
[1211,"Edita HALILI"]
[1212,"Matea POSAVEC"]
[1213,"Nikolina MUŽEK"]
[1214,"Patricija MARENČIĆ"]
[1215,"Anja JAZBEC"]
[1216,"Martina MATUŠIN"]
[1217,"Anita BORŠIĆ"]
[1218,"Iva TOMAŠKOVIĆ"]
[1219,"Ines DOMJAN"]
[1220,"Elena HALILI"]
[1221,"Marija HANŽEK"]
[1222,"Suzana FURJAN"]
[1223,"Paula MARTINČEVIĆ"]
[1224,"Željka FRANIĆ"]
[1225,"Hrvoje MALINOVIĆ"]
[1226,"DAMIR BOBANOVIĆ"]
[1227,"MARIN SAKIĆ"]
[1228,"Mateo HRVATIN"]
[1229,"VEDRAN BANIĆ"]
[1230,"MARIJAN BAŠIĆ"]
[1231,"MILAN UZELAC"]
[1232,"IGOR MARIJANOVIĆ"]
[1233,"IVAN ĆOSIĆ"]
[1234,"ROBERT SAVKOVIĆ"]
[1235,"MARKO ERSTIĆ"]
[1236,"IVAN VRKLJAN"]
[1237,"Ivan PEŠIĆ"]
[1238,"JOSIP CRNIĆ"]
[1239,"DAMIR BOGDANOVIĆ"]
[1240,"WILIAMS ČERNEKA"]
[1241,"BRANIMIR MARIČEVIĆ"]
[1242,"Jakov GOJUN"]
[1243,"MLADEN PRSKALO"]
[1244,"IVAN STEVANOVIĆ"]
[1245,"FRANKO OVČARIČEK"]
[1246,"NINO ČUBELIĆ"]
[1247,"TONI HARBIĆ"]
[1248,"BRUNO KOZINA"]
[1249,"ROBERT SKLADANY"]
[1250,"BENJAMIN SINANOVIĆ"]
[1251,"TOMISLAV BUTORAC"]
[1252,"LUKA KOVAČEVIĆ"]
[1253,"MATKO ABRAMOVIĆ"]
[1254,"FILIP DOMIKA"]
[1255,"DINO DILJI"]
[1256,"MATEJ TIČIĆ"]
[1257,"IVAN VUČETIĆ"]
[1258,"LUKA ALAUPOVIĆ"]
[1259,"VJEKOSLAV SARDELIĆ"]
[1260,"IVAN OBŠIVAČ"]
[1261,"DANILO HARBIĆ"]
[1261,"DOMAGOJ JURKOVIĆ"]
[1262,"TADEJ ŠIROKA"]
[1263,"KRISTIJAN BLEČIĆ"]
[1264,"IVAN BALETIĆ"]
[1265,"ANDREJ PERSEN"]
[1265,"HRVOJE VOLAREVIĆ"]
[1266,"Vjenceslav JARNJEVIĆ"]
[1266,"MIRKO JURKOVIĆ"]
[1267,"ANTONIO PRPIĆ"]
[1268,"LUKA GUSTIN"]
[1268,"LEONARDO LOVRIČIĆ"]
[1269,"DRAGO KALEB"]
[1270,"IVAN SENTA"]
[1271,"ANTONIO BEBIĆ"]
[1272,"ZORAN SPOJA"]
[1273,"DAMIR UREMOVIĆ"]
[1274,"DAVID BROZ"]
[1274,"MIJO VOLAREVIĆ"]
[1275,"Josip BATINOVIĆ"]
[1276,"KRISTIJAN MICULINIĆ"]
[1277,"DORIJAN JURČIĆ"]
[1278,"LUKA LUKATELA"]
[1279,"DINO STRIZIĆ"]
[1280,"SVEN ČIMIĆ"]
[1281,"MAURO FRANKO"]
[1282,"MATEJ DRAŽIĆ"]
[1283,"IVAN KLAIĆ"]
[1284,"LARI MARAS"]
[1285,"IGOR PLIŠKO"]
[1286,"VID SPOJA"]
[1287,"ANTONIO TOMIĆ"]
[1288,"BRUNO TUS"]
[1289,"FILIP VODOPIĆ"]
[1290,"ANTON BORBELJ"]
[1291,"GORDAN PAVLIĆ"]
[1292,"MISLAV SPOJA"]
[1293,"FABIAN MICULINIĆ"]
[1294,"MARKO STRIZIĆ"]
[1295,"JAKOV STANIĆ"]
[1296,"MAURO LUKŠIĆ"]
[1297,"DINO DEROSSI"]
[1298,"MORENO CAR"]
[1299,"ALAN BEGIĆ"]
[1300,"HARIS SILAJDŽIĆ"]
[1301,"ANTE MAMULA"]
[1302,"MATEO LOLIĆ"]
[1303,"PAULO GROZDEK"]
[1304,"ANTONIO CUPAĆ"]
[1305,"ADRIANO ANDROČEC"]
[1306,"DALIBOR KAPELARI"]
[1307,"ZVONIMIR LENŽER"]
[1308,"DAVOR BILOBRK"]
[1309,"LJERKA KRAJNOVIĆ"]
[1310,"NINO SLAVIĆ"]
[1311,"PETAR JELUŠIĆ"]
[1312,"MARIN PLEŠE"]
[1313,"MATE JELUŠIĆ"]
[1314,"BRANKO ZORICA"]
[1315,"ANTONIO JELUŠIĆ"]
[1316,"MARIN SORIĆ"]
[1317,"MATEO TURKOVIĆ"]
[1318,"MARIO RATKAJEC"]
[1319,"IVAN SIMČIĆ"]
[1320,"DINO KOVAČIĆ"]
[1321,"DINO SLAVIĆ"]
[1322,"FILIP FERANDA"]
[1323,"ANDRO CEROVIĆ"]
[1324,"ANTONIO TURKOVIĆ"]
[1325,"IVAN DRETVIĆ"]
[1326,"PATRICK ČUTURIĆ"]
[1327,"DANIJEL HRMIĆ"]
[1328,"ZVONIMIR JELUŠIĆ"]
[1329,"LUKA SORIĆ"]
[1330,"KRISTINA TONKOVIĆ"]
[1331,"MONIKA KOŽUL"]
[1332,"NINA VIČIĆ"]
[1333,"DENY VUKOVIĆ"]
[1334,"ISABELLA LAZARIN"]
[1335,"ANĐELA BILOBRK"]
[1336,"DARIA KRSTINA"]
[1337,"DARIA OMERDIĆ"]
[1338,"ANJA VUKIĆ"]
[1339,"MIA STEFANOVIĆ"]
[1340,"LAURA FUMIS"]
[1341,"KATJA BILOBRK"]
[1342,"ALTEA KUKULJAN"]
[1343,"Ana DEBELIĆ"]
[1344,"IVA FRLAN"]
[1345,"LARA JAKOVAŠIĆ"]
[1346,"KARLA GVAČIĆ"]
[1347,"ANDREA MARINČIĆ"]
[1348,"Korina VUČIĆ"]
[1349,"MILA TOTO"]
[1350,"SARA VUJOVIĆ"]
[1351,"IRMA ZORIĆ"]
[1352,"JASMINA MARJANOVIĆ"]
[1353,"VIVIJANA JANJIĆ"]
[1354,"JOSIPA STEPIĆ"]
[1355,"SARA IVANČIĆ"]
[1356,"SANJA KUSTURIN BARKOVIĆ"]
[1357,"ANAMARI ZORICA"]
[1358,"LEA MIŠĆENIĆ"]
[1359,"JOSIPA JERČINOVIĆ"]
[1360,"KRISTINA AFRIĆ"]
[1361,"DARIJA HRVATIN"]
[1362,"KARLA MRŠAN"]
[1363,"MORANA STAKIĆ"]
[1364,"ANDREA LONČARIĆ"]
[1365,"ANA DEMARIA"]
[1366,"Lejla ŠABANIĆ"]
[1367,"ZVONIMIR LENŽER"]
[1368,"VIŠNJA HRMIĆ"]
[1369,"MILENKO KRAGULJAC"]
[1370,"ANTE JERKOVIĆ"]
[1371,"IVAN JERKOVIĆ"]
[1372,"FRANO BOŽIĆ"]
[1373,"STIPE TOMAŠEVIĆ"]
[1374,"KATARINA SUČIĆ"]
[1375,"ANDREA ŠALINOVIĆ"]
[1376,"IVA DRUŽIJANIĆ"]
[1377,"RADISLAVA NUIĆ"]
[1378,"DORIS ROMIĆ"]
[1379,"KATJA ŠKORPUT"]
[1380,"ANAMARIJA KRILIĆ"]
[1381,"DEJANA KNEŽIĆ"]
[1382,"KARLA ŠESTAN"]
[1383,"Tea PIJEVIĆ"]
[1384,"TEA RAKUŠIĆ"]
[1385,"IVA CVITANOVIĆ"]
[1386,"MARGITA ARAR"]
[1387,"NIKOLINA TOLIĆ"]
[1388,"RAFAELA PRANJIĆ"]
[1389,"MARIJA MARINKOVIC"]
[1390,"TEA JOVANOVIĆ"]
[1391,"MARTINA ŽILIĆ"]
[1392,"NIKOLINA NIKOLAC"]
[1393,"NEVENA NIKOLAC"]
[1394,"MARIJA PINTAR"]
[1395,"ANĐELA MARINOVIĆ"]
[1396,"KRISTINA ŽDERIĆ"]
[1397,"KATIA OSTOJIĆ"]
[1398,"ANĐELA MILIČEVIĆ"]
[1399,"VENDI BARBIR"]
[1400,"PERA DOMINIKOVIĆ"]
[1401,"VINKICA ŽDERIĆ"]
[1402,"MIA ŽDERIĆ"]
[1403,"ENA TOLJ"]
[1404,"LUCIJA PAVLOVIĆ"]
[1405,"ENA SPREMO"]
[1406,"LUCIJA BATUR"]
[1407,"ANDREA KLARIĆ"]
[1408,"PAVA ŽDERIĆ"]
[1409,"GABRIELA HERCEG"]
[1410,"Leona MENALO"]
[1411,"MARIJA RADOŠ"]
[1412,"ANA ŽDERIĆ"]
[1413,"RENATA KEŽIĆ"]
[1414,"MIA ZDOVC"]
[1415,"ELIZABETA DOMIĆ"]
[1416,"DOREA MARUŠIĆ"]
[1417,"MAJA KVESIĆ"]
[1418,"Irma DRAGIČEVIĆ"]
[1419,"Monika DOLENC"]
[1420,"Patricija KLARIĆ"]
[1421,"DINKO KATULIĆ"]
[1422,"MARKO MODRIĆ"]
[1423,"MARIN ZUBČIĆ"]
[1424,"IRSEL JUPIĆ"]
[1425,"MATEO PRSKALO"]
[1426,"ANTONIO ŠĆULAC"]
[1427,"FRAN ŽIKOVIĆ"]
[1428,"IGOR GALINA"]
[1429,"LUKA BRACANOVIĆ"]
[1430,"DINO STOŠIĆ"]
[1431,"FRANE BUKVIĆ"]
[1432,"ANTONIO NOVAKOVIĆ"]
[1433,"NENAD SLADIĆ"]
[1434,"MARIN ĐURICA"]
[1435,"BRANIMIR ČUTIĆ"]
[1436,"IVO ŽARKOVIĆ"]
[1437,"LUKA GLAVIĆ"]
[1438,"MATEJ VUKAS"]
[1439,"DAMIR VUČKO"]
[1440,"KREŠIMIR KOZINA"]
[1441,"IVAN NIŽIĆ"]
[1442,"FILIP GOLUBOVIĆ"]
[1443,"DARIO ČERNEKA"]
[1444,"SINIŠA ARBANAS"]
[1445,"DRAGAN MARIJANOVIĆ"]
[1446,"ROBERT LUKIĆ"]
[1447,"DEAN VUKAS"]
[1448,"ENRICO ĆIKOVIĆ"]
[1449,"VJEKOSLAV LONČARIĆ"]
[1450,"SPOMENKO ANTONIĆ"]
[1451,"DEJAN REBIĆ"]
[1452,"MIHAJLO JELIČIĆ"]
[1453,"DRAGUTIN ŠNAJDAR"]
[1454,"ZORAN REBIĆ"]
[1455,"IVICA ANTIĆ"]
[1456,"FRANJO POBOR"]
[1457,"IVAN DRAŽIĆ"]
[1458,"DAVOR LONČARIĆ"]
[1459,"IGOR ANTIĆ"]
[1460,"NIKICA ANTIĆ"]
[1461,"GORAN ŠKORIĆ"]
[1462,"IRENEJ KOSAGOV"]
[1463,"MARTIN LONČARIĆ"]
[1464,"FABIJAN  LONČARIĆ"]
[1465,"BORIS ŠKORIĆ"]
[1466,"ANDREJ POBOR"]
[1467,"KARLO BUTORAC"]
[1468,"ROLAND POBOR"]
[1469,"LORENA  TOPOLOVEC"]
[1470,"MARTINA LEKAJ"]
[1471,"SANJA STOJANOVIĆ "]
[1472,"ŽELJKA  KOMADINA "]
[1473,"DORIS ANTIĆ "]
[1474,"DAJANA KOMADINA "]
[1475,"MORENA  LUŠIČIĆ"]
[1476,"ANA PAVELIĆ "]
[1477,"BARBARA KRIŠKOVIĆ"]
[1478,"LORENA TUS"]
[1479,"JELENA KOMADINA"]
[1480,"JELENA STANIĆ"]
[1481,"MIA LUŠIĆ"]
[1482,"DORIS KOŠĆAK"]
[1483,"Katarina JEŽIĆ"]
[1484,"DRAŽEN KATULIĆ"]
[1485,"VESELJKO ŽMARIĆ "]
[1486,"ZOLTAN DJEKE "]
[1487,"VLADO BERNARDIS "]
[1488,"HRVOJE KRIŠKOVIĆ "]
[1489,"IVAN ANTIĆ"]
[1490,"ROKO  MARIČIĆ "]
[1491,"VLADIMIR KOLUNĐIĆ"]
[1492,"GORAN ŠEBALJA"]
[1493,"DAVOR  DUIGONJIĆ "]
[1494,"Miljenko LEVANIĆ"]
[1494,"DALIBOR TOMIĆ "]
[1495,"MARIO SVETIĆ "]
[1496,"Drago BENCEK"]
[1496,"TIHOMIR  TRUPKOVIĆ "]
[1497,"DAMIJAN  DRAGANIĆ "]
[1498,"DANIEL RISTIĆ"]
[1499,"ALEKSANDAR  ANTIĆ"]
[1500,"DENI  ANTIĆ"]
[1501,"Ivica MILEC"]
[1501,"DANIJEL  SOKOLIĆ "]
[1502,"JASMIN DEDIĆ"]
[1503,"Milorad ŽELEZIĆ"]
[1505,"DUŠAN ŠEBALJA"]
[1506,"Marko POSAVEC"]
[1507,"BRUNO COSUTTI"]
[1508,"ALEN RUBČIĆ "]
[1509,"IVICA  ANTIĆ"]
[1510,"DRAŽEN  MANESTAR"]
[1511,"SANDI  MANESTAR"]
[1512,"IVICA ŽIROVEC"]
[1513,"NENAD KLANFAR"]
[1514,"SANDRO DOMIJAN"]
[1515,"ANĐELKO  CAR"]
[1516,"KRISTIJAN BARIŠIĆ"]
[1517,"DARIO BUTKOVIĆ"]
[1518,"GORAN  VUKELIĆ "]
[1519,"VALENTINO BABIĆ"]
[1520,"EDIN  AHMIČIĆ "]
[1521,"BRUNO DOBRINIĆ"]
[1522,"IVAN  JERČINOVIĆ "]
[1523,"IVICA MANESTAR"]
[1524,"KUZMAN DOKOZA"]
[1525,"ANDREJ KOSTOLIĆ "]
[1526,"DRAŽEN MUŽEVIĆ "]
[1527,"DARIJE  DRAGIČEVIĆ "]
[1528,"BOJAN  ŠARAR "]
[1529,"TOMISLAV MUŽEVIĆ"]
[1530,"DRAGO  ANTIĆ "]
[1531,"FABIJAN  MANESTAR"]
[1532,"LOVRO  MANESTAR"]
[1533,"LUKA JURIĆ"]
[1534,"MARINO LUČIĆ"]
[1535,"DINO DOMIJAN "]
[1536,"MLADEN HAVAJIĆ"]
[1537,"TONI  JURČIĆ"]
[1538,"MARIN UREMOVIĆ"]
[1539,"NEVEN POPOVIĆ"]
[1540,"KARLO CAR"]
[1541,"DUBRAVKO CAR"]
[1542,"EDI LIPOVIĆ"]
[1543,"NENAD LESICA "]
[1543,"Dora MEHANOVIĆ"]
[1544,"ESAD SUBAŠIĆ"]
[1545,"Nika MILETIĆ"]
[1546,"Marija BLAŽEVIĆ"]
[1547,"KATARINA LOVRIĆ"]
[1548,"IVANA LETO"]
[1549,"Martina GRBEŠ"]
[1550,"Sara GRGIĆ"]
[1551,"Matea LJUBIC"]
[1552,"LUCIJA LAŽETA"]
[1553,"NIKOLINA AZINOVIĆ"]
[1554,"Magdalena BULJAN"]
[1555,"Petra BRAČUN"]
[1556,"Lucija PRIŽMIĆ"]
[1557,"Dora DOKO"]
[1558,"Matea ŠPOLJARIĆ"]
[1559,"Andrea HORVAT"]
[1560,"Dora HEZLER"]
[1561,"Viktorija LOVRINČEVIĆ"]
[1562,"MAJA DRAČA"]
[1563,"Karla DESKAR"]
[1564,"Petra ČARGONJA"]
[1565,"Iva PAVLEČIĆ"]
[1566,"Mia MILETA HORŽIĆ"]
[1567,"Ivana SALAČ"]
[1569,"Hrvoje BRLEK"]
[1570,"Luka ĐUKAN"]
[1571,"Filip SVATLIČIĆ"]
[1572,"Bruno VOJVODIĆ"]
[1573,"Dean SARAPA"]
[1574,"Matija MARTAN"]
[1575,"Ivan PASTVECKA"]
[1576,"Matej BANEKOVIĆ"]
[1577,"Vjeran DOBROVOLNY"]
[1578,"Vedran NAJASMIĆ"]
[1579,"Andrej IGNJATIĆ"]
[1580,"Marko BEJIĆ"]
[1581,"Josip SLUNJSKI"]
[1582,"Emanuel PETROVIĆ"]
[1583,"Šime ŽGELA"]
[1584,"Josip JOVIĆ"]
[1585,"Matija JAPEC"]
[1586,"Marko TOMIĆ"]
[1588,"Dario GRGINIĆ"]
[1589,"Ivan PERIŠA"]
[1590,"Sven GRILEC"]
[1591,"Tomislav ALAGUŠIĆ"]
[1592,"Josip KRAKAN"]
[1593,"Filip KRATOFIL"]
[1594,"Antonio KRATOFIL"]
[1595,"Domagoj PAPKOVIĆ"]
[1596,"Marko ANIĆ"]
[1597,"Matko DOMINKUŠ"]
[1598,"Filip NOVOSELEC"]
[1599,"Filip ŠTEFANOVIĆ"]
[1600,"Tomislav ADAMIĆ"]
[1601,"Borna PAKŠEC"]
[1602,"Petar TOKIĆ"]
[1604,"Ivan ŠAGOLJ"]
[1605,"Hrvoje HUŠNJAK"]
[1606,"Matija RADAKOVIĆ"]
[1607,"Bruno MILENKOVIĆ"]
[1608,"Borna BLAŽEVIĆ"]
[1609,"Tomislav CRNJAK"]
[1610,"Borna BOŽIKOVIĆ"]
[1611,"Robert BLAŽEVIĆ"]
[1612,"Marin SMOLIĆ"]
[1613,"Kristijan ZEMLJIĆ"]
[1614,"Marko BOROVAC"]
[1615,"Bruno ČORAK"]
[1616,"Nenad RAJKOVIĆ"]
[1618,"Ivan GETALDIĆ"]
[1619,"Lobel JIRA"]
[1620,"Matej GRUBIŠIĆ"]
[1621,"Vinko KALEB"]
[1623,"Matej ŽIVKO"]
[1624,"Ivan KARAMATIĆ"]
[1625,"Ivan MILISAVČIĆ"]
[1626,"IVAN GRANIĆ"]
[1627,"Đuro ĆUK"]
[1628,"Ivan RADIĆ"]
[1629,"Boris MALEK"]
[1630,"Hrvoje DRAGIČEVIĆ"]
[1631,"Marko ŠVRAKA"]
[1632,"Matej VIDA"]
[1633,"Ivan AGRIĆ"]
[1634,"TIN BADŽEK"]
[1637,"Jurica OBROL"]
[1638,"Marko KEZERIĆ"]
[1639,"Ivan DOMINIK"]
[1640,"Ivan KURTUŠIĆ"]
[1641,"Branimir LOZO"]
[1642,"Andrej VIDIĆ"]
[1643,"Dominik JANTOL"]
[1644,"Filip BADENIĆ"]
[1645,"Filip PLANTAK"]
[1646,"Marko PUNČEC"]
[1647,"Filip ORMUŽ"]
[1648,"Fran BUTINA"]
[1649,"Filip TREMAC"]
[1650,"Luka DUBOVSKI"]
[1651,"Dino OBAJDIN"]
[1652,"Ivan SOLDO"]
[1653,"Mateo MILETOVIĆ"]
[1654,"Krešimir KOZJAK"]
[1655,"Petar POPOVIĆ"]
[1656,"Petar PULJIĆ"]
[1658,"Bruno MARKOVIĆ"]
[1659,"Fran MEDENEC"]
[1660,"Viktor KUCALO"]
[1661,"Klaudijo DRAGOVIĆ"]
[1662,"Josip BEKIĆ"]
[1663,"Roko VRDOLJAK - COLO"]
[1664,"Luka MILIČEVIĆ"]
[1665,"Ivan FILETIĆ"]
[1666,"Lovro JOTIĆ"]
[1667,"Ivan PREŽIGALO"]
[1668,"Matija DUBOVSKI"]
[1669,"Denis POLUGA"]
[1670,"Krešimir HERCIGONJA"]
[1671,"Igor KOVAČIĆ"]
[1672,"ANTE BELAMARIĆ"]
[1673,"Slobodan VELIKIĆ"]
[1674,"ALAN KRAJAČIĆ"]
[1675,"JULIJAN ŠALIĆ"]
[1676,"Alen ROSANDIĆ"]
[1677,"Krešimir MALBAŠIĆ"]
[1678,"Vedran BORIČIĆ"]
[1679,"Vedran KRKAČ"]
[1680,"Vibor MOMČILOVIĆ"]
[1681,"MARIO MAGLIĆ"]
[1682,"Damir KRIZMANIĆ"]
[1687,"TOMISLAV RUKAVINA"]
[1688,"Zlatko CRNKOVIĆ"]
[1689,"Alen PETREK"]
[1690,"Vladimir ŠTURMAN"]
[1691,"Damir ILIĆ"]
[1692,"Mirjan MARGITIĆ"]
[1693,"Hrvoje HALOZAR"]
[1694,"Velimir ŠOIĆ"]
[1695,"Saša ĆORLUKA"]
[1696,"Vlatko ANDERLUH"]
[1697,"KRISTIJAN SUBIĆ"]
[1698,"Krešimir GLAVAN"]
[1699,"Matija MARIĆ"]
[1700,"Bruno VOLF"]
[1701,"ANTUN ŠOJAT"]
[1702,"Josip JOSIPOVIĆ"]
[1703,"Marijo SEVER"]
[1704,"Ivan VRNOGA"]
[1705,"IRENA  ĐURAKOVIĆ"]
[1705,"Marko MIČIJA"]
[1706,"Hrvoje TARABIĆ"]
[1707,"Marko AUGUSTINOVIĆ"]
[1708,"Davor BARANAŠIĆ"]
[1709,"Matija MILEC"]
[1710,"Romano RIBIĆ"]
[1711,"Matija ŠPAC"]
[1712,"Andrija ŽUPANIĆ"]
[1713,"Goran ČRETNI"]
[1714,"Zdravko GAL"]
[1715,"Petar JURIČEVSKI"]
[1716,"Zoran DRUŠKO"]
[1717,"Darko BOŽAK"]
[1718,"Tomislav FUNDA"]
[1719,"Ivan PUTAREK"]
[1720,"Vinko BISTROVIĆ"]
[1721,"Tomislav GOTAL"]
[1722,"Igor BISTROVIĆ"]
[1723,"Josip HAJDUK"]
[1724,"Aleksandar ŽUPANIĆ"]
[1725,"Darko GOTAL"]
[1726,"FILIP JOVANOVIĆ"]
[1731,"Siniša KRANJEC"]
[1732,"Danijel GRILEC"]
[1733,"Ivan MATIĆ"]
[1734,"Goran RUSSO"]
[1735,"IVAN KOLAK"]
[1736,"Marko ČRLJENEC"]
[1737,"Božidar MIKULIĆ"]
[1738,"Luka PEJČIĆ"]
[1739,"Zoran GLAVOČIĆ"]
[1740,"Josip ŽIVEC"]
[1741,"Dario BARIŠIĆ"]
[1742,"ROMANO DIZDAR"]
[1743,"Dubravko LONČAR"]
[1744,"Nikola LEDIĆ"]
[1745,"JOZO BERIĆ"]
[1746,"Goran JOVIČIĆ"]
[1747,"Marko RADOVANOVIĆ"]
[1748,"Petar KRIŠTO"]
[1749,"Domagoj GARVAN"]
[1750,"Anto KOROLJEVIĆ"]
[1751,"HRVOJE KOŠČEVIĆ"]
[1752,"Hrvoje MARIĆ"]
[1753,"Marko FILIPOVIĆ"]
[1754,"Matej RADOŠEVIĆ"]
[1755,"Antonio PAVKOVIĆ"]
[1756,"Luka ĆOSIĆ"]
[1758,"Fran LASKOVIĆ"]
[1759,"Tomislav VUGRINEC"]
[1760,"Zvonimir CELJAK"]
[1761,"Bruno HUSARIĆ"]
[1762,"Ante VUČKO"]
[1763,"Neven GRGURIĆ"]
[1764,"Stjepan VUGRINEC"]
[1765,"Mateo MRVELJ"]
[1766,"Domagoj LJUBIČIĆ"]
[1767,"Dino GULAM"]
[1768,"Marko MILOŠ"]
[1769,"Stanko HERCEG"]
[1770,"Nikola VRANJKOVIĆ"]
[1771,"Domagoj PREPUNIĆ"]
[1772,"Ante VUČIĆ"]
[1773,"Ivan Matija KUBIĆ"]
[1774,"Luka OŠTRIČKI"]
[1775,"Tomislav FILIPOV"]
[1776,"Mate KRIŠTO"]
[1777,"Lucijan LOJE"]
[1778,"Ante MARIĆ"]
[1779,"Josip MARIĆ"]
[1780,"Žarko ČURIĆ"]
[1781,"Renato MUCAK"]
[1782,"Dominik HUNDRIĆ"]
[1783,"Mario LACKOVIĆ"]
[1784,"Sven RAOS"]
[1785,"Petar TOPIĆ"]
[1786,"Nikola MALIĆ"]
[1787,"Ivan VOJNOVIĆ"]
[1788,"ZVONIMIR MIŠAR"]
[1789,"Bruno MALIĆ"]
[1790,"MATIJA PREBEŽIĆ"]
[1791,"Jasmin DELALIĆ"]
[1792,"Tomislav ČUNKO"]
[1793,"Drago VOJNOVIĆ"]
[1794,"Stipan KALEB"]
[1795,"Stipe MATIĆ"]
[1796,"Denis KATANEC"]
[1797,"DAVOR HASIĆ"]
[1798,"Saša MUŽINA"]
[1799,"Rudi PAPIĆ"]
[1800,"Nataša KOLEGA"]
[1801,"Ivica LABAŠ"]
[1802,"Marijan GRDIĆ"]
[1802,"MARIO  KATALINIĆ "]
[1803,"Bruno PIVARIĆ"]
[1804,"Mario ZEC"]
[1805,"Zoran MLINARIĆ"]
[1806,"Ivan JIRA"]
[1807,"Kruno SERTIĆ"]
[1808,"Darko BOROVAC"]
[1809,"Daniel KAVAN"]
[1810,"Bojan BULAVA"]
[1811,"Zvonimir ČIČAK"]
[1812,"Tomislav TOMLJANOVIĆ"]
[1813,"Goran ŠNAJDAR"]
[1814,"Anton KRIVAK"]
[1815,"Goran ZARADIĆ"]
[1816,"Matko VLAIĆ"]
[1817,"Filip SRIĆA"]
[1818,"Mislav MINTAS"]
[1819,"Ivan MIHIĆ"]
[1820,"Goran LEVAČIĆ"]
[1821,"Nikola ZARADIĆ"]
[1822,"Romano LUPIĆ"]
[1823,"Vibor ČOLJA"]
[1824,"Ivan ZORIĆ"]
[1825,"Zvonimir KOREN"]
[1826,"Marko BELJAN"]
[1827,"Radoslav ZARADIĆ"]
[1828,"Denis KOLAREC"]
[1829,"Ivan ČIČKO"]
[1830,"Darko GAŽAN"]
[1831,"ANTONIO LONČARICA"]
[1832,"LUIS ARKULIN"]
[1833,"LUJO JURIŠIĆ"]
[1834,"MISLAV PETKOVIĆ"]
[1835,"DARIO JERINIĆ"]
[1836,"ZRINKO MAJČICA"]
[1837,"DAMIR ŠĆAPEC"]
[1838,"ADI KARAMEHMEDOVIĆ"]
[1839,"Demir ĆATOVIĆ"]
[1840,"LUKA PENDO"]
[1841,"HRVOJE LONČARICA"]
[1842,"PERO VERAJA"]
[1843,"BALDO JURIŠIĆ"]
[1844,"IVO LUČIĆ"]
[1845,"GORAN TOLIĆ"]
[1846,"MARKO LIPOTIĆ"]
[1847,"ZDENKO HILTNER"]
[1848,"ĐIVO BOŽINOVIĆ"]
[1849,"PETAR KORDIĆ"]
[1850,"MATIJA BUTIGAN"]
[1851,"ALDIN HAJDAROVIĆ"]
[1854,"VEDRAN MUHOBERAC"]
[1855,"Kenan MAČKIĆ"]
[1857,"ANTE ZLOIĆ"]
[1858,"ADMIR ČUSTOVIĆ"]
[1859,"NIKŠA BUŠLJE"]
[1860,"ANDRIJA MUHOBERAC"]
[1861,"ANTONIO VLAŠIĆ"]
[1862,"MIHAJLO ŠPREM"]
[1863,"JOSIP BARIŠIĆ"]
[1864,"MIRO KRMEK"]
[1865,"IVO DRAGIĆ"]
[1866,"SVEN KRILE"]
[1867,"DRAŽEN TUČEK"]
[1868,"HRVOJE BABIĆ"]
[1869,"RAUL BARETIĆ"]
[1870,"LOTAR BENGIN"]
[1871,"MATIJA GOLIK"]
[1872,"RENATO GRBČIĆ"]
[1873,"NINO JURETIĆ"]
[1874,"TOMISLAV KARAULA"]
[1875,"IVAN KAZAZI"]
[1876,"MARIJAN KLIĆ"]
[1877,"ERIK KONTA"]
[1878,"IVAN LUKAČIĆ"]
[1879,"ANTE MANDEKIĆ"]
[1880,"PETAR MILETIĆ"]
[1881,"MARIO MOHOROVIČIĆ"]
[1882,"Luka MRAKOVČIĆ"]
[1883,"DENIS OREŠKOVIĆ"]
[1884,"DIEGO ORLIĆ"]
[1885,"DORIJAN OKRETIĆ"]
[1886,"FILIP PAVIĆ"]
[1887,"DARKO PAVLETIĆ"]
[1888,"KIM ROGIĆ"]
[1889,"BRUNO ŠTEFANČIĆ"]
[1890,"VIKTOR STIPČIĆ"]
[1891,"DOMAGOJ ŠVEC"]
[1892,"FILIP ŠUNJIĆ"]
[1893,"KARLO VUČINIĆ"]
[1894,"MATEO VUKMAN"]
[1895,"TOMISLAV KRULJAC"]
[1896,"Igor RULJ"]
[1897,"Dario PROS"]
[1898,"Mario MATIĆ"]
[1899,"Ivan UDŽENIJA"]
[1900,"Dominik HRESTAK"]
[1901,"Saša KOZAR"]
[1902,"Marin MEDVIDOVIĆ"]
[1903,"Antonio VUKSANOVIĆ"]
[1904,"Lidija TRGOVEC"]
[1905,"Dora TUĐA"]
[1906,"Mateja LELJAK"]
[1907,"Dina SINKOVIĆ"]
[1908,"Anđela KRSNIK"]
[1909,"Barbara FRLJUŽEC"]
[1910,"Jelena BRAČEVIĆ"]
[1911,"MARTINA KOPRIVNJAK"]
[1912,"Silvija HERAK"]
[1913,"Katarina ŽIGMAN"]
[1914,"Sandra ŽIGMAN"]
[1915,"Željka JURMAN"]
[1916,"Matilda JURIČEV TALIJAŠ"]
[1917,"Vlatka HALDEK"]
[1918,"Jelena ARTIĆ"]
[1919,"Sanja FRUK"]
[1920,"Matilda JURIČEV ŽIGMAN"]
[1921,"Milovan DRUŽINEC"]
[1922,"Žarko ŽIGMAN"]
[1923,"Miljenko KRKALO"]
[1924,"Saša KUNDIH"]
[1925,"Anamarija LEŽ"]
[1926,"Kristina BELINA"]
[1927,"Ivančica SIVEC"]
[1928,"Leonarda GRAHOVAC"]
[1929,"Andreja BELINA"]
[1930,"Jelena TUĐA"]
[1931,"Mateja OČIĆ"]
[1932,"Lucija OČIĆ"]
[1933,"Lara OČIĆ"]
[1934,"Margareta KUŠAN"]
[1935,"Lana ŠEMOVČAN"]
[1936,"Ana VRANKOVEČKI"]
[1937,"Jelena PEVEC"]
[1938,"Dunja HABULIN"]
[1939,"Nika BAŠIĆ"]
[1940,"Tajana HERCIGONJA"]
[1941,"Zoran DESPENIĆ"]
[1942,"Denis DESPENIĆ"]
[1943,"Tomislav PETANJEK"]
[1945,"AMIR EL-HAGE"]
[1946,"Grgur BULOVIĆ"]
[1947,"Marko SCHULHAUSER"]
[1948,"Renato FUDURIĆ"]
[1949,"Ernest KERIN"]
[1950,"Mislav ODAK"]
[1951,"Valentino BENKO"]
[1952,"Dominik LUGARIĆ"]
[1953,"Karlo PALATINUŠ"]
[1954,"Denis MIKELIĆ"]
[1955,"Luka GALIĆ"]
[1956,"Ivan MARTINIĆ"]
[1957,"Alen VLAHOVIĆ"]
[1958,"DAMIR VLAŠIĆ"]
[1959,"Teo ŠTEFEK"]
[1960,"CVJETANA TABAIN"]
[1961,"Goran KOLIĆ"]
[1962,"JOSIP KRSTIČEVIĆ"]
[1963,"MIHO GLAVINIĆ"]
[1964,"MARIO RAJEVAC"]
[1965,"PERO LUČIĆ"]
[1966,"MATEO BRAICA"]
[1967,"IVAN ŠARE"]
[1968,"HRVOJE STOJIĆ"]
[1969,"NIKOLA VIOLIĆ"]
[1970,"DOMINIK ŽANETIĆ"]
[1971,"MIRNES ĐUGUM"]
[1972,"MATEJ MILOŠ"]
[1973,"ANTUN GJURAŠ CAR"]
[1974,"MARKO PRNJAT"]
[1975,"VLAHO GUNJINA"]
[1976,"MATKO PRCE"]
[1977,"MAROJE SOLJAČIĆ"]
[1978,"GIOVANNI DI CEGLIE"]
[1979,"ALEN PERIĆ"]
[1980,"MARKO DUGANDŽIĆ"]
[1981,"MIHO MATIĆ,ŽIGOVIĆ"]
[1982,"HRVOJE KALINA"]
[1983,"Luka MASLAČ"]
[1984,"Stipe RAKO"]
[1985,"Luka ŠEGOTA"]
[1986,"Milan SUTIĆ STEKOVIĆ"]
[1987,"Matija MARKAS"]
[1988,"Renato ŠIMUNIĆ"]
[1989,"Fran BAŠIĆ"]
[1990,"Domagoj TRNINIĆ"]
[1991,"Fran DEVIĆ"]
[1992,"Janko BULOVIĆ"]
[1993,"Ivan ŠEGOTA"]
[1994,"Danko STARČEVIĆ"]
[1995,"Borna MARKUŠ"]
[1996,"Petar ROTIM"]
[1997,"Dario VUKSANOVIĆ"]
[1998,"Mario ULAMEC"]
[1999,"Goran PERIĆ"]
[2000,"Monika ULAMEC"]
[2001,"Krunoslav KUŠTELEGA"]
[2002,"Robert PEČIĆ"]
[2003,"Denis BOGOVIC"]
[2004,"Patrik BOGOVIC"]
[2005,"Ivica IPŠA"]
[2007,"Stiven KOŠČAK"]
[2008,"Tomislav PLANTIĆ"]
[2009,"Matija IPŠA"]
[2010,"Nenad STIPETIĆ"]
[2011,"Filip BENJAK"]
[2012,"Mario PURGAR"]
[2013,"Mario DREVEN"]
[2014,"Zoran ŠANTEK"]
[2015,"Vedran DUŽEVIĆ"]
[2016,"Dražen KLJUČARIĆ"]
[2017,"Tin ŠINJORI"]
[2018,"Nikola VOLARIĆ"]
[2019,"Josip KOS"]
[2020,"Nikola PAJAN"]
[2021,"Kristijan PAŽUR"]
[2022,"Mario VLAHINJA"]
[2023,"Petar MEŠTRIĆ"]
[2024,"Tomislav ŠTORGA"]
[2025,"Marijan BOŽAK"]
[2026,"Slavko PEČATNIK"]
[2027,"Stjepan POJE"]
[2028,"Danijel POJE"]
[2029,"Siniša LONČAR"]
[2030,"Predrag PREŠNJAK"]
[2031,"Zlatko BELANČIĆ"]
[2032,"Ante ARIĆ"]
[2033,"Mario PARADŽIK"]
[2034,"Branko BARTULIN"]
[2035,"Dragi UTJEŠINOVIĆ"]
[2036,"Branimir VRSELJA"]
[2037,"Luka BUMBAK"]
[2048,"ANDRO VLADUŠIĆ"]
[2069,"Dario GABRIĆ"]
[2111,"Mirko MAMIĆ"]
[2122,"Luka MATIĆ"]
[2163,"Monika BJELČIĆ"]
[2178,"Dino SOLAJA"]
[2214,"Vedran JURINOVIĆ"]
[2229,"MIRKO BURĐELEZ"]
[2265,"Tamara KUDUZ"]
[2280,"IVAN MATAGA"]
[2304,"IVICA KLJUČE"]
[2339,"Lana HUBAK"]
[2354,"Neven MARKOVIĆ"]
[2389,"Anamarija ŠIMUNEC"]
[2396,"Ivana KOVAČIĆ"]
[2437,"BRANIMIR ŠAIN"]
[2448,"ANTONIO MARINIĆ"]
[2493,"Agron BAFTIJAJ"]
[2508,"Marino JERKOVIĆ"]
[2544,"Mate MARIĆ"]
[2559,"Luka DEOTTO"]
[2590,"MIŠELA ŠARE"]
[2602,"Marija ZELJKO"]
[2616,"IVONA JERKOVIĆ"]
[2651,"Tonka RISTEVSKI"]
[2666,"Anja ROMEK"]
[2706,"Filip GJERGJI"]
[2717,"Ana BAČEKOVIĆ"]
[2758,"Karlo CHEDID"]
[2769,"Maja ČOP"]
[2809,"Sandra BOŠNJAK"]
[2824,"VELJKO MILINA"]
[2860,"Melanija KOŠTARIC"]
[2875,"Ivan MICUDAJ"]
[2890,"Tomislav TRANDLER"]
[2926,"Tomislav ČIBARIĆ"]
[2941,"Ivan KERETA"]
[2978,"Mihovil MUNITIĆ"]
[2993,"KRISTINA JOVIĆ"]
[3033,"MATEA MATKOVIĆ"]
[3044,"MARTINA REZIĆ"]
[3084,"NINO PIJANOVIĆ"]
[3095,"ANITA PARČINA"]
[3136,"Slobodan ŠKORIĆ"]
[3151,"Hrvoje NEUMANN"]
[3187,"MATE BEUS"]
[3202,"Stjepan HRUŠKAR"]
[3217,"Vedran BUTOROVIĆ"]
[3255,"DORIS  BRALIĆ"]
[3270,"Filip ŠKARO"]
[3306,"MARIO BUNČUGA"]
[3321,"TONČA ŠILJEG"]
[3361,"Hrvoje KARDUM"]
[3372,"Brigita OFENBEHER"]
[3412,"ANA ANĐELIĆ"]
[3423,"JOSIP VOJNOVIĆ"]
[3463,"Mirjana OGNJENOVIĆ"]
[3477,"SREĆKO BOKŠIĆ"]
[3513,"MIRTA PENSA"]
[3528,"ANDRIJA ALFIREVIĆ"]
[3543,"MATE NIKOLIĆ"]
[3579,"Amalija BOJIC"]
[3595,"LORELA BARTOLIĆ"]
[3630,"Marko SERTIĆ"]
[3645,"Daniel RODIC"]
[3685,"Rijalda BAJRIC"]
[3696,"ANA GRČIĆ"]
[3735,"ANTE BRNAS"]
[3750,"IGOR GRAOVAC"]
[3786,"DAVOR VALČIĆ "]
[3802,"Krunoslav KATIC"]
[3838,"Karmen UREMOVIĆ"]
[3856,"NINO JERAK"]
[3871,"TONI ČUBRIĆ"]
[3907,"KARLO NJEGOVAN"]
[3922,"MARIO ČORAK"]
[3958,"TOMISLAV MAZIĆ"]
[3973,"KONSTANTIN ANIĆ"]
[4013,"ANTONIO BABARA"]
[4024,"MATEJA ČUTURA"]
[4063,"MAJA HIBELJIĆ"]
[4078,"JANJA GRGIĆ"]
[4114,"Karlo PERUŠKO"]
[4129,"IVANA MAŠA BOBANOVIĆ"]
[4165,"SLOBODAN BOŽANOVIĆ"]
[4180,"ĐURĐIJANA OSTOJIĆ"]
[4195,"SANJA LUKIĆ"]
[4231,"DARIO BEGONJA"]
[4246,"JOSIP BARIĆ "]
[4288,"RAFAEL LOVRIĆ"]
[4299,"HRVOJE TUCAKOVIĆ"]
[4339,"Marko MIHIC"]
[4350,"Robert FILIPOVIĆ"]
[4390,"Venio LANC"]
[4405,"Goran BUBALO"]
[4442,"Andrej BALUNOVIC"]
[4457,"Luka FURIC"]
[4493,"VLADIMIR ŽUPARIĆ"]
[4508,"JOSIP VERKOVIĆ"]
[4523,"IVO KNEŽEVIĆ"]
[4559,"STEFANO RAJKOVIĆ"]
[4574,"Patrik VEOCIC"]
[4614,"JERKO ANTIŠIĆ"]
[4625,"Đurđica MARAVIĆ"]
[4665,"Vedrana MARIC"]
[4676,"Matea ČUBELA"]
[4716,"Karlo GREGURIĆ"]
[4731,"Matej MATIĆ"]
[4767,"MARKO AŠPERGER"]
[4782,"Luka JURKOVIĆ"]
[4818,"Boban ZDJELARIĆ"]
[4833,"Danijel IBRAJIĆ"]
[4848,"Matija HIHLIK"]
[4884,"MARIN SKARAMUCA"]
[4901,"Ana STILINOVIĆ"]
[4944,"DRAGO DAMJANOVIĆ"]
[4956,"DEJAN KAMENSKI"]
[4997,"IVAN CELJAK"]
[5010,"MATEA ČURIĆ"]
[5052,"ADRIANO HOLJEVAC"]
[5069,"KRISTIJAN ILIĆ"]
[5105,"TOMISLAV BET"]
[5120,"ŽELJKO NOVAK"]
[5135,"FILIP POPOVIĆ"]
[5171,"NEVEN PARIPOVIĆ"]
[5185,"Dino-Miroslav JANKOVIĆ"]
[5222,"MATKO CRNKOVIĆ"]
[5237,"Dino LALIĆ"]
[5274,"MARTINA KOZIĆ"]
[5286,"MARIO KOHEK"]
[5323,"IVAN MIMIĆ"]
[5335,"BRUNO MALOVIĆ"]
[5378,"LJILJANA GUDELJ"]
[5393,"ANA SOKOL"]
[5427,"MATIJA VEDRAL"]
[5440,"LUKA NEMET"]
[5453,"BOJAN PAVLETIĆ"]
[5489,"MANDA BRICO "]
[5504,"MAJA VRABEC"]
[5539,"HARI PRIBETIĆ"]
[5552,"BOŽIDAR PUGELNIK"]
[5585,"VANJA ČORIĆ"]
[5593,"LUCIJA RIMAC"]
[5625,"TEA RAUMBERGER"]
[5636,"RENATA BALAJIĆ"]
[5676,"MATIJA BILANDŽIJA"]
[5688,"Marin LAKOVIĆ"]
[5724,"OLIVIA ČURĆIĆ"]
[5738,"MLADEN BOLJUN"]
[5753,"GORAN GELENČER"]
[5789,"MASSIMO BRAJUHA"]
[5804,"ORIANO KLIBA"]
[5836,"MAGDALENA KUDELIK"]
[5846,"VANJA LAJIĆ"]
[5874,"MARKO DIMAČ"]
[5885,"MATEJ PUŠKARIĆ"]
[5926,"GORAN SINČIĆ"]
[5942,"ROBERT ZAHTILA"]
[5976,"TOMISLAV ŠALAJA"]
[5990,"MARINKO PAPAC"]
[6027,"KARIN MAČINKOVIĆ"]
[6042,"SENDY SIJARIĆ"]
[6057,"IVANA  KOVAČ"]
[6095,"ALEN STOJANOVIĆ"]
[6110,"SLAVKO DRAKULIĆ"]
[6146,"ARIANA BAĆAC"]
[6161,"TANJA ADAMOVIĆ"]
[6201,"NINA HRELJA"]
[6212,"NORMA MIŠAN"]
[6252,"IVA BRAJKOVIĆ"]
[6267,"MARKO ZAHARIJA"]
[6303,"SERGIO MEDEN"]
[6318,"MANUELA ŠORONDA"]
[6354,"KRISTINA TOMAŠ"]
[6369,"KATARINA LUKEC"]
[6384,"LORENA PALOŠKI"]
[6420,"MATEJA JAKOPČIĆ"]
[6435,"DAMIR SAMARŽIJA"]
[6475,"TIN PETROVIĆ"]
[6485,"MARKO VELIĆ"]
[6519,"DINO ŽILIĆ"]
[6529,"BARBARA BLAŽONIJA "]
[6567,"ŽELJKA MATIĆ"]
[6582,"TEA BAHUN"]
[6615,"ANTE PALAMETA"]
[6629,"DARIO VARGA"]
[6665,"BOJANA BOSNIĆ"]
[6680,"TAMARA PUŠKARIĆ"]
[6695,"MAJA ŽALAC"]
[6731,"IVAN BILJECKI"]
[6747,"MIRNA SMILJANEC"]
[6781,"MANUEL ČABRAN"]
[6793,"MAURO ZAGOLIN"]
[6831,"DRAGAN BOROTIĆ "]
[6842,"AMIRA HOXA"]
[6878,"DORA MILAKOVIĆ"]
[6891,"DINA RIZVIĆ"]
[6923,"BORIS BARIĆ"]
[6938,"MARTINA FORO"]
[6973,"JOSIPA KIŠ"]
[6986,"ANITA BARTOLOVIĆ"]
[7001,"MATEJ ĆOSIĆ"]
[7036,"TOMISLAV ČALUŠIĆ"]
[7049,"DARIO KIŠ"]
[7088,"MISLAV LUKAČ"]
[7098,"ANTE LIVAJA"]
[7138,"IVAN KEVIĆ"]
[7149,"MAROJE MATANA"]
[7189,"JAKOV BRADARIĆ"]
[7203,"TONI MARTINOVIĆ"]
[7239,"STEFANO KOKOT"]
[7254,"BORIS MILEVOJ"]
[7269,"ANTONIO OROSHI"]
[7305,"ROMANO ŠĆULAC"]
[7320,"RONI VIŽINTIN"]
[7356,"MATIA VUKOVIĆ"]
[7371,"LANA KONČAREVIĆ"]
[7411,"TEA DRAŽIĆ "]
[7422,"NATAŠA MIOČINOVIĆ"]
[7462,"VALENTINA LOKINGER"]
[7473,"ANDREA BUKVIĆ"]
[7513,"NIKOLA JADRIJEVIĆ"]
[7528,"ROBERTO BORČIĆ"]
[7565,"MARIO SALOPEK"]
[7580,"MARTIN GALOVIĆ"]
[7595,"KREŠIMIR LATIN"]
[7631,"MARKO HORVAT"]
[7646,"FANI BURIĆ"]
[7682,"LUCIJA SKOKO"]
[7697,"IVANA DRONJAK"]
[7738,"TEA TONC"]
[7750,"IVA BREZEC"]
[7790,"JOSIPA BROZOVIĆ"]
[7805,"KRISTINA MILAKOVIĆ"]
[7841,"DARIO KOLESARIĆ"]
[7856,"DANIJEL RUNJAK"]
[7892,"VLADIMIR JUHAZ"]
[7908,"JOSIP PALJAR"]
[7923,"PETAR PARAĐINA"]
[7960,"Fabijan VRGOČ"]
[7974,"MARKO ZOKOVIĆ"]
[8010,"KREŠIMIR IVIČAK"]
[8025,"MARKO GABRIĆ"]
[8066,"DORA VRDOLJAK"]
[8077,"FANI MUŽINIĆ"]
[8117,"MARIN BORZIĆ"]
[8132,"RENATO CIVADELIĆ"]
[8183,"ZVONKO JAJČEVIĆ"]
[8198,"STANKO MARČIĆ"]
[8238,"STIPE PLETIKOSIĆ"]
[8253,"IVAN ĆUK"]
[8268,"ANTE TOMAŠEVIĆ"]
[8303,"TONI BOTIĆ"]
[8319,"RENATA ČULIĆ"]
[8355,"IVANA ĐELALIJA"]
[8369,"MATEA LJUBAS"]
[8412,"ANAMARIJA VULETA"]
[8423,"MARTINA VRBANIĆ"]
[8452,"JELENA SAMARDŽIĆ"]
[8467,"VINKO MEDIĆ"]
[8497,"STEFAN KAPA"]
[8510,"SAŠA BRKIĆ"]
[8548,"MATE TRCERA"]
[8564,"MARKO ŠPRLJAN"]
[8579,"SOFIJA MARKUNOVIĆ"]
[8615,"STANKO PILIĆ"]
[8631,"DINO DAMJANIĆ"]
[8670,"IVANA ĆURIĆ"]
[8681,"MIRELA ČOVIĆ"]
[8721,"Milan BOBIĆ"]
[8732,"DORA KRNJEVIĆ"]
[8773,"Martina LOVRIĆ"]
[8788,"Karla FRANKOVIĆ"]
[8824,"JOSIP DIJANIĆ"]
[8839,"Mladen BOŽIĆ"]
[8877,"Iva IVŠAC"]
[8892,"Nikola ŠUJSTER"]
[8907,"Dražen JOVIĆ"]
[8943,"JOŠKO MRČELA"]
[8958,"MIROSLAV BRAČIĆ"]
[8998,"ZORAN HUSEJNOVIĆ"]
[9009,"Ante KALEB"]
[9049,"NIKOLA HOLETIĆ"]
[9060,"LUCIJA SUDAREVIĆ"]
[9107,"TONI TARABA"]
[9122,"IVANA RIBARIĆ"]
[9158,"KRISTINA LIEBERTH"]
[9174,"MATKO TOMISLAV NOVAK"]
[9210,"STANKO LOVRIĆ"]
[9225,"IGOR SUNAJKO"]
[9240,"GORAN KUŠEN"]
[9377,"JOSIP LEHPAMER"]
[9392,"MARTINA ĆORKOVIĆ"]
[9432,"MATIJA KAJINIĆ"]
[9443,"BRANKO KORDIĆ"]
[9710,"IVICA SINIČIĆ"]
[9721,"IVAN PLEIĆ"]
[9765,"ŽAKLINA ĐURANEC"]
[9781,"ANTONIJA TOMAS"]
[9820,"KRISTINA ČIKULIN"]
[9835,"TENA HORVAT"]
[9851,"IVANA PAVLOVIĆ"]
[9892,"MIRJANA MATICA"]
[9909,"HELENA POSAVEC "]
[9945,"JELENA RUŽMAN"]
[9964,"Antea FRANJIĆ"]
[10014,"DAVOR LAMZA"]
[10027,"MARKO KARLOVIĆ"]
[10069,"LUKA-HRVOSLAV PERIĆ"]
[10082,"MLADEN ČORDA"]
[10128,"LUKA KEMENOVIĆ"]
[10143,"ALEN JURČEVIĆ"]
[10179,"ANA STRUNJE"]
[10194,"HRVOJE SAMARDŽIJA"]
[10209,"MARKO ČEVIZOVIĆ"]
[10245,"IGOR VONIC"]
[10258,"IVAN MARIC"]
[10294,"PETAR ŠUŠNJARA"]
[10309,"ANJA DŽEKO"]
[10349,"TIHANA ĆORLUKA"]
[10360,"Ana BORIĆ"]
[10400,"KRUNOSLAV KATIĆ"]
[10415,"Dino MARAS"]
[10451,"MATKO KOPRČINA"]
[10466,"DAVID LUBAR"]
[10501,"ROBERT BERISHA"]
[10516,"FLORIJAN BERIŠA"]
[10531,"MARIN FRANIĆ"]
[10568,"MATEJ LOVRIĆ"]
[10583,"ŽELJKA KOVAČ"]
[10619,"MATEA MARINIĆ"]
[10634,"ANA MALETIĆ"]
[10674,"BRUNO NOCI"]
[10685,"DOMAGOJ VULIĆ"]
[10727,"DAMIR KNEŽIĆ"]
[10745,"PETAR ĆALETA"]
[10782,"DENIS BOSMAN"]
[10798,"TENA MATUZALEM"]
[10834,"NINA NIKŠIĆ"]
[10849,"MONIKA BIRGER"]
[10864,"MATIJA ŠTRITOF"]
[10900,"Matej MATANOVIĆ"]
[10915,"Karlo TOMIĆ"]
[10952,"JURICA KRANJEC"]
[10967,"ŽELJKO BOROJE"]
[11008,"Ivana LUKAČ"]
[11019,"PATRICIJA PUHELEK"]
[11059,"MARKO SERDARUŠIĆ"]
[11075,"ANTUN REGENT"]
[11111,"IRENEJ ĆORLUKA"]
[11126,"ANDREJA IVIĆ"]
[11163,"LUKA JAGATIĆ"]
[11178,"ANĐELKO KOLIĆ"]
[11193,"JOSIP SELIČANEC"]
[11230,"MARIO TUŠEK"]
[11246,"NEDJELJKO DRUŽIJANIĆ"]
[11286,"ANA ŠARIĆ"]
[11297,"FRANKA KLIŠANIN"]
[11337,"PETAR-KREŠIMIR GRGUROVIĆ"]
[11348,"MIROSLAV OPAČAK"]
[11389,"JOSIP BAŠIĆ"]
[11404,"STEVO KATOVČIĆ"]
[11440,"MIA DABOVIĆ"]
[11455,"DINO VUKOVIĆ"]
[11491,"MARINA CVETKO"]
[11506,"DRAGICA MAJIĆ"]
[11521,"IVICA JAKŠIĆ"]
[11556,"ANDREJ KELEKOVIĆ"]
[11571,"NIKOLA ŠEBJANIĆ"]
[11611,"DAVOR SVEČNJAK"]
[11622,"BENJAMIN AGATIĆ"]
[11665,"ARIANA CRNOBRNJA"]
[11680,"TEOFIL CEGNER"]
[11720,"OZREN KORUŠEC"]
[11736,"IVAN HORVAT"]
[11771,"IVO KALEBIĆ"]
[11788,"ANDREJ PAPONJA"]
[11822,"TIN ARBUTINA"]
[11837,"DOMAGOJ BALOG"]
[11864,"Marijo PERVAN"]
[11900,"HRVOJE HLUPIĆ"]
[11915,"DENIS REMENAR"]
[11955,"IVAN CAREVIĆ"]
[11966,"IVAN ŽUŽUL"]
[12008,"ANA TOT"]
[12020,"Dario POŽGAJ"]
[12063,"JOVAN GALO"]
[12079,"MIRNA HEFER"]
[12114,"MARKO BREZIĆ"]
[12131,"KARLO JURIĆ"]
[12180,"IGOR DOKMANOVIĆ "]
[12191,"ALEN LEVAKOVIĆ"]
[12206,"MATEJ GLAVAŠ"]
[12242,"JURICA JAKŠIĆ"]
[12257,"JURE BIJUK"]
[12297,"MARIO PRUGOVEČKI"]
[12308,"DOMINIK TREFILJ"]
[12348,"MATEA BARUN"]
[12359,"IVANA KLJAJIĆ"]
[12398,"ZORAN ŽLENDER"]
[12413,"IVAN MARIĆ"]
[12446,"Darko ŠIPOŠ"]
[12462,"LORENA NOVOKMET"]
[12502,"PAVLE KRMPOTA"]
[12513,"TOMISLAV JURLINA"]
[12529,"DRAŽEN BARIČEVIĆ"]
[12566,"ANDREA KOPRIVNJAK"]
[12581,"LUKA DIJANIĆ"]
[12620,"BOŽIDAR KRIŠKOVIĆ"]
[12631,"Roman JUG"]
[12698,"KATARINA ČIČAK"]
[12713,"BARBARA PRUGOVIĆ"]
[12748,"STJEPAN KULAŠ"]
[12763,"JELENA HEGEDUŠ"]
[12798,"IVANČICA SKLEPIĆ"]
[12813,"ANA ŽIŽIĆ"]
[12853,"ŽARKO KOSTIĆ"]
[12864,"PETRA RIBARIĆ"]
[12878,"ANTE KALIGER"]
[12914,"Patrik TAŠEVCI"]
[12929,"Josipa KNEŽEVIĆ"]
[12969,"ALEN JOZIPOVIĆ"]
[12980,"NIKOLA MEDVEDEC"]
[13021,"MARIJANA ĆUBIĆ"]
[13036,"IRENA PITNER"]
[13072,"KRISTINA KOPECKI"]
[13087,"TIBOR TKALCEC"]
[13123,"DIJANA BROŠ"]
[13137,"HRVOJE KEGLEVIĆ "]
[13178,"IVAN KATANICA"]
[13189,"VLADIMIR ŠUJSTER"]
[13206,"Matija BLAŽIĆ"]
[13243,"DAMIR NEKIĆ"]
[13259,"ANĐELA MAMUT"]
[13299,"MISLAV ZEMLJAK"]
[13310,"Matija KORPAR"]
[13366,"MARIN ŽADA"]
[13381,"IVAN ZDELIČAN"]
[13415,"ANTONIO  PRIBANIĆ "]
[13431,"Matija BENCEK"]
[13466,"DOMAGOJ ŽEŽELJ"]
[13481,"ŽELJKO ČIŽMEŠIJA"]
[13522,"DIEGO DATOS"]
[13533,"ANI KOCIJANČIĆ"]
[13548,"MATEJ TORIĆ"]
[13588,"KARLO TUŠKAN"]
[13599,"ANDRE PAVLETIĆ"]
[13639,"JAKOV TROJANOVIĆ"]
[13651,"ALEN CORLUKA"]
[13690,"IVAN ŠUŠNJAR"]
[13705,"MIRNA GELO"]
[13740,"Matej ŠAGIJ"]
[13755,"Denis PLEMENITI"]
[13790,"SANJIN DRAGIČEVIĆ "]
[13806,"Marko KRISTE"]
[13848,"LORENA DUKIĆ"]
[13858,"IGOR RAJKOVIĆ"]
[13872,"Marko ANTOLOVIĆ"]
[13910,"TOMISLAV MIJAKIĆ"]
[13921,"Dominik KOVAČEVIĆ"]
[13960,"MIRJANA KIRIN"]
[13971,"MAROVIĆ NEVENKA"]
[14012,"Miroslav MEDVED"]
[14028,"LARA KOŠAK"]
[14062,"Lino STRUŠKI"]
[14077,"Sven STRUŠKI"]
[14117,"DINO HARČEVIĆ"]
[14128,"KATARINA BARIŠIĆ"]
[14166,"TAJANA ŠOKEC"]
[14177,"MARIJA OBRADOVIĆ"]
[14192,"VELJKO VUKSANOVIĆ"]
[14232,"KRISTIJAN MIHALJINAC"]
[14243,"Petar TRIPLAT"]
[14282,"IVAN HOIĆ"]
[14293,"Marin ŠINJORI"]
[14333,"Ivan BRANDT"]
[14348,"RUDOLF MARCIUŠ"]
[14384,"DORIAN MAZZAROLLI"]
[14399,"TEA JAKŠIĆ"]
[14438,"MIRNA VUKOVIĆ"]
[14447,"Luka DRAŽETIĆ"]
[14487,"IVAN PREKUPEC"]
[14498,"EMIL KOCIJAN"]
[14513,"STEFAN KAPA"]
[14553,"Luka PAVELIĆ"]
[14564,"IVAN GRIBL"]
[14604,"PATRICK BAKAČ"]
[14615,"ŽANA BANOVIĆ"]
[14656,"Marinko BRKIĆ"]
[14670,"FILIP NOVAK"]
[14706,"Borna GLAVIČIĆ"]
[14722,"IRMA HAJDINOVIĆ"]
[14762,"Ivan CAHARIJA"]
[14773,"MIHOVIL ŠETKA "]
[14813,"MIROSLAV MILINOVIĆ"]
[14822,"ANTONIO HEGEDUŠ"]
[14837,"ANDREA KIRŠIĆ"]
[14877,"IVANA SLEGOVAC"]
[14888,"MARIJAN ORLOVIĆ"]
[14927,"LUCIJA TOMIĆ"]
[14942,"MARKO KAMENJAŠ"]
[14976,"SILVIJA KRIŠTOFIĆ"]
[14990,"LORENA AHEL"]
[15026,"ZLATKO TOKIĆ"]
[15042,"IVANA POPOVIĆ"]
[15079,"VERICA PETEK"]
[15090,"MARIJAN VLADIKA"]
[15140,"DARIO CIKOJEVIĆ"]
[15151,"Marijana JELINEK"]
[15166,"VALENTINA ČAMBER"]
[15206,"Patrik OKANOVIĆ"]
[15218,"NIKOLINA ANIC"]
[15258,"DAVIDE KOLEC"]
[15273,"IVANA  CINDRIĆ"]
[15309,"SLOBODAN BILOBRK"]
[15324,"LUKA MAJERIĆ"]
[15359,"Leonarda KAPETANOVIĆ"]
[15374,"MAGDALENA UDILJAK"]
[15414,"MARTINA KOPAJTIĆ"]
[15425,"ANAMARIJA OGRIZEK"]
[15465,"MATEA VUČETIĆ"]
[15476,"ADAM SEFČIK"]
[15491,"David KOPREK"]
[15532,"AMALIJA KIŠ"]
[15543,"IVAN VINKOVIĆ"]
[15583,"JOSIP MARINKOVIĆ"]
[15598,"VERONIKA TURK"]
[15634,"TONČI MILARDOVIĆ"]
[15649,"PAULO BURAZIN"]
[15685,"DOROTEA HUM"]
[15700,"ANDREA HERCIG"]
[15739,"MARKO BANDIĆ"]
[15750,"NINA BOGOMOLEC"]
[15787,"EDI LJUBIĆ"]
[15802,"JURICA ORIĆ"]
[15813,"IVA PARMAĆ"]
[15853,"MATEO CURIĆ"]
[15864,"DOMAGOJ BRKLJAČIĆ"]
[15904,"FRANKA GOIĆ"]
[15919,"JOSIP GRGEC"]
[15955,"LUCIJA RUBINIĆ"]
[15970,"ANAMARIJA JARAK"]
[16007,"ANTONIJA LAUS"]
[16023,"Mirela BJELOBRK"]
[16063,"ADRIANA TABAIN"]
[16074,"ANTONELA PEZO"]
[16116,"NIKOLA JURKOVIĆ"]
[16131,"TEA RASTOČIĆ"]
[16142,"HRVOJE HORVAT"]
[16181,"ENA KORLATOVIĆ"]
[16192,"JASMIN KUDIĆ"]
[16231,"MIHAELA PANIJAN"]
[16246,"PETRA LOVRE"]
[16282,"SWEN KONJUŠAK"]
[16297,"ZORAN UGLJANAC"]
[16338,"LJERKA VORGIC"]
[16349,"MARTIN SRŠEN"]
[16390,"SANJA TRAMPUS"]
[16401,"LEA RAZUM"]
[16441,"DOMAGOJ BRKIĆ"]
[16456,"MIHAELA SPAJIĆ"]
[16467,"ANTE IVAČIĆ"]
[16506,"DOMAGOJ JURIČIĆ"]
[16517,"VALENTINA ŠIPIĆ"]
[16557,"ZVONIMIR GRGURIĆ"]
[16572,"NIKOLINA KOVAČEV"]
[16608,"LORENS VICKOV"]
[16623,"FILIP PALER"]
[16663,"MONIKA BIKADI"]
[16674,"DORIAN DELPIN"]
[16714,"TAMARA KOMADINA"]
[16725,"DEJAN MEGLIĆ"]
[16764,"ANDREA LALIĆ"]
[16779,"Lucija PERAICA"]
[16790,"BORNA ČERNE"]
[16831,"TIN OSTROŠIĆ"]
[16841,"ANITA KONJEVIĆ"]
[16879,"VALENTINA RUŽIČKA"]
[16894,"JASMIN ISANOVIĆ"]
[16930,"IVANA KNEŽEVIĆ"]
[16945,"IVAN MALČIĆ"]
[16985,"MARIJA PARČINA"]
[16997,"DARIO JELIČIĆ"]
[17037,"KARLA HORVAT"]
[17048,"TONI MARIJANOVIĆ"]
[17089,"DAVID PAZMAN"]
[17104,"DAVOR ĆAVAR"]
[17115,"ANDREJ KALAČ"]
[17157,"ADNAN ČOLOVIĆ"]
[17172,"ROBERT VINKOVIĆ"]
[17208,"Hrvoje PEŠIĆ"]
[17223,"IVICA ĆAVAR"]
[17259,"MERITA MAŽAR"]
[17274,"MONIKA MATOTA"]
[17314,"MARIO PLANTOSAR"]
[17325,"Tonči VALČIĆ"]
[17366,"STIPE MARTINOVIĆ"]
[17377,"LARA KOVAČEVIĆ"]
[17418,"MARLENA ABRAMOVIĆ"]
[17433,"SLAVEN KUKAVICA"]
[17443,"KRISTINA MRŠIĆ BOŽINOVIĆ"]
[17484,"GORAN BOZOK"]
[17499,"HARIS KAMBEROVIĆ"]
[17539,"ALEKSANDAR ITALO"]
[17555,"Dina HAVIĆ"]
[17589,"NIVES MIHALINEC"]
[17604,"PAVO ŠKRABO"]
[17645,"MIRNA GOLEM"]
[17656,"ANDREJA PUŠKARIĆ"]
[17694,"GABRIJELA ANIČIĆ"]
[17709,"Marino TOMA"]
[17748,"IVANA MILARDOVIĆ"]
[17763,"IVICA ZUBAC"]
[17775,"ANTONIO ŠEGO"]
[17816,"SANDY MERHAR"]
[17831,"GORAN IVANAC"]
[17867,"HRVOJE PEPELKO"]
[17882,"SANJA HORVAT"]
[17919,"MARCELA MIKULČIĆ"]
[17934,"NIKOLA SILAĐEV"]
[17974,"Luka PANDŽA"]
[17985,"MARIJA ŽALO"]
[18026,"JAKOV KOPRIVNJAK"]
[18039,"KARLO-RENATO DUVNJAK"]
[18075,"TONI MELON"]
[18090,"DANIEL MAJBAUM"]
[18100,"KATARINA BRČIĆ"]
[18139,"SANDRO ERMAKORA"]
[18153,"MARTA TOLJ"]
[18189,"MLADEN  PRSKALO"]
[18204,"NIKOLA STOJCEVSKI "]
[18239,"NINA MATSUNO"]
[18254,"MARIN MIJALIĆ"]
[18290,"Anja HERCEG"]
[18301,"ANDRIJA OZIMEC"]
[18343,"RAFAEL TURKALJ"]
[18357,"ROBERT REINSPACH"]
[18394,"PETRA GUMBAREVIĆ"]
[18409,"Ivana VIDOVIĆ"]
[18420,"BRANIMIR VIDIĆ"]
[18460,"ANA GREGAR"]
[18475,"MILAN BURETIĆ"]
[18511,"MAGDALENA IDŽANOVIĆ"]
[18526,"BORNA FRANIĆ"]
[18565,"VLATKA MAJCENOVIĆ"]
[18576,"ĐUKA JAKOVAC"]
[18615,"DOMAGOJ DRAGIJA"]
[18625,"ANITA JUSIĆ"]
[18665,"SANDA DVORINČIĆ ZORNADA"]
[18678,"ALEX LEGOVIĆ"]
[18713,"JOSIP ŽUPANCIC"]
[18728,"KLAUDIJO BOJIĆ"]
[18739,"DEAN KOVACEVIC"]
[18779,"JOSIP MIHALJCUK"]
[18794,"Leo BRNIN"]
[18830,"LEO SINIŠA RADOŠIĆ"]
[18845,"TEA KIĆINBAĆI"]
[18885,"Kristijan MAKŠAN"]
[18896,"VALENTINO ČOLIĆ"]
[18938,"MARTA GALIĆ"]
[18949,"ANTONIJA MRKONJIĆ"]
[18989,"FILIP FIŠER"]
[19004,"LUKA RADOVIĆ"]
[19039,"MARKO FRKETIĆ"]
[19053,"DARKO PAPIĆ"]
[19064,"Marino ŠOŠIĆ"]
[19104,"Martina KRČ"]
[19119,"PATRIK KALDI"]
[19155,"MILA DRAČAR"]
[19170,"MATIAS VIVODA"]
[19210,"DARIA BAJT"]
[19221,"IVA DOMIŠLJANOVIC"]
[19261,"ROBERTA TAVCAR"]
[19272,"ROBERT MRKALJ"]
[19313,"Antun SMILJANIĆ"]
[19329,"ĐINO PIUTI"]
[19366,"Lucija POSAVEC"]
[19381,"Karla RIBIĆ"]
[19396,"Antonio PERIĆ"]
[19432,"BRUNO BRKIĆ"]
[19448,"MAJA VUKELIĆ"]
[19484,"SARA KATALINIĆ"]
[19499,"Klaudija RADOŠ"]
[19539,"NIKOLA POROPAT"]
[19550,"DOMAGOJ BEŠLIĆ"]
[19590,"STELA HARAŠIĆ"]
[19601,"ANDREA IVANKOVIĆ"]
[19641,"VALENTINA POŽEGA"]
[19656,"Ana MATOŠEVIĆ"]
[19692,"Matea SERTIĆ"]
[19707,"MIA ŠALIĆ"]
[19723,"LUKA HUBER"]
[19757,"Goran CIRKVENI"]
[19772,"IVANA CINDRIĆ"]
[19807,"FILIP RUBČIĆ"]
[19822,"Leon BOTKOVIĆ"]
[19863,"ĐENI UJČIĆ"]
[19874,"TOMISLAV MERČEP"]
[19914,"ANĐELKO BRIDIĆ"]
[19929,"IVAN GALAC"]
[19966,"JAKOV SAMARDŽIJA"]
[19981,"BRUNO CURIĆ"]
[20019,"Marina MATIĆ"]
[20034,"Matija BEVANDIĆ"]
[20049,"LJERKA KRAJNOVIĆ"]
[20085,"Ivan MARTINELI"]
[20100,"IVAN PUŠIĆ"]
[20132,"LOVRE SKOČIĆ"]
[20146,"KARLA VUCIĆ"]
[20186,"JOSIPA ZLATUNIĆ"]
[20197,"PETAR ŠANJE"]
[20236,"IVANA RUBIĆ"]
[20251,"ŽELJKO FANJAK"]
[20287,"BRUNA MALEŠ"]
[20302,"Tony ZAREV"]
[20339,"ANA MARIJA ŽAFRAN"]
[20354,"MISLAV LUČIĆ"]
[20368,"FRANE BULIĆ"]
[20401,"MAJA DRONK"]
[20415,"ANA MLINAREVIĆ"]
[20451,"Luka JUROŠ"]
[20466,"ALEN ĐANIĆ"]
[20506,"MELANI KOVAČIĆ"]
[20517,"Luka PETRIĆ"]
[20557,"HRVOJE KIRINCIC"]
[20573,"MARIO HORVAT"]
[20609,"Ana JURIČIĆ"]
[20624,"MARKO BOŽIĆ"]
[20660,"Krunoslav PRANJIĆ"]
[20675,"ENA MAIN"]
[20690,"Mario VARGA"]
[20726,"MARIO GRGIĆ"]
[20740,"DORA MODRIĆ"]
[20779,"TOMISLAV PERIĆ"]
[20790,"KARLO GALUNIĆ"]
[20832,"DENI MRKONJIĆ"]
[20845,"Mihovil MATAIĆ"]
[20884,"TINO MUSTAPIĆ"]
[20898,"Matija VUKUŠIĆ"]
[20932,"MATEA MAGDIĆ"]
[20947,"JAKOV KNEŽEVIĆ"]
[20983,"JOSIP KOVAČEVIĆ"]
[20998,"FRANE VISKOVIĆ"]
[21013,"IVICA VUKOJA"]
[21049,"Ivan VOŠTOG"]
[21064,"LEONARDA KOŽLJAN"]
[21105,"PIJERINO TIKULIN"]
[21116,"PATRICK CINAC"]
[21155,"ANGELO DAMIR KAZALAC"]
[21166,"ANA-MARIJA BELIGOJ"]
[21207,"LORENA ABRAM"]
[21222,"LUKA ŽAGAR"]
[21258,"MATEA MEDAČ"]
[21273,"ZVONIMIR MATKOVIĆ"]
[21308,"Fran DIMIĆ"]
[21323,"Filip ZEKIĆ"]
[21338,"JELENA BOŠNJAK"]
[21375,"ŽELJKO STRAKA"]
[21390,"EUGEN ANĐELKOVIĆ"]
[21432,"ANTONIO ŠABIĆ"]
[21443,"LUKA ŠUĆUR"]
[21483,"JOSIP DAMJANOV"]
[21494,"NEDELJKO LALIĆ"]
[21535,"Tomislav MESAROV"]
[21550,"ROBERT ŠAHINOVIĆ"]
[21585,"ANA TESKERA"]
[21600,"LIDIJA VUČETIĆ"]
[21615,"KLARA PAVIĆ"]
[21651,"MAJA METER"]
[21668,"KRISTINA ŽUPAN"]
[21705,"MAGDALENA ŠTRKALJ"]
[21720,"IVANA ĐAKOVIĆ"]
[21759,"Gabrijela JURLIN"]
[21770,"ANTE GRUBIŠIĆ"]
[21810,"IVAN GRGIĆ"]
[21822,"Vedran BADRIĆ"]
[21864,"ANA MARIJA GRŠIĆ"]
[21879,"SARA RADOŠEVIĆ"]
[21915,"VANJA KOVAČ"]
[21930,"ANTE KRISTIJAN KOVAČ"]
[21945,"MAKSIM PUTICA"]
[21987,"STIPE BILOKAPIĆ"]
[22003,"SAŠA RODIĆ"]
[22043,"GORDANA POROPAT"]
[22058,"MARINA PEHAR"]
[22098,"MILAN BORKOVIĆ"]
[22109,"LUKA VUJNOVIĆ"]
[22150,"MATEJ ŠARČEVIĆ"]
[22165,"Franjo VUKINOVAC"]
[22202,"IVANA RAJAKOVIĆ"]
[22217,"KRISTIAN KADENARO"]
[22253,"KATARINA RASPUDIĆ"]
[22268,"IVAN ČAKLOVIĆ"]
[22283,"MARKO STANEC"]
[22318,"ANAMARIA ŠPANIĆ"]
[22333,"Ana VRABEC"]
[22370,"Marinelo BLAŽI"]
[22385,"Roko KOŠTIĆ"]
[22425,"MATKO JUSUP"]
[22436,"IVA LJUBEJ"]
[22475,"ERIK ERBEŽNIK"]
[22490,"MARIN BULJAN"]
[22526,"DOMINIK KRSTULOVIĆ"]
[22541,"ANITA JELAVIĆ"]
[22576,"RENATO BOŠNJAK"]
[22590,"LAURA POFUK"]
[22604,"LUCIJA BEŠLIĆ"]
[22640,"DOROTEA OSREČKI"]
[22655,"ANAMARIJA RADOVANOVIĆ"]
[22691,"BRANIMIR KUZMAN"]
[22706,"FILIP KERMAN"]
[22746,"RUŽICA DUVNJAK"]
[22757,"JOSIP POŽGAJ"]
[22797,"BARTOL JURKOVIĆ"]
[22812,"FRAN JAGAR"]
[22848,"DOROTEA PISAČIĆ"]
[22863,"ZVONIMIR PREVIŠIĆ"]
[22899,"DORA TABAIN"]
[22914,"Kata BREKALO"]
[22929,"LEONARDA PAVIĆ"]
[22964,"Ljubo PRIBUDIĆ"]
[22979,"LEA MARKULIN"]
[23019,"IVAN MATULIN"]
[23029,"STELLA ĐUDARIĆ"]
[23069,"FILIP KLEIBER"]
[23080,"Neven GALUNIĆ"]
[23120,"MARIN MARTINČIĆ"]
[23135,"SAVKA MLAĐENOVIĆ"]
[23171,"MATEA BEDEKOVIĆ"]
[23186,"Kruno ČERNI"]
[23223,"PETAR SMINDEROVAC"]
[23238,"JOSIPA KARAS"]
[23253,"VIKTORIJA FABEK"]
[23289,"Martina PLANTAK"]
[23305,"VICE VLATKOVIĆ"]
[23345,"BRUNO GRBAVAC"]
[23355,"ANTONIO KREMENIĆ"]
[23395,"Lorena MUDRI"]
[23406,"BERNARDA TURČINOV"]
[23446,"JURICA ATELJ"]
[23461,"PETAR PEŠIĆ"]
[23497,"VLADO SELETKOVIĆ"]
[23513,"ANNA LUKIĆ"]
[23528,"IVAN AJDUKOVIĆ"]
[23564,"Anja GUEALJEVSKI"]
[23579,"MATEO TUCAK"]
[23615,"IVONA MRĐEN"]
[23631,"MARTINA MILADINOVIĆ"]
[23672,"MIHAELA SOKOLOVIĆ"]
[23683,"IVAN KELAVA"]
[23723,"LUKA PALUNKO"]
[23733,"MARTA GOLUBIĆ"]
[23776,"IGOR HALILOVIĆ"]
[23791,"ANTE SVAGUŠA"]
[23827,"JOSIP VUČIĆ"]
[23842,"Nikolina PETRANOVIĆ"]
[23857,"NIKA BOGDAN"]
[23893,"KLARA NEDIĆ"]
[23908,"NEDILKO-MATE KRNJAČA"]
[23944,"MATKO KOREN"]
[23959,"MARKO UDŽBINAC"]
[23999,"Ema PIGAC"]
[24010,"Antonio BUDINSKI"]
[24050,"TOMISLAV TOLIĆ"]
[24061,"Hrvoje TARABIĆ"]
[24102,"JOSIP RAGUŽ"]
[24117,"Ivan MALTARIĆ"]
[24153,"Davor GRAOVAC"]
[24168,"ZVONKO BENKO"]
[24183,"ZVONIMIR ZEČEVIĆ-BOŽIĆ"]
[24218,"MARINA ĆOSIĆ"]
[24233,"LUCIJA PAMIĆ"]
[24269,"Milan MILJEVIĆ"]
[24284,"Kristina JURIĆ"]
[24323,"MARINA PUTNIK"]
[24334,"MATEO SLAKO"]
[24374,"PATRIK BARANAŠIĆ"]
[24389,"Patrik KOSTIĆ"]
[24424,"VEDRAN IVANKOVIĆ"]
[24439,"ANDREA SESAR"]
[24474,"Noa BALEN"]
[24488,"Nikola OREŠKI"]
[24503,"MARIJA TERI"]
[24539,"Antonio BANOŽIĆ"]
[24555,"MARKO KELECIJA"]
[24591,"Jurica POKOS"]
[24606,"TONI BELAC"]
[24646,"PETRA SABLJIĆ"]
[24657,"NATALIA CAR-PETROVIĆ"]
[24697,"STEFAN KARAPANDŽA"]
[24712,"KLAUDIJA BELIGOJ"]
[24748,"VLAHO SURAĆ"]
[24763,"ANĐELA VIDOVIĆ"]
[24800,"IVAN LISICA"]
[24815,"ANTONIO VOJAK"]
[24830,"SLAVEN ILIĆ"]
[24866,"LUKA MIŠKULIN"]
[24881,"Ivan POLJAK"]
[24917,"KATARINA VIDAKOVIĆ"]
[24932,"DANIELE SPONZA"]
[24972,"ANĐELO PUTNIK"]
[24984,"Davor ŽIŠKA"]
[25024,"KARLO ŠTIMAC"]
[25039,"KRISTIJAN SMILJČIĆ"]
[25075,"MARIANA BILOSNIĆ"]
[25090,"MARIO VUČKOVIĆ"]
[25126,"NIKOLA PERIĆ"]
[25141,"FRAN ČURIĆ"]
[25156,"Tea AMBROŠIĆ"]
[25192,"MIHAEL JANJANIN"]
[25207,"BRUNA ĆAĆIĆ"]
[25248,"SENAD BARANJA"]
[25259,"ZDENKO VISKOVIĆ"]
[25299,"DINKO RAOS"]
[25310,"Bruno DANJKO"]
[25351,"JOSIP BOGDAN"]
[25366,"Nino VURUŠIĆ"]
[25402,"MIRJANA STOJČIĆ"]
[25417,"JASMIN TAIRI"]
[25453,"Boris PLEČKO"]
[25468,"ANTONELA PULJIZ"]
[25483,"INES PULJIZ"]
[25519,"MARIO PRSKALO"]
[25535,"DARIJO KIŠIČEK"]
[25572,"IVO ČURČIĆ"]
[25583,"IVAN PRPIĆ"]
[25624,"RENATA BELJAN"]
[25635,"Siniša BELOŠEVIĆ"]
[25675,"TEA KOKANOVIĆ"]
[25690,"LUKA BIĆANIĆ"]
[25726,"FILIP NEKIĆ"]
[25741,"MARIJAN LOŽNJAK"]
[25756,"MARKO DEKANOVIĆ"]
[25791,"NEVIA LUKETIN"]
[25806,"KATARINA BANIĆ"]
[25842,"ANDREA KARDAŠ"]
[25857,"DAG KOVAČEVIĆ"]
[25897,"ILIJA DURBIĆ"]
[25908,"MARKO MIKŠA"]
[25948,"ANA ĐUKSI"]
[25959,"ANTE MOČILJANIN"]
[25998,"KARMEN GLAVINA"]
[26013,"Leon JUTRIŠA"]
[26049,"VIKTOR ŠPRAJC"]
[26064,"FRAN FRANJKO"]
[26084,"EMI DOBRILOVIĆ SMILEVSKI"]
[26120,"Petar Tin MIKETIĆ"]
[26141,"ANABEL MILOKANOVIĆ"]
[26177,"DOMINIK BAN"]
[26192,"DRAGICA MIJAČ"]
[26232,"VALENTINO JURIČKI"]
[26243,"TARA JURČIĆ"]
[26284,"Marta MILETIĆ"]
[26295,"KSENOFON FOFONJKA"]
[26335,"MARTIN PERIĆ"]
[26350,"PETRA KNEZ"]
[26386,"Denis MUNKA"]
[26401,"Elena HRŠAK"]
[26416,"LEO ĐURIN"]
[26452,"MARA PARENTIĆ"]
[26466,"MIHAEL PIELIĆ"]
[26502,"LORENA PERIĆ"]
[26517,"MIA STIPIĆ"]
[26557,"NIKOLA POPOVIĆ"]
[26568,"Matea Car"]
[26608,"MARKO ZORICA"]
[26623,"DORIS BALAIĆ-MARMUN"]
[26659,"Valentino MARIĆ"]
[26674,"Roko ŽUVIĆ"]
[26710,"GABRIJEL PRPIĆ"]
[26725,"MARKO ŠKRIPAC"]
[26740,"MILA MARIA RAOS"]
[26779,"TOMISLAV BABOJELIĆ"]
[26794,"MATIJA KLJAJIĆ"]
[26830,"LUKA IVEZIĆ"]
[26845,"MATEJ ŠARIĆ"]
[26885,"DAMJANA KUČAN"]
[26896,"STJEPAN HUNJAK"]
[26936,"ANDREJ SAKAČ"]
[26951,"SARA GRUBIĆ"]
[26987,"FRAN LUČIN"]
[27002,"ANTONIO HEĆIMOVIĆ"]
[27038,"MARCEL BARIŠIĆ"]
[27053,"NIKO DANIČIĆ"]
[27068,"IVANA TOPOLOVČAN"]
[27104,"MATIJA MAJER"]
[27120,"Zlatko Krucki"]
[27156,"MARIJETA PITEŠA"]
[27171,"KLARA KASTNER"]
[27211,"BORUT POSARIĆ"]
[27222,"Ella Eleonora JESIĆ"]
[27261,"NIKA HORVAT"]
[27276,"Leon PAIĆ KAREGA"]
[27312,"HRVOJE POPOVIĆ"]
[27327,"TEO KOVAČEVIĆ"]
[27363,"MARIJO RENDULIĆ"]
[27378,"IVA BIUK"]
[27393,"ANTE RADAČIĆ"]
[27430,"LARA JAGIĆ-DOMOVIĆ"]
[27445,"LUKIAN OLIVA"]
[27469,"FILIP SELETKOVIĆ"]
[27495,"Lucia HERGOTIĆ"]
[27534,"PETAR CVITAK"]
[27545,"IVAN KRALJEVIĆ"]
[27585,"DENIS BRKANIĆ"]
[27600,"Iva BRLEK"]
[27636,"JELENA KARANOVIĆ"]
[27651,"MARIO GALIJOT"]
[27687,"TONČI ZANELLA"]
[27702,"STELLA BADANJAK"]
[27717,"DORA ĐURANIĆ"]
[27753,"JOSIP PRŠA"]
[27768,"Bruno BULJUBAŠIĆ"]
[27808,"SANDRO MARIĆ"]
[27819,"LANA KONTREC"]
[27859,"ILIJA PULJEVIĆ"]
[27870,"ANTUN MINARIK"]
[27910,"ANDRIJA PETKOVIĆ"]
[27925,"Ivana Keršek"]
[27961,"ANAMARIJA RUDIĆ"]
[27976,"BERNARDICA KECMAN"]
[27991,"MARKO ŠOLTIĆ"]
[28028,"ANTE ŽERAVICA"]
[28043,"Matej BREZEC"]
[28078,"ALEN CRHA"]
[28093,"KLARA MILAŠINOVIĆ"]
[28133,"LOVRO HODAK"]
[28144,"ANTE HERCEG"]
[28184,"DRAŽEN OBRADOVIĆ"]
[28195,"Kim DOMINKO"]
[28235,"Krešimir PAVLOVIĆ"]
[28250,"LJILJANA JANKOVIĆ"]
[28286,"MATEJ SKELAC"]
[28301,"Dorijan LOVRIĆ"]
[28316,"ALEN VIDA"]
[28352,"MIHAEL PLAZANIĆ"]
[28367,"HELLIO BJELIŠ"]
[28403,"Mateo BENČAK"]
[28418,"LOVRO ŠTAJNER"]
[28458,"IVAN GRLIĆ"]
[28470,"MATIJA VITKO"]
[28511,"ADELA HODŽIĆ"]
[28522,"ANA KRSTAČIĆ"]
[28562,"TOMISLAV MARKETIĆ"]
[28577,"Dino CAPEK"]
[28613,"Mihael KRALJ"]
[28628,"Marko SEVER"]
[28643,"KRISTIJAN ČERLEK"]
[28679,"Ivan GOLUŽA"]
[28694,"KRŠEVAN GRDOVIĆ"]
[28730,"RENATO VRDOLJAČIĆ"]
[28745,"BORNA ŠIMIĆ"]
[28785,"VALENTINA BELUŠIĆ"]
[28796,"RENDY GRUBIĆ"]
[28838,"Srećko HAJSOK"]
[28853,"JURAJ TALAJA"]
[28889,"KARIN VRATONJA"]
[28909,"NADA JUKIĆ"]
[28945,"GOJKOVIĆ VLADIMIR "]
[28960,"MARIJANA TOMIŠIĆ"]
[28975,"KATARINA HASTENTENFEL"]
[29011,"IVA VRANJIĆ"]
[29026,"IVAN TUTIĆ"]
[29063,"JOSIP MLINAC"]
[29078,"JAN MANIĆ"]
[29118,"Nataša MILETIĆ"]
[29129,"Miran OGNJENOVIĆ"]
[29169,"ANTE GALE"]
[29184,"LUKA ČUČEVIĆ"]
[29223,"ANA MARIJA LOVRIĆ"]
[29238,"MARINA ŽULJ"]
[29274,"FILIP JAKOV BULIĆ"]
[29289,"SVEN KOPJAR"]
[29304,"FILIP MARKO TOMAŠEVIĆ"]
[29342,"TONI PUCL"]
[29357,"MARKO FURIĆ"]
[29398,"NICOLE ŽIVOLIĆ"]
[29409,"Ante BOJIĆ"]
[29449,"MATEA TOMIĆ"]
[29460,"Dario RUŽIĆ"]
[29504,"MAIDA THOSS"]
[29519,"BORIS KLARIN"]
[29556,"MARIN TOMIĆ"]
[29571,"PAOLA ILIĆ"]
[29608,"MIRA PAVLOVIĆ"]
[29623,"IVANA VUKAS"]
[29639,"DAVIDE DEBELJUH"]
[29675,"JESSICA VARGA"]
[29690,"DOMAGOJ BULIĆ"]
[29731,"ANA KLARIĆ"]
[29742,"ARIANA JADREJČIĆ"]
[29782,"MARIO BELIC"]
[29793,"TONČI  ŠUNJIĆ"]
[29833,"Marko MILOHNOJA"]
[29848,"Bojana Šubert"]
[29885,"ROBERT BLAŽEVIĆ"]
[29901,"TAJANA BAČIĆ"]
[29937,"MIRNA MARKOVIĆ"]
[29952,"ANDREJ GEROVAC"]
[29967,"ANA MARIJA DUNDOVIĆ"]
[30003,"ELVIS OSMIĆ"]
[30019,"KRISTINA GUDLIN"]
[30061,"DOMINIK ČAVLOVIĆ"]
[30072,"IVAN ŠNAJDER"]
[30112,"SARA ŽLENDER"]
[30123,"PETAR MIHALJ"]
[30163,"DARIO BULUM "]
[30178,"Mateo ELDIĆ"]
[30214,"HANA KOVAČ"]
[30229,"EMMA SKALIČKI"]
[30269,"Karlo Džebić"]
[30280,"Dorijan Mešter"]
[30295,"MATEA DRAGOBRATOVIĆ"]
[30331,"DINO DIZDAREVIĆ"]
[30346,"LOVRO PETRIČEVIĆ"]
[30386,"SARA PRANJIĆ"]
[30397,"Marko VAZDAR"]
[30441,"Filip MLINARIĆ"]
[30452,"DARKO BLAGOJEVIĆ"]
[30492,"FILIP-FRANO PAVIČIĆ"]
[30507,"STJEPAN DAVIDOVIĆ"]
[30543,"AURORA PRPIĆ"]
[30558,"MARIJA MANDURA"]
[30598,"SARA JANKOVIĆ"]
[30610,"LEON ZLATAR"]
[30625,"Dario Lilić"]
[30663,"Ivan FUČKAR"]
[30678,"LEA KOS"]
[30718,"JAGODA MILINA"]
[30730,"ANĐELA KOKIĆ"]
[30770,"KARLO JURČEC"]
[30781,"Antonio VLAHOVIĆ"]
[30825,"ANTONIO TOKIĆ"]
[30840,"LEON TOMIĆ"]
[30876,"ILIJA MATIĆ"]
[30891,"IVAN MANDIĆ"]
[30931,"IVAN DANDIĆ"]
[30942,"MICHELLE BUTORAC"]
[30957,"JOŠKO VUDRAG"]
[30997,"Fran ČAKLEC"]
[31012,"LORENA VINČIĆ"]
[31052,"MIHAELA GOJKO"]
[31063,"Bruno DMINIĆ"]
[31103,"MIRO POPOVIĆ"]
[31121,"GORAN MRĐEN"]
[31157,"David KOŠIĆ"]
[31172,"ANA BOŽEK"]
[31210,"HRVOJE MILJAK"]
[31225,"EMA DRAVINEC"]
[31265,"Igor SENEČIĆ"]
[31276,"IVAN ĐORDIĆ"]
[31291,"LEON LANZA"]
[31328,"DILA PREKPALAJ"]
[31343,"LUCIJA VEJIĆ"]
[31383,"MISLAV VETENGL"]
[31394,"LORA VRANKIĆ"]
[31434,"MILAN PRIHIĆ"]
[31449,"LEO POTARIC"]
[31486,"PAOLO GRUBIŠIĆ"]
[31501,"MATKO PRUGOVEČKI"]
[31537,"Patrik VOJNIĆ"]
[31552,"Ingrid VUJEVIĆ"]
[31592,"DUJE KATIĆ"]
[31603,"MARIJA FRANULOVIĆ"]
[31618,"TIHANA GNJEČ"]
[31659,"JOSIP BEZER"]
[31670,"JULIO JELAVIĆ"]
[31710,"Iva MARKIĆ"]
[31721,"Nika NAKIĆ"]
[31761,"MARKO ŠILJEG"]
[31776,"PETAR VIDOVIC"]
[31812,"MARIN GLASL"]
[31827,"IGOR KOŽUL"]
[31864,"JOSIP FRKOVIĆ"]
[31879,"ANĐELA HORVAT"]
[31919,"ANTE DENONA"]
[31930,"LUKA DANDIĆ"]
[31945,"Mihaela Mihajlović"]
[31986,"MARINO MARKOVIĆ"]
[31997,"MATEJ VUJANIĆ"]
[32037,"MATIJA STRUGAR"]
[32048,"ALEN KRŽAK"]
[32088,"Antonio ŠIMIĆ"]
[32103,"DOMINIK IVAN KUBAJ"]
[32140,"Haris PECO"]
[32155,"Hrvoje Petrović"]
[32191,"IVAN HORVAT"]
[32206,"JAKŠA MILAKOVIĆ"]
[32246,"ALEKSANDRA BOŠNJAK"]
[32257,"Mihael PETRINJAK"]
[32275,"ANDREAS HERMAN"]
[32315,"MARIJA PEJIĆ"]
[32326,"LEON GOJAK"]
[32366,"KIAN KUTLEŠA"]
[32377,"FRAN LENAC"]
[32418,"LUKA DERMIŠEK"]
[32433,"IVONA KRAJAČIĆ "]
[32469,"Marina KOPREK"]
[32484,"ANA BUDIĆ"]
[32524,"DOROTEA SPARANZA"]
[32535,"TOMISLAV CAR"]
[32575,"SINIŠA BOCA"]
[32586,"MATEJ JARIĆ "]
[32601,"Sara Petrik"]
[32642,"IVAN BELJAN"]
[32653,"IGOR ŠPOLJARIĆ"]
[32693,"SARA SUPERINA"]
[32704,"Mislav ŽUNAC"]
[32744,"LUKA KOCIJANČIĆ"]
[32759,"FRANE BEBEK"]
[32795,"SARA KARANOVIĆ"]
[32810,"JELENA KADIJEVIĆ"]
[32851,"MARIO RAGUŽ"]
[32867,"Nikola GOLUB"]
[32907,"MARTA KONOPEK"]
[32918,"Hrvoje RENDULIĆ"]
[32933,"Danijel FRTALJ"]
[32973,"DANIJELA VUJČIĆ"]
[32984,"KRISTINA MAROVIĆ"]
[33024,"DOMINIK TOMIĆ"]
[33039,"MATEJ RADIĆ"]
[33076,"LUCIJA ŠPOLJARIĆ"]
[33091,"VANA BEŠKER"]
[33127,"FILIP KATIĆ"]
[33142,"MARINA JUKIĆ"]
[33182,"FRAN BALEN"]
[33193,"IVAN PNJAK"]
[33233,"IRMA KOMLJENOVIĆ"]
[33244,"MIA KAPOVIĆ"]
[33259,"SANA BERTOŠA"]
[33299,"Ivan Krizmanić"]
[33310,"KARLO BAN"]
[33350,"ZORAN PAVLETIĆ"]
[33365,"Maja LIJOVIĆ"]
[33402,"MIRKA VUČIĆ"]
[33417,"LUKA KOVAČIĆ"]
[33453,"IVAN KORDIĆ"]
[33468,"LUCIJA MASNJAK"]
[33509,"LARA MATASOVIĆ"]
[33520,"Nikolina MANISLOVIĆ"]
[33560,"SVEN MARMILIĆ"]
[33571,"ZDENKO MARIĆ"]
[33586,"VALENTINA FUNTAK"]
[33626,"DALIBOR HUSNJAK"]
[33637,"ANDRIJANA MIKLIĆ"]
[33678,"SARA GRANIĆ"]
[33693,"FILIP MATAIJA"]
[33729,"NIKO STUDEN"]
[33744,"IVAN HARČA"]
[33780,"MIHAELA MATAGA"]
[33795,"RUŽICA ERKAPIĆ-VUČKO"]
[33836,"DINO ŠUŠNJAR"]
[33847,"MATKO BRANŠTETER"]
[33887,"Martina CIGULA"]
[33902,"Držislav Trobić"]
[33913,"FILIP RENDIĆ"]
[33953,"PAOLO JANUŠIĆ"]
[33964,"MARO ŽUPAN"]
[34004,"Lovro KIŠAK"]
[34019,"Damjan MATIJAŠEC"]
[34055,"MIRKO JONJIĆ"]
[34070,"A'lmos PAPP"]
[34106,"SONJA ŠAFAR TURK"]
[34121,"LANA PUSTAJ"]
[34161,"Vinko PRESEČKI"]
[34172,"PATRICIJA FLORIJANOVIĆ"]
[34213,"GABRIJEL JUREKIĆ"]
[34228,"Dino HUMEK"]
[34239,"STIPAN POPOVIĆ"]
[34280,"Marko ŠUTALO"]
[34291,"Zenil VUGRINEC"]
[34331,"David TEŽAK"]
[34346,"Srećko KUŠEN"]
[34382,"DANIJELA RAŽNJEVIĆ"]
[34397,"TONI PASQUALICCHIO"]
[34433,"BORIS BREČIĆ"]
[34448,"Arian VUČILOVSKI"]
[34488,"BRUNO ŠENVALD"]
[34499,"JAKOV LOVRINČEVIĆ"]
[34539,"NIKOLA VATOVIĆ"]
[34554,"LOVRE ŠUTA"]
[34565,"Andrea MILOŠ"]
[34605,"ANA LEROTIĆ"]
[34616,"ANAMARIJA FORIŠ"]
[34656,"LUKA TUCAKOVIĆ"]
[34671,"Erika Štefanović"]
[34707,"Laura IKICA"]
[34722,"MARIJA PALAJSA"]
[34762,"ANA MARIA PIL"]
[34773,"NIKICA JURČEVIĆ"]
[34813,"DINO MEŠIĆ"]
[34824,"PETAR CAR"]
[34864,"ANTO BEZEK"]
[34879,"Ana PETRINEC"]
[34890,"LUKA BLAŽEVIĆ"]
[34930,"HELENA HODAK"]
[34941,"Karla MARIJAN"]
[34982,"NIKO STANIĆ"]
[34997,"Ivan ZELJKO"]
[35033,"Mate DOTUR"]
[35048,"FRANO VERAJA"]
[35088,"Marko ARALICA"]
[35099,"IVAN LILIĆ"]
[35139,"ELENA ODRLJIN"]
[35150,"IVAN KLARIĆ"]
[35190,"Karlo BOBEK"]
[35205,"Ivan TINTOR"]
[35216,"Damjan PRSKALO"]
[35256,"SVEN PATRICK GRABARIĆ"]
[35272,"BRUNO MASTELIĆ"]
[35308,"Domagoj JARNJAK"]
[35323,"Ivan SPEVEC"]
[35359,"Roko PURIĆ"]
[35374,"PERO IVANOVIĆ"]
[35415,"Luka ZEBEC"]
[35426,"MARIO MARJANOVIĆ"]
[35466,"Jelena BOBAN"]
[35477,"NIKOLA JURIŠIĆ"]
[35517,"MARTA ĐULA"]
[35532,"MARIO HODAK"]
[35543,"Dario MATIJEVIĆ"]
[35584,"IVAN BAKŠA"]
[35599,"EVELYN KERI"]
[35635,"Filip TRESKA"]
[35650,"Mihael Marjanović"]
[35686,"ANTONIO PAŠALIĆ"]
[35701,"IZABELA STOŠIĆ"]
[35741,"Lidija VUJIĆ"]
[35752,"KARLO BELUŠIĆ"]
[35792,"ANA KRZNARIĆ"]
[35803,"TENA BOŠTJANČIĆ"]
[35843,"MARIN TOMLJANOVIĆ"]
[35858,"MARKO ŠTRBAC"]
[35869,"LARA PETROVČIĆ"]
[35909,"LEA POLIĆ"]
[35924,"Magdalena JANĐEL"]
[35960,"ŽELJKO FILIPOVIĆ"]
[35976,"GLORIA MARIĆ"]
[36012,"MATEO BLAŽINA"]
[36027,"KARLA MIJIĆ"]
[36067,"MIA STIPIĆ"]
[36078,"BARBARA ČALETA"]
[36118,"LUCIJA ZOHIL"]
[36133,"MATEA MAMIĆ"]
[36169,"ANA LUCIJA MARKOTIĆ"]
[36184,"IVA ROSO"]
[36195,"TOMISLAV BRAUN"]
[36235,"ANTE VIDAKOVIĆ"]
[36250,"IVICA VOLAREVIĆ"]
[36286,"VESELJKO VEKIĆ"]
[36301,"IVAN MILANOVIĆ-LITRE"]
[36337,"DANIJELA RUSTJA"]
[36352,"MARKO NIKOLIĆ"]
[36392,"KORENA BABIĆ"]
[36403,"MATEJ BOBALIĆ"]
[36443,"LOVRO INGO ZANINOVIĆ"]
[36458,"INES FABIJANEC"]
[36494,"MATIJA JAGIČIĆ"]
[36510,"KATARINA GOGIĆ"]
[36521,"MARCELA GUDIĆ"]
[36562,"Mario RAIČ"]
[36577,"KARLO KORUNEK"]
[36613,"KARLO BAKOTA"]
[36628,"MIHAEL BARUN"]
[36664,"TANJA PATAČKO"]
[36679,"ANA ŠAPINA"]
[36719,"ANAMARIA LJUBIČIĆ"]
[36730,"LUKA RADUNOVIĆ"]
[36770,"ANJA MATOVINA"]
[36785,"IVANA PERIKA"]
[36821,"LEONARDA BARDIĆ"]
[36836,"GIULIA MUTIĆ"]
[36847,"ROKO KARIN"]
[36888,"Juraj BUKOVČAN"]
[36903,"MATEA BRUNEC"]
[36939,"MARTINA ZIDARIĆ"]
[36954,"Danijela MARKOVIĆ"]
[36994,"LAURA ALESSIO"]
[37005,"DOMINIK VUČETIĆ"]
[37045,"SIMONE BASSANESE"]
[37056,"DAMIRA FRANULOVIĆ"]
[37096,"DORA HRKEC"]
[37112,"EMA NOVOSEL"]
[37149,"Lucija BARAĆ"]
[37164,"ANTONIA DOKMANIĆ"]
[37175,"MARINELA OSTROŠKI"]
[37215,"IVICA MATIĆ"]
[37230,"LOVRE KORLJAN"]
[37266,"IVONA GOSARIĆ"]
[37281,"Laura DEMIROVIĆ"]
[37322,"ANDREJ FARAC"]
[37333,"PATRICIJA ŠPOLJARIĆ"]
[37373,"Nika VRČEK"]
[37384,"Helena HORVATIĆ"]
[37424,"Marko HEĆIMOVIĆ"]
[37440,"Stjepan Adžijević"]
[37476,"FABIAN BUDIMIR"]
[37491,"Tomislav MARKOVIĆ"]
[37506,"Luka BJELIVUK"]
[37542,"Lana BIŽIĆ"]
[37557,"IVANA TUNIĆ"]
[37594,"LJERKA VRESK"]
[37609,"LEONARDO KUNJEŠIĆ"]
[37649,"KRISTINA BOŠNJAK"]
[37660,"Luka Šumar"]
[37700,"Patrik VRANJEŠ"]
[37711,"Fran PEROVIĆ"]
[37751,"VANJA RADIČEVIĆ"]
[37767,"MIRKO ŽUVELEK"]
[37803,"MATEJ MIŠIĆ"]
[37818,"NIKA LONČAR"]
[37833,"ANTONIJA UREMOVIĆ"]
[37869,"UNA LOVIĆ"]
[37886,"LUCIJA ALEKSIĆ"]
[37923,"TONIO SKENDER"]
[37938,"TONKO TOMIČIĆ"]
[37978,"JOSIP KLOBUČAR"]
[37989,"MATEJ HOMOKI"]
[38029,"SILVIJA JAKOVČIĆ"]
[38040,"IVO BESEDIĆ"]
[38080,"Dorotea SOMEK"]
[38095,"MAJA PEŠUT"]
[38131,"FILIP POTNAR"]
[38146,"VITO SINČIĆ"]
[38161,"GORAN MIRIĆ"]
[38197,"Fran ARALICA"]
[38212,"JOSIPA BILIĆ"]
[38248,"Domagoj ČALIĆ"]
[38263,"ELA TURKOVIĆ"]
[38303,"KARLO DOMIJAN"]
[38314,"JAN HODŽIĆ"]
[38355,"MARTA ŠIMIĆ"]
[38370,"DOMENIKA KADIJA"]
[38406,"DINO CETIN  "]
[38421,"Franko BOŽIĆ"]
[38457,"PETAR MIKŠIĆ"]
[38472,"GABRIJELA KESRIN"]
[38487,"PETAR TRPUTEC"]
[38523,"LUKA VUČINA"]
[38538,"TEA KRIVIČIĆ"]
[38574,"Zoran Bilić"]
[38589,"IVANO GRČIĆ"]
[38629,"KLARA MIŠ"]
[38640,"PAOLA LUPIĆ"]
[38680,"GABRIJELA ANIČIĆ"]
[38695,"Vid ANDRAŠIĆ"]
[38731,"LUCIJA TALAJIĆ"]
[38750,"Bojan RAŠIĆ"]
[38786,"ADELISA JOVANOVIĆ"]
[38801,"KARLO ERCEGOVAC"]
[38816,"NINA SRŠEN"]
[38852,"KARLA GALOV"]
[38867,"PAOLA JUREN"]
[38907,"Andrija KLEPO"]
[38918,"PATRIK KASIPOVIĆ"]
[38958,"ANĐELA PETROVIĆ"]
[38969,"IVANA VUČETIĆ"]
[39009,"Filip SVETIĆ"]
[39024,"LAURA KLEŠKOVIĆ"]
[39060,"Dora DESPENIĆ"]
[39075,"Tibor VRANJEŠ"]
[39111,"ANTE GREJIĆ"]
[39126,"LAURA MAJER"]
[39141,"TEA ŽMEGAČ"]
[39178,"DAVOR BUŠETINČAN"]
[39193,"DOMAGOJ MOLNAR"]
[39234,"Maja ČOP ANDESILIĆ"]
[39245,"ZORINA TUDOR"]
[39285,"SARA RADIĆ"]
[39296,"BORIS RAJNIĆ"]
[39336,"ANA LUČIĆ"]
[39351,"EMMA RADOVIĆ"]
[39387,"IVAN ĐUDARIĆ"]
[39402,"ELA MEKIĆ"]
[39438,"KARLO BEŠENIĆ"]
[39453,"Bartol Lokmer"]
[39468,"Ivana Krolo"]
[39504,"TIN KRIŠTOPOVIĆ"]
[39519,"LANA PIRŠA"]
[39559,"IVAN SUBOTIČANEC"]
[39570,"JOSIP FRLJAK"]
[39610,"FILIP SVETEC"]
[39621,"DARIO ZATEZALO"]
[39661,"Dejan KONČIĆ"]
[39676,"NIKA BULIĆ"]
[39712,"IVICA REPUŠIĆ"]
[39727,"LUCIJA VISKOVIĆ"]
[39742,"NIKA GRAČANIN"]
[39778,"DORA PAŠTAR"]
[39793,"LOVRO JAMAN"]
[39829,"ANASTAZIJA ČEVIZOVIĆ"]
[39844,"NINA VURNEK "]
[39884,"STIPE MATIJAŠEVIĆ"]
[39895,"DORIS BARBIR "]
[39935,"PATRICIJA PILAV"]
[39947,"JOSIP BEGONJA"]
[39987,"LUKA LISICA"]
[40002,"IVAN BUHIĆ"]
[40038,"ALEKSANDRA MILOŠEVIĆ"]
[40053,"Adam GRADIŠČAK"]
[40068,"STIPE KNEŽEVIĆ"]
[40104,"LUKA BATKOVIĆ"]
[40119,"IVAN TURKALJ"]
[40155,"MIHAEL UJDUR"]
[40170,"LEON KRAJAČIĆ"]
[40210,"NIKOLINA GRANIĆ"]
[40221,"SARA ĆURIĆ"]
[40261,"KORINA VUČETIĆ"]
[40272,"PETAR REBIĆ"]
[40312,"LUCIJA GROF"]
[40327,"MILAN BALIĆ"]
[40363,"DAVOR PLANIN IĆ"]
[40378,"IVAN DOKLEJA"]
[40393,"Kristijan BUHIN"]
[40429,"TONI MARUNA"]
[40444,"LUKA SALACAN"]
[40480,"TINO ŠTAKIĆ"]
[40495,"MIHAEL KRZNARIĆ"]
[40535,"Gašpar HARAMIJA"]
[40546,"LANA PROVIĆ"]
[40586,"ANJA BURIĆ"]
[40601,"KLARA BEVANDIĆ"]
[40637,"MARIN TIRIĆ"]
[40652,"Teo MALENČIĆ"]
[40688,"LARA BELIĆ"]
[40703,"Marino VUKELIĆ"]
[40718,"PETAR VIDIĆ"]
[40754,"LUKO PAVIČEVIĆ"]
[40769,"KRISTINA POP"]
[40805,"ANTONIJA BIĆANIĆ"]
[40820,"GABRIJEL KOPRIVNJAK"]
[40860,"GABRIJEL BRAJKOVIĆ"]
[40871,"KARLO KIRIN"]
[40911,"DUJE ČUBRE"]
[40926,"Fran BOBAN"]
[40962,"KARLA LISIČIĆ"]
[40977,"LUKA LEBO"]
[41013,"LUKA  PETKOVIĆ"]
[41028,"TEA ŠEPAROVIĆ"]
[41043,"KARLO CRNČEVIĆ "]
[41079,"MICHAEL-IVAN PELEGRIN"]
[41094,"Marko BORAS"]
[41135,"IVAN CINDRIĆ"]
[41146,"LOVRO VADLJA"]
[41186,"LANA LOPARIĆ"]
[41197,"Igor Filipović"]
[41238,"LUKA RANDIĆ"]
[41253,"SARA SREMIĆ"]
[41291,"Danijel DAMJANIĆ"]
[41306,"MARIJA SUDAR"]
[41342,"Filip STAPIĆ"]
[41357,"DOMAGOJ KARANUŠIĆ"]
[41372,"GORAN LEBOVIĆ"]
[41408,"MARKO KOVAČEVIĆ"]
[41423,"LANA VALENTAK"]
[41463,"Robert MAJDANDŽIĆ"]
[41474,"DOROTEA BRLEKOVIĆ"]
[41515,"Tin ŠPOLJARIĆ"]
[41526,"MIA PULJIĆ"]
[41566,"josip maradin"]
[41581,"IVANA JELINIĆ"]
[41617,"KARLO HERGET"]
[41632,"KATARINA ILIČIĆ"]
[41668,"ANTE KAPOVIĆ"]
[41683,"NIKOLINA JOZIĆ"]
[41698,"JOSIP ŠERIĆ"]
[41734,"KLARA BRAJKOVIĆ"]
[41749,"LANA PAVIĆ"]
[41789,"Zvjezdana TUPEK"]
[41800,"Mateo Pšihistal"]
[41840,"NINO KILIH"]
[41851,"LEON SOKE"]
[41891,"NIKOL KOPIĆ"]
[41906,"MARIO TUŠA"]
[41942,"LEONARDA BUŠIĆ"]
[41957,"KLARA PICULEK"]
[41972,"ANTE BOSANČIĆ"]
[42008,"TONI PENSA"]
[42023,"MATEA CONJAR"]
[42059,"ANTONIO KURTEŠ"]
[42074,"PATRIK VILJEVAC"]
[42114,"DOMAGOJ VUČKOVIĆ"]
[42125,"MARKO NEMET"]
[42166,"MIA MARIĆ"]
[42177,"NIKOLA HRTICA "]
[42218,"VEDRAN JURIĆ"]
[42233,"VALERIJA MAGDIĆ"]
[42269,"MATTEO KNAPIĆ"]
[42284,"RAFAEL ZAHARIJA"]
[42299,"LUCIJA DUMANČIĆ"]
[42335,"MATEJ BEGIĆ"]
[42350,"MARTIN BRALIĆ"]
[42386,"Ivana Vuković"]
[42401,"Jakov Jurčević"]
[42441,"NOEL VRETENAR"]
[42452,"JAN RAMIĆ"]
[42493,"VINKO ĆURLIN"]
[42508,"MARKO VULETIĆ"]
[42544,"Lovro RABUZIN"]
[42559,"SARA MARTINOVIĆ"]
[42595,"TOMISLAV GLAVICA"]
[42610,"VALENTINA ŠKARE"]
[42625,"SARA BRAJKOVIĆ"]
[42661,"Nika SKENDER"]
[42676,"Josipa PERIŠA"]
[42712,"DOMAGOJ BABIĆ"]
[42727,"FILIP DIKOVIĆ"]
[42767,"ELA GRŽINIĆ"]
[42778,"Filip Git"]
[42818,"DOMAGOJ MERGEDUŠ"]
[42833,"DOROTEA KASUNIĆ"]
[42869,"DAVOR GLONČAK"]
[42884,"EMA MEŠANOVIĆ"]
[42920,"MARIJA BAŠIĆ"]
[42935,"ANA BILIĆ"]
[42950,"Maja RATKAJEC"]
[42986,"Tia NEKOKSA"]
[43001,"HANA MARKEŽIĆ"]
[43037,"Anđela ŽAGAR"]
[43052,"DUNJA MEĐUREČAN"]
[43093,"JANA PAVLAK"]
[43104,"MARIJA ŽUPAN"]
[43144,"ANGELA BLAŽEVIĆ"]
[43159,"MATEJ LASIĆ"]
[43195,"FRANCESSCA MATIĆ"]
[43210,"LANA ŠIMUNIĆ"]
[43246,"SVEN VUKOVIĆ"]
[43261,"JAN ŠTEFEC"]
[43276,"Marko JURKIĆ"]
[43312,"Marko PEZO"]
[43327,"BORNA BUTIER"]
[43367,"Borna BUTKOVIĆ"]
[43378,"MARTA KEKO"]
[43418,"EVA ŠTOKIĆ"]
[43429,"DORIS MILAS"]
[43469,"Lora MAĐUREČAN"]
[43484,"Mihael KRISTAJ"]
[43520,"IRIS BLAŠKOVIĆ"]
[43535,"DINO GUŠČIĆ"]
[43571,"NIKO MANESTAR"]
[43586,"PATRICIJA ZAVRŠKI"]
[43601,"SILVIA BARIČEVIĆ"]
[43637,"Mateja KLASIĆ"]
[43652,"DORA POTOCNJAK"]
[43692,"LODA BENGIN"]
[43703,"NIKOLA PREVIŠIĆ"]
[43743,"JOSIP ŠKOLKA"]
[43754,"LUKA BUZINAC"]
[43794,"MARKO STOJAKOVIĆ"]
[43809,"LUCIJA HONTIĆ"]
[43845,"DANIEL REPINC"]
[43860,"Andrija DOKO"]
[43896,"ANTONIJA TVRDEIĆ"]
[43911,"DUJE ČIRJAK"]
[43926,"IVAN BOSANČIĆ"]
[43962,"LANA VINKOVIĆ"]
[43977,"NOA MATAS"]
[44017,"MAJA LJUBA"]
[44028,"Katarina BARILAR"]
[44069,"IVANO RADELJIĆ"]
[44080,"MARTINA BAKOVIĆ"]
[44120,"Dunja Habijanac"]
[44135,"FRANKO BREČIĆ"]
[44171,"JAKOV CRLJENICA"]
[44186,"YAZIRAH DUQUESNE POMPA"]
[44201,"DORA MIKELIĆ COCOVIĆ"]
[44238,"Fran CVJETIČANIN"]
[44253,"DOROTEA FINTIĆ"]
[44289,"Ivan MILČEC MILJEVIĆ"]
[44304,"FILIP ŠARČEVIĆ"]
[44344,"FILIP DIZDAR"]
[44355,"TOMISLAV KOSTELAC"]
[44395,"JOSIP TURK"]
[44406,"DOMINIK KUNAC"]
[44446,"JOSIP MAJIĆ"]
[44461,"Marko GENZIĆ"]
[44497,"LUCIJA VRDOLJAK"]
[44512,"MILA ŽAMIĆ"]
[44527,"KATARINA ŠKERO"]
[44563,"FILIP TOPALOVIĆ"]
[44578,"BETIM SADIKI"]
[44614,"MARIJA MAJIĆ"]
[44629,"OZANA MOKOLE"]
[44669,"MATEJ BLIZNAC"]
[44680,"GRGO ŠULENTA"]
[44720,"ELENA RESMAN"]
[44735,"ŠIMUN REZO"]
[44771,"Martin ZAGORAC"]
[44786,"Dominik Ferić"]
[44822,"BRUNO BATUR"]
[44837,"EDI BAŠEK"]
[44852,"TREY MAJETIĆ"]
[44888,"ERIK NOVOSELNIK"]
[44903,"Antun KARAMATIĆ"]
[44939,"Andrej PREGLEJ"]
[44954,"Ivan ŠUMEČKI"]
[44994,"NEVEN HERCIGONJA"]
[45005,"KRISTIJAN LIPOTIĆ"]
[45045,"MARIANA MARKOVIĆ"]
[45060,"VITO MIHAJLOVIĆ"]
[45096,"TAMARA TUDOR"]
[45111,"SUBALA KRISTIĆ"]
[45147,"Nika COLNER"]
[45162,"VID MARTINJAK"]
[45177,"SIMON VAROŠANEC"]
[45213,"Karla KOCIJAN"]
[45228,"Ana CIKAČ"]
[45264,"IVANO GRUBIĆ"]
[45279,"JAKOV KOŠTARIĆ"]
[45320,"JOSIPA MATANOVIĆ "]
[45331,"FRAN KRIZEL"]
[45371,"PETAR JURIŠIĆ"]
[45386,"FRAN BONIĆ"]
[45422,"DAVID LUČKI"]
[45437,"ROKO CVITAŠ"]
[45473,"Ivan NOVOSEL"]
[45488,"STJEPAN IVANČAN"]
[45503,"DAVID BRNADIĆ"]
[45539,"JOSIPA ŠTRLJIĆ"]
[45554,"LUCIJA RADIĆ"]
[45594,"MATEO GOLOMEJIĆ"]
[45605,"VLATKA JOSIPOVIĆ"]
[45645,"LUCIJA BALENT"]
[45656,"MARKO CVIJETIĆ"]
[45696,"SAMUEL SMOLJAK"]
[45711,"ZVONIMIR MARAVIĆ"]
[45747,"Nikola BROZOVIĆ"]
[45762,"ANTONIO BOŽIĆ"]
[45799,"HANA ĐURKIJA"]
[45814,"IVICA MATIĆ"]
[45829,"LOVRO POKASIĆ"]
[45866,"LARA JURINA "]
[45881,"Lucija MIŠURA"]
[45921,"Dominik Budoš"]
[45932,"Valter Matošević"]
[45972,"Damjan PRPIĆ"]
[45983,"LORENA BAJZEC"]
[46023,"IVAN UJEVIĆ"]
[46039,"LUKA MARŠIĆ"]
[46075,"Lana Relić"]
[46090,"KATARINA PALADA"]
[46126,"Tena Abram"]
[46141,"Ivano Šapina"]
[46156,"KREŠIMIR ŽUPAN"]
[46192,"Ante Blažević"]
[46207,"Jurica Tomljanović"]
[46247,"ANTONIO KAMPIĆ"]
[46258,"FRAN VIŠEVIĆ"]
[46298,"SARA POPOVIĆ"]
[46309,"Ivan KOS"]
[46349,"Luka Stokić"]
[46364,"GRGO ĐULA"]
[46400,"LEO BAŽON"]
[46415,"Paula BAŠIĆ"]
[46430,"SARA PAHLJINA "]
[46466,"Nikolina Đukić"]
[46481,"Luka BALIĆ"]
[46517,"PATRIK KALŠAN"]
[46532,"Luka ŠTRUK"]
[46572,"PIA GADŽA"]
[46583,"ANTONIO ŽERAVICA"]
[46623,"ANĐELO JEŽIĆ"]
[46634,"IVA ĆALETA"]
[46674,"Luka RAŠLIĆ"]
[46689,"ANTONIO MOSKATELO"]
[46725,"TONI ŠKEMBER"]
[46740,"DAVID MILANOVIĆ"]
[46755,"Petra CRNČEVIĆ"]
[46791,"Lana Antolović"]
[46806,"ENRIKO KAJTAZI"]
[46842,"MARIJA SOLE"]
[46857,"LEA NENADA"]
[46897,"Antonio SUKANEC"]
[46908,"TEA NURKIĆ"]
[46948,"Renato TADIĆ"]
[46963,"LEONARDO RADONIĆ"]
[46999,"VITO FERARA"]
[47014,"NIKO VERŠIĆ"]
[47050,"GORAN KRIŠTOFEC"]
[47065,"Tea Pelengić"]
[47080,"DUJE JERKOVIĆ"]
[47116,"Mislav KRAJINOVIĆ"]
[47131,"ERIKA PASTORČIĆ"]
[47167,"SARA DOLINAR"]
[47182,"NIKOLA ROGULJIĆ"]
[47222,"KRISTIJAN BANOVIĆ"]
[47233,"LUKA BABIĆ"]
[47273,"JAKOV KATALINIĆ"]
[47288,"PATRIK DORIĆ"]
[47324,"Andrej BEDEKOVIĆ"]
[47339,"Tena MAVRAČIĆ"]
[47375,"DARKO JELIČIĆ"]
[47390,"LUKA ERCEG"]
[47405,"LUKA PLIVELIĆ"]
[47441,"LUCIJA ĐAPIĆ"]
[47456,"DOMINIK RADNIĆ"]
[47492,"IVANA SURJAN"]
[47507,"TIN HADŽIĆ"]
[47547,"BARBARA KATIĆ"]
[47558,"MATEO PETKOVIĆ"]
[47598,"KIMI DMITRIĆ"]
[47613,"PATRIK FILIPOVIĆ"]
[47649,"LUKRECIJA BOSMAN"]
[47664,"Matej JURČEVIĆ"]
[47700,"SARA TOMIĆ"]
[47715,"GRGUR BRUSAR"]
[47730,"LUKA ŠUTALO"]
[47766,"ASJA BEĆIRSPAHIĆ"]
[47781,"MIA ĆURIĆ"]
[47824,"NIKA KOPRIČANEC"]
[47835,"ROKO DOKMANIĆ"]
[47875,"MAJA DRAGOBRATOVIĆ"]
[47886,"TOMA ŽARKOVIĆ"]
[47926,"KRISTINA BIRKIĆ"]
[47941,"IVANA ŠLIBAR"]
[47977,"Mato MARTIĆ"]
[47992,"MIRKO ROGULJIĆ"]
[48028,"MISLAV TOMIČIĆ"]
[48043,"MIHOVIL ČULINA"]
[48058,"ZVONIMIR VID LASIĆ"]
[48094,"MIA SKENDER"]
[48109,"Niko RADOVIĆ JOZIĆ"]
[48149,"NIKOLA GLAVAČEVIĆ"]
[48160,"DARIA DUMENDŽIĆ"]
[48200,"IAN MURINA"]
[48211,"MARTINA LUŠA"]
[48252,"SARA LAZARIĆ"]
[48267,"ANDRE MEDIĆ"]
[48303,"Tamara GAŠPERT"]
[48318,"Karlo JASIĆ"]
[48358,"ANTONIO  KARLIĆ"]
[48369,"TONČI VELENIK"]
[48384,"DENIS ALIĆ"]
[48420,"Marko Šulentić"]
[48440,"Urh KASTELIC"]
[48480,"ALEN KOTROMANOVIĆ"]
[48491,"Jurica MERKAŠ"]
[48531,"GABRIEL BARIĆ"]
[48542,"MATEO MEŠTROVIĆ"]
[48582,"GABRIEL ŠAFRANKO"]
[48597,"LEA TEOFANOVIC"]
[48634,"LUKA ŠESTAN"]
[48649,"Ivan SRBLJINOVIĆ"]
[48689,"LAURA BUZOLIĆ"]
[48701,"ROCCO PALNEC"]
[48716,"BORNA BENAKOVIĆ"]
[48752,"LORNA ZBODULJA "]
[48767,"NINA MARČIĆ"]
[48811,"TARA TROHA"]
[48822,"ANAMARIJA PODRUG"]
[48862,"BORNA POLIC"]
[48873,"IVANA KRANJEC"]
[48915,"KLARA PERAJICA"]
[48930,"Igor Janeček"]
[48968,"Filip PASARIČEK"]
[48984,"NINA PALINEC"]
[49027,"SVEN KARAMINSKI"]
[49038,"ENA DUPANOVIĆ"]
[49053,"DRAGAN ČEREKOVIĆ"]
[49089,"DORA JURIŠIĆ"]
[49104,"Matija BABIĆ"]
[49144,"PATRIK HAJDUKOVIĆ"]
[49156,"LUCIJA MLINAREC"]
[49196,"ANTONIO LICUL"]
[49218,"KIARA DRAGAŠ"]
[49254,"MATEJ BANKO"]
[49269,"LUCIJA PETROVIĆ"]
[49306,"IVAN KUMAR"]
[49321,"ŽELJKA BOBAN"]
[49361,"PETAR LOGOŽAR"]
[49373,"DORIJAN HERCEG"]
[49388,"IVAN PRODANIĆ"]
[49425,"LEONARDA PERKOVIĆ"]
[49440,"Marko Šulentić"]
[49480,"LEON GOLDNER"]
[49491,"LUCIJA GAJSKI"]
[49531,"MARIJA VEČENAJ"]
[49546,"EMA HORVAT"]
[49582,"LUCIJA KUŠAN "]
[49597,"Ivor PAVIČIĆ"]
[49634,"KORINA PERŠIĆ"]
[49649,"DOMINIK NIMAC"]
[49689,"DAMIR MOVRIC"]
[49700,"KREŠIMIR MARENIC"]
[49715,"DIVO DIKOVIC"]
[49751,"JONA VUKŠIĆ"]
[49766,"SARA PIŠKOR"]
[49806,"MIHAELA SLAMNJAKOVIĆ"]
[49817,"ANĐELA BALAŠ"]
[49857,"NADIA HRŽENJAK"]
[49872,"ANTONIO MARTINČIĆ "]
[49908,"VANESA BURŠIĆ"]
[49923,"MARO BOŠNJAKOVIĆ"]
[49959,"TONI TOLJ"]
[49974,"VIŠNJA GORŠIĆ"]
[50014,"ZARA DUILO"]
[50025,"ALEKSANDAR ANTIĆ"]
[50040,"FRAN KURTOVIĆ"]
[50081,"LANA IVEZIĆ"]
[50092,"EMA MILIĆ"]
[50133,"PAULA SRŠEN "]
[50144,"NIKA FRANJČIĆ"]
[50185,"LUKAS BILE"]
[50200,"MARKO KAŠTELAN"]
[50237,"IVANO BARIČEVIĆ"]
[50252,"ANTE BRKLJAČIĆ"]
[50288,"LANA CVITKOVIĆ"]
[50303,"MATKO PAVIĆ"]
[50344,"STJEPAN KRTALIĆ"]
[50355,"Dario VUKSAN"]
[50370,"LEON MEDIĆ"]
[50410,"MATEJ BARBARIĆ"]
[50421,"Matej Hajmiler"]
[50462,"SIMON ŠPREM"]
[50473,"ELA BILOKAPIĆ"]
[50513,"KANITA JURIČIĆ"]
[50528,"NINA RAIĆ"]
[50564,"ANTONIO SPEVAN"]
[50579,"GORAN BALTIĆ"]
[50619,"LOVRE ČERNUŠAK"]
[50630,"Jana ŠOMIĆ"]
[50670,"DUJE SEDLAR"]
[50681,"DAVID ŠIMPF"]
[50696,"Luka FIŠTROVIĆ"]
[50737,"MARTA JUKIĆ"]
[50748,"ANA MATAKOVIĆ"]
[50788,"JOSIPA BEBIĆ"]
[50799,"Erik HUNJEK"]
[50839,"LION ŽUNEC"]
[50854,"MARTINA RUPČIĆ"]
[50890,"VINKO ILIŠKOVIĆ"]
[50905,"IVANO LUČIĆ"]
[50945,"TIN KORENIĆ"]
[50956,"PETAR VAREŠKIĆ"]
[50996,"Nikola KOVAČIĆ"]
[51008,"ALENA IKHNEVA"]
[51023,"Maksim ŠENJUG"]
[51064,"ADRIJAN JANKOVIĆ"]
[51075,"VESNA SEMUNOVIĆ"]
[51115,"ANTE BATARELO"]
[51126,"MARTIN PERESTEGI"]
[51167,"DORIAN JUREŠIĆ"]
[51182,"TOMISLAV KOS"]
[51218,"Ante Bošnjak"]
[51233,"Hana JEDVAJ"]
[51273,"DORIJAN DUNOVIĆ"]
[51284,"ŽELIMIR POPOVIĆ "]
[51324,"STJEPAN GREBENAR"]
[51335,"FRAN BELJAK"]
[51350,"IVAN ŠOŠIĆ"]
[51391,"MARTA STIPČIĆ"]
[51402,"MATEA ŠTIBRIC"]
[51443,"TEO SREBRNIĆ"]
[51458,"JAKOV JAMAN"]
[51495,"JAKOV RAZDOROV"]
[51510,"ANGELA ZORA SABLJIĆ"]
[51546,"ADRIAN BLJAIĆ"]
[51561,"Dean VUČIĆ"]
[51601,"KARLO MARTINOVIC"]
[51612,"ANTONIJA RAJKOVIĆ"]
[51652,"ARNEL HUMIĆ"]
[51663,"Sanda KUZMANOVIĆ"]
[51678,"IRIS MALLA"]
[51720,"IVONA VUČERIĆ"]
[51731,"ZARA BLAŽEVIĆ"]
[51771,"Zlatko SARAČEVIĆ"]
[51786,"DORA MIHALIĆ"]
[51822,"PETRA MIKINIČIĆ"]
[51837,"DARIO SRBLJINOVIĆ "]
[51873,"MARIO RADOŠEVIĆ"]
[51888,"ANTONIO TRNINIĆ"]
["1445/44995","Alan Belko",null,"TRENER"]
["11572/389","Alenko Bajer",null,"TRENER"]
["25253/553","Antonio Anđel",null,"TRENER"]
["1017/21305","Antun Domankušić",null,"TRENER"]
["42062/2380","Bojan Jelenić",null,"TRENER"]
["42050/2788","Čurek Lukrecija",null,"TRENER"]
["2321/21790","Dalibor Sokač",null,"TRENER"]
["9363/926","DARIJO GAĆA",null,"TRENER"]
["10019/1972","Dario Sokač",null,"TRENER"]
["45306/2761","Davorka Ševčešin",null,"TRENER"]
["29915/2542","DENIS TOVERNIĆ",null,"TRENER"]
["1398/25244","Dragutin Miklečić",null,"TRENER"]
["5159/1088","Dražen Paripović",null,"TRENER"]
["6807/1964","Edvin Radović",null,"TRENER"]
["2437/8555","Ervin Vučak",null,"TRENER"]
["148/8830","Gorki Grgurev",null,"TRENER"]
["29957/1679","Hrvoje Jurković",null,"TRENER"]
["2714/41126","Hrvoje Turković",null,"TRENER"]
["820/9897","Iva Verhas",null,"TRENER"]
["145/1806","IVAN JIRA",null,"TRENER"]
["42484/2719","Ivana Pajtler",null,"TRENER"]
["876/2006","Ivica Ipša",null,"TRENER"]
["2160/5353","Jerko Alujević",null,"TRENER"]
["43792/2730","Josip Štampar",null,"TRENER"]
["13616/714","Kazimir Ilijaš",null,"TRENER"]
["39680/1493","KRISTIJAN SUBIĆ",null,"TRENER"]
["2608/33187","Maja Salešević",null,"TRENER"]
["45770/729","Marija Žanko",null,"TRENER"]
["11099/1074","Mario Kenfelja",null,"TRENER"]
["1074/11099","Mario Kenfelja",null,"TRENER"]
["26607/2503","Mario Kezić",null,"TRENER"]
["2503/26607","Mario Kezić",null,"TRENER"]
["5260/2747","Mario Knez",null,"TRENER"]
["2747/5260","Mario Knez",null,"TRENER"]
["2033/1912","Mario Paradžik",null,"TRENER"]
["1912/2033","Mario Paradžik",null,"TRENER"]
["7640/1043","Mario Sirotić",null,"TRENER"]
["1043/7640","Mario Sirotić",null,"TRENER"]
["42105/716","Mario Turan",null,"TRENER"]
["716/42105","Mario Turan",null,"TRENER"]
["7693/633","Marko Bijuk",null,"TRENER"]
["633/7693","Marko Bijuk",null,"TRENER"]
["43766/2743","Marko Blažević",null,"TRENER"]
["2743/43766","Marko Blažević",null,"TRENER"]
["32106/2569","Marko Brezac",null,"TRENER"]
["2569/32106","Marko Brezac",null,"TRENER"]
["15091/2340","Marko Crljenić",null,"TRENER"]
["2340/15091","Marko Crljenić",null,"TRENER"]
["12891/1323","MARKO ČULE",null,"TRENER"]
["1323/12891","MARKO ČULE",null,"TRENER"]
["46925/2767","Marko Ćosić",null,"TRENER"]
["2767/46925","Marko Ćosić",null,"TRENER"]
["29323/1345","Marko Galiot",null,"TRENER"]
["1345/29323","Marko Galiot",null,"TRENER"]
["28971/2508","Marko Gotal",null,"TRENER"]
["2508/28971","Marko Gotal",null,"TRENER"]
["12037/2004","Marko Jeger",null,"TRENER"]
["2004/12037","Marko Jeger",null,"TRENER"]
["38751/2222","Marko Lončar",null,"TRENER"]
["2222/38751","Marko Lončar",null,"TRENER"]
["41611/2796","Maroje Martinović",null,"TRENER"]
["2796/41611","Maroje Martinović",null,"TRENER"]
["42954/2726","Martina Andlar",null,"TRENER"]
["2726/42954","Martina Andlar",null,"TRENER"]
["26030/2218","Martina Cindrić",null,"TRENER"]
["2218/26030","Martina Cindrić",null,"TRENER"]
["39515/2387","Martina Vugrinović",null,"TRENER"]
["2387/39515","Martina Vugrinović",null,"TRENER"]
["24162/1701","Martina Zanetti Pleša",null,"TRENER"]
["1701/24162","Martina Zanetti Pleša",null,"TRENER"]
["168/319","Mate Nikolić",null,"TRENER"]
["319/168","Mate Nikolić",null,"TRENER"]
["2559/34404","MATEJ IVANKOVIĆ",null,"TRENER"]
["34404/2559","MATEJ IVANKOVIĆ",null,"TRENER"]
["30371/2483","Matej Mišković",null,"TRENER"]
["2483/30371","Matej Mišković",null,"TRENER"]
["43547/2735","Matej Smiljanec",null,"TRENER"]
["2735/43547","Matej Smiljanec",null,"TRENER"]
["34344/2408","Matija Baotić",null,"TRENER"]
["2408/34344","Matija Baotić",null,"TRENER"]
["691/2565","Matija Harjač",null,"TRENER"]
["2565/691","Matija Harjač",null,"TRENER"]
["45393/2521","Matija Rađaković",null,"TRENER"]
["2521/45393","Matija Rađaković",null,"TRENER"]
["38500/2633","Matija Rušak",null,"TRENER"]
["2633/38500","Matija Rušak",null,"TRENER"]
["45345/2752","Matija Vincar",null,"TRENER"]
["2752/45345","Matija Vincar",null,"TRENER"]
["12245/2488","MATKO ZRILIĆ",null,"TRENER"]
["2488/12245","MATKO ZRILIĆ",null,"TRENER"]
["6183/2068","Mato Vujnović",null,"TRENER"]
["2068/6183","Mato Vujnović",null,"TRENER"]
["22554/2151","Maurizio Franceshini",null,"TRENER"]
["2151/22554","Maurizio Franceshini",null,"TRENER"]
["48590/2838","Mia Koraljka MILIć",null,"TRENER"]
["2838/48590","Mia Koraljka MILIć",null,"TRENER"]
["41832/2710","Mihovil Mateković",null,"TRENER"]
["2710/41832","Mihovil Mateković",null,"TRENER"]
["15198/2388","Mihovil Ostružnjak",null,"TRENER"]
["2388/15198","Mihovil Ostružnjak",null,"TRENER"]
["31434/2514","Milan Prihić",null,"TRENER"]
["2514/31434","Milan Prihić",null,"TRENER"]
["51664/1848","Milan Šteković Šutić",null,"TRENER"]
["1848/51664","Milan Šteković Šutić",null,"TRENER"]
["8402/1713","Milan Šušnjara",null,"TRENER"]
["1713/8402","Milan Šušnjara",null,"TRENER"]
["3972/1692","Milan Zekanović",null,"TRENER"]
["1692/3972","Milan Zekanović",null,"TRENER"]
["21476/2286","Milanko Čaprić",null,"TRENER"]
["2286/21476","Milanko Čaprić",null,"TRENER"]
["26031/2219","Milica Alajbeg",null,"TRENER"]
["2219/26031","Milica Alajbeg",null,"TRENER"]
["129/1411","Milica Dorić",null,"TRENER"]
["1411/129","Milica Dorić",null,"TRENER"]
["8460/1195","Milivoj Rogulj",null,"TRENER"]
["1195/8460","Milivoj Rogulj",null,"TRENER"]
["38437/330","Milivoj Šarko",null,"TRENER"]
["330/38437","Milivoj Šarko",null,"TRENER"]
["30680/1181","Milovan Šašlić",null,"TRENER"]
["1181/30680","Milovan Šašlić",null,"TRENER"]
["47577/2792","Miljenko Grbelja",null,"TRENER"]
["2792/47577","Miljenko Grbelja",null,"TRENER"]
["6437/1745","Miodrag Višnić",null,"TRENER"]
["1745/6437","Miodrag Višnić",null,"TRENER"]
["29129/2467","Miran Ognjenović",null,"TRENER"]
["2467/29129","Miran Ognjenović",null,"TRENER"]
["46604/2749","Mirela Šunda",null,"TRENER"]
["2749/46604","Mirela Šunda",null,"TRENER"]
["15781/2084","Mirko Alduk",null,"TRENER"]
["2084/15781","Mirko Alduk",null,"TRENER"]
["38026/2645","Mirko Bašić",null,"TRENER"]
["2645/38026","Mirko Bašić",null,"TRENER"]
["9198/796","Miro Barbarić",null,"TRENER"]
["796/9198","Miro Barbarić",null,"TRENER"]
["11579/1722","Miroslav Birovljević",null,"TRENER"]
["1722/11579","Miroslav Birovljević",null,"TRENER"]
["39755/2059","Miroslav Galemanović",null,"TRENER"]
["2059/39755","Miroslav Galemanović",null,"TRENER"]
["5116/1095","Miroslav Habijanec",null,"TRENER"]
["1095/5116","Miroslav Habijanec",null,"TRENER"]
["20661/151","Miroslav Koh",null,"TRENER"]
["151/20661","Miroslav Koh",null,"TRENER"]
["15923/1931","Miroslav Lončarić",null,"TRENER"]
["1931/15923","Miroslav Lončarić",null,"TRENER"]
["5537/672","Miroslav Mataija",null,"TRENER"]
["672/5537","Miroslav Mataija",null,"TRENER"]
["44983/200","Miroslav Milinović",null,"TRENER"]
["200/44983","Miroslav Milinović",null,"TRENER"]
["11887/1227","MIROSLAV VICIĆ",null,"TRENER"]
["1227/11887","MIROSLAV VICIĆ",null,"TRENER"]
["18189/2026","Mladen Prskalo",null,"TRENER"]
["2026/18189","Mladen Prskalo",null,"TRENER"]
["15025/2019","Mladen Rajković",null,"TRENER"]
["2019/15025","Mladen Rajković",null,"TRENER"]
["36606/2653","Mladen Šop",null,"TRENER"]
["2653/36606","Mladen Šop",null,"TRENER"]
["18017/84","Mojmir Majić",null,"TRENER"]
["84/18017","Mojmir Majić",null,"TRENER"]
["11221/2445","Monika Kuzmić-Husak",null,"TRENER"]
["2445/11221","Monika Kuzmić-Husak",null,"TRENER"]
["35058/2649","Morana Katalinić",null,"TRENER"]
["2649/35058","Morana Katalinić",null,"TRENER"]
["6117/2753","Nadija Srebrnić Bakić",null,"TRENER"]
["2753/6117","Nadija Srebrnić Bakić",null,"TRENER"]
["35950/2573","Natalija Lukić",null,"TRENER"]
["2573/35950","Natalija Lukić",null,"TRENER"]
["1800/1873","Nataša Kolega",null,"TRENER"]
["1873/1800","Nataša Kolega",null,"TRENER"]
["45324/71","Nebojša Buvač",null,"TRENER"]
["71/45324","Nebojša Buvač",null,"TRENER"]
["21494/95","Nedeljko Lalić",null,"TRENER"]
["95/21494","Nedeljko Lalić",null,"TRENER"]
["19050/443","NEDJELJKO DRUŽIJANIĆ",null,"TRENER"]
["443/19050","NEDJELJKO DRUŽIJANIĆ",null,"TRENER"]
["21494/95","Nedjeljko Lalić",null,"TRENER"]
["95/21494","Nedjeljko Lalić",null,"TRENER"]
["12/793","Nenad Alfirević",null,"TRENER"]
["793/12","Nenad Alfirević",null,"TRENER"]
["21940/1741","Nenad Horvat",null,"TRENER"]
["1741/21940","Nenad Horvat",null,"TRENER"]
["31024/1921","Nenad Lovrić",null,"TRENER"]
["1921/31024","Nenad Lovrić",null,"TRENER"]
["14068/2028","Nenad Novosel",null,"TRENER"]
["2028/14068","Nenad Novosel",null,"TRENER"]
["8717/753","Nenad Plašić",null,"TRENER"]
["753/8717","Nenad Plašić",null,"TRENER"]
["17641/1360","Nenad Rogulj",null,"TRENER"]
["1360/17641","Nenad Rogulj",null,"TRENER"]
["29878/745","Nenad Smiljanec",null,"TRENER"]
["745/29878","Nenad Smiljanec",null,"TRENER"]
["19654/45","Nenad Šoštarić",null,"TRENER"]
["45/19654","Nenad Šoštarić",null,"TRENER"]
["22163/2257","Neven Kalinić",null,"TRENER"]
["2257/22163","Neven Kalinić",null,"TRENER"]
["19744/2235","Neven Rade",null,"TRENER"]
["2235/19744","Neven Rade",null,"TRENER"]
["23749/1130","Nevenka Đurak",null,"TRENER"]
["1130/23749","Nevenka Đurak",null,"TRENER"]
["15512/727","Nikica Batinović",null,"TRENER"]
["727/15512","Nikica Batinović",null,"TRENER"]
["39803/2681","Nikica Katić",null,"TRENER"]
["2681/39803","Nikica Katić",null,"TRENER"]
["39450/1337","Nikola Čupić",null,"TRENER"]
["1337/39450","Nikola Čupić",null,"TRENER"]
["39374/2789","Nikola Geci",null,"TRENER"]
["2789/39374","Nikola Geci",null,"TRENER"]
["44418/743","Nikola Lulić",null,"TRENER"]
["743/44418","Nikola Lulić",null,"TRENER"]
["26492/2398","Nikola Nikolac",null,"TRENER"]
["2398/26492","Nikola Nikolac",null,"TRENER"]
["42002/2703","Nikola Saša Efendić",null,"TRENER"]
["2703/42002","Nikola Saša Efendić",null,"TRENER"]
["2895/415","NIKOLA ŠANDRK",null,"TRENER"]
["415/2895","NIKOLA ŠANDRK",null,"TRENER"]
["21836/1120","Nikola Škorić",null,"TRENER"]
["1120/21836","Nikola Škorić",null,"TRENER"]
["30727/2668","Nikolina Pavković",null,"TRENER"]
["2668/30727","Nikolina Pavković",null,"TRENER"]
["1008/3137","NINO MARKOVIĆ",null,"TRENER"]
["3137/1008","NINO MARKOVIĆ",null,"TRENER"]
["12502/543","PAVLE KRMPOTA",null,"TRENER"]
["543/12502","PAVLE KRMPOTA",null,"TRENER"]
["38207/307","Perica Martić",null,"TRENER"]
["307/38207","Perica Martić",null,"TRENER"]
["5134/1977","Petar Nejašmić",null,"TRENER"]
["1977/5134","Petar Nejašmić",null,"TRENER"]
["43669/2794","Petra Glavač",null,"TRENER"]
["2794/43669","Petra Glavač",null,"TRENER"]
["238/1192","Rada Ciganović",null,"TRENER"]
["1192/238","Rada Ciganović",null,"TRENER"]
["19096/2238","Radmila Lalić",null,"TRENER"]
["2238/19096","Radmila Lalić",null,"TRENER"]
["1158/602","Radojica Matijašević",null,"TRENER"]
["602/1158","Radojica Matijašević",null,"TRENER"]
["0183/5780","RADOMIR GLIGOROVIĆ",null,"TRENER"]
["5780/183","RADOMIR GLIGOROVIĆ",null,"TRENER"]
["5780/0183","RADOMIR GLIGOROVIĆ",null,"TRENER"]
["183/5780","RADOMIR GLIGOROVIĆ",null,"TRENER"]
["31038/718","Radovan Petek",null,"TRENER"]
["718/31038","Radovan Petek",null,"TRENER"]
["6799/704","Ranka Japundža",null,"TRENER"]
["704/6799","Ranka Japundža",null,"TRENER"]
["35188/2772","Ranko Silić",null,"TRENER"]
["2772/35188","Ranko Silić",null,"TRENER"]
["30161/1893","Ratko Budimir",null,"TRENER"]
["1893/30161","Ratko Budimir",null,"TRENER"]
["24248/2172","Renata Hodak",null,"TRENER"]
["2172/24248","Renata Hodak",null,"TRENER"]
["38375/2633","Renata Ivančić-Dolić",null,"TRENER"]
["2633/38375","Renata Ivančić-Dolić",null,"TRENER"]
["7328/2163","Renis Zoranda",null,"TRENER"]
["2163/7328","Renis Zoranda",null,"TRENER"]
["22390/2332","Robert Habek",null,"TRENER"]
["2332/22390","Robert Habek",null,"TRENER"]
["27164/2529","Robert Ipša",null,"TRENER"]
["2529/27164","Robert Ipša",null,"TRENER"]
["21908/2295","Robert Lazić",null,"TRENER"]
["2295/21908","Robert Lazić",null,"TRENER"]
["36045/420","Robert Papić",null,"TRENER"]
["420/36045","Robert Papić",null,"TRENER"]
["3790/1451","Roko Paleka",null,"TRENER"]
["1451/3790","Roko Paleka",null,"TRENER"]
["33441/2253","Sami Deda",null,"TRENER"]
["2253/33441","Sami Deda",null,"TRENER"]
["33562/2520","Sandi Ugrin",null,"TRENER"]
["2520/33562","Sandi Ugrin",null,"TRENER"]
["11321/1805","Sandra Gračanin",null,"TRENER"]
["1805/11321","Sandra Gračanin",null,"TRENER"]
["26028/2224","Sandra Lukšić",null,"TRENER"]
["2224/26028","Sandra Lukšić",null,"TRENER"]
["11218/1173","Sandra Novak",null,"TRENER"]
["1173/11218","Sandra Novak",null,"TRENER"]
["40142/1124","Sanjin Lučičanin",null,"TRENER"]
["1124/40142","Sanjin Lučičanin",null,"TRENER"]
["21500/1763","Saša Breščić",null,"TRENER"]
["1763/21500","Saša Breščić",null,"TRENER"]
["702/2782","Saša Brkinjač",null,"TRENER"]
["2782/702","Saša Brkinjač",null,"TRENER"]
["31612/1220","Saša Sardelić",null,"TRENER"]
["1220/31612","Saša Sardelić",null,"TRENER"]
["16354/2115","Saša Šumanovac",null,"TRENER"]
["2115/16354","Saša Šumanovac",null,"TRENER"]
["36247/1101","Saša Vučić",null,"TRENER"]
["1101/36247","Saša Vučić",null,"TRENER"]
["883/1682","Senko Smoljan",null,"TRENER"]
["1682/883","Senko Smoljan",null,"TRENER"]
["22553/2300","Sergej Martinović",null,"TRENER"]
["2300/22553","Sergej Martinović",null,"TRENER"]
["38029/2630","Silvija Jakovčić",null,"TRENER"]
["2630/38029","Silvija Jakovčić",null,"TRENER"]
["6514/1308","Silvijo Ivandija",null,"TRENER"]
["1308/6514","Silvijo Ivandija",null,"TRENER"]
["23216/2466","Siniša Ivanišević",null,"TRENER"]
["2466/23216","Siniša Ivanišević",null,"TRENER"]
["26669/1928","Siniša Kliček",null,"TRENER"]
["1928/26669","Siniša Kliček",null,"TRENER"]
["8150/1524","Siniša Markota",null,"TRENER"]
["1524/8150","Siniša Markota",null,"TRENER"]
["12120/496","Siniša Orlović",null,"TRENER"]
["496/12120","Siniša Orlović",null,"TRENER"]
["44940/2751","Siniša Radujković",null,"TRENER"]
["2751/44940","Siniša Radujković",null,"TRENER"]
["3275/2555","Siniša Šimić",null,"TRENER"]
["2555/3275","Siniša Šimić",null,"TRENER"]
["11325/2713","Siniša Štajer",null,"TRENER"]
["2713/11325","Siniša Štajer",null,"TRENER"]
["5288/2783","Slaven Kadečka",null,"TRENER"]
["2783/5288","Slaven Kadečka",null,"TRENER"]
["12988/1890","Slavko Stojković",null,"TRENER"]
["1890/12988","Slavko Stojković",null,"TRENER"]
["30158/1386","Slavko Ujdur",null,"TRENER"]
["1386/30158","Slavko Ujdur",null,"TRENER"]
["33291/674","Slobodan Filipović",null,"TRENER"]
["674/33291","Slobodan Filipović",null,"TRENER"]
["3738/491","Slobodan Pekić",null,"TRENER"]
["491/3738","Slobodan Pekić",null,"TRENER"]
["1131/1903","Snježana Horvat",null,"TRENER"]
["1903/1131","Snježana Horvat",null,"TRENER"]
["9983/1865","Snježana Petika",null,"TRENER"]
["1865/9983","Snježana Petika",null,"TRENER"]
["22422/1427","Srečko Horenec",null,"TRENER"]
["1427/22422","Srečko Horenec",null,"TRENER"]
["10822/1203","Stipe Urlić",null,"TRENER"]
["1203/10822","Stipe Urlić",null,"TRENER"]
["13649/728","STJEPAN FILIPOVIĆ",null,"TRENER"]
["728/13649","STJEPAN FILIPOVIĆ",null,"TRENER"]
["73/1739","Suzana Ćoko-Vulikić",null,"TRENER"]
["1739/73","Suzana Ćoko-Vulikić",null,"TRENER"]
["40822/2760","Sven Bandera",null,"TRENER"]
["2760/40822","Sven Bandera",null,"TRENER"]
["1866/1359","Sven Krile",null,"TRENER"]
["1359/1866","Sven Krile",null,"TRENER"]
["21628/2208","Tadej Mijić",null,"TRENER"]
["2208/21628","Tadej Mijić",null,"TRENER"]
["45148/1540","Tajana Damjanović",null,"TRENER"]
["1540/45148","Tajana Damjanović",null,"TRENER"]
["31201/2487","Tanja Madžarac",null,"TRENER"]
["2487/31201","Tanja Madžarac",null,"TRENER"]
["25256/1505","Tatjana Rašić",null,"TRENER"]
["1505/25256","Tatjana Rašić",null,"TRENER"]
["2557/1804","Tihomir Kapitan",null,"TRENER"]
["1804/2557","Tihomir Kapitan",null,"TRENER"]
["26948/2281","Tihomir Kosanović",null,"TRENER"]
["2281/26948","Tihomir Kosanović",null,"TRENER"]
["11667/1771","Tihomir Koški",null,"TRENER"]
["1771/11667","Tihomir Koški",null,"TRENER"]
["980/2702","Tihomir Mustapić",null,"TRENER"]
["2702/980","Tihomir Mustapić",null,"TRENER"]
["46907/2779","Tin Budi",null,"TRENER"]
["2779/46907","Tin Budi",null,"TRENER"]
["7120/2527","Tino Pavić",null,"TRENER"]
["2527/7120","Tino Pavić",null,"TRENER"]
["40488/2650","Tomislav Horvat",null,"TRENER"]
["2650/40488","Tomislav Horvat",null,"TRENER"]
["1895/156","Tomislav Kruljac",null,"TRENER"]
["156/1895","Tomislav Kruljac",null,"TRENER"]
["2283/31977","TOMISLAV MESAROV",null,"TRENER"]
["31977/2283","TOMISLAV MESAROV",null,"TRENER"]
["32511/2582","Tomislav Miler",null,"TRENER"]
["2582/32511","Tomislav Miler",null,"TRENER"]
["17094/1556","Tomislav Mišić",null,"TRENER"]
["1556/17094","Tomislav Mišić",null,"TRENER"]
["12052/2795","Tomislav Rešicki",null,"TRENER"]
["2795/12052","Tomislav Rešicki",null,"TRENER"]
["17222/720","Tomislav Šarić",null,"TRENER"]
["720/17222","Tomislav Šarić",null,"TRENER"]
["564/918","Tomislav Štimac",null,"TRENER"]
["918/564","Tomislav Štimac",null,"TRENER"]
["17661/2155","TOMISLAV VARGA",null,"TRENER"]
["2155/17661","TOMISLAV VARGA",null,"TRENER"]
["17652/318","Tomislav Veraja",null,"TRENER"]
["318/17652","Tomislav Veraja",null,"TRENER"]
["31235/2471","Tomislav Vidaković",null,"TRENER"]
["2471/31235","Tomislav Vidaković",null,"TRENER"]
["13400/1223","Tomislav Žegarac",null,"TRENER"]
["1223/13400","Tomislav Žegarac",null,"TRENER"]
["35288/2764","Toni Gajica",null,"TRENER"]
["2764/35288","Toni Gajica",null,"TRENER"]
["32664/2272","Vanja Antić",null,"TRENER"]
["2272/32664","Vanja Antić",null,"TRENER"]
["42677/2720","Vedran Abramović",null,"TRENER"]
["2720/42677","Vedran Abramović",null,"TRENER"]
["11540/1914","Vedran Ćurak",null,"TRENER"]
["1914/11540","Vedran Ćurak",null,"TRENER"]
["47834/2790","Vedran Huđ",null,"TRENER"]
["2790/47834","Vedran Huđ",null,"TRENER"]
["29142/2605","Vedran Jovanović",null,"TRENER"]
["2605/29142","Vedran Jovanović",null,"TRENER"]
["25464/2210","Vedran Knežević",null,"TRENER"]
["2210/25464","Vedran Knežević",null,"TRENER"]
["44820/2611","Vedran Mataija",null,"TRENER"]
["2611/44820","Vedran Mataija",null,"TRENER"]
["27181/2439","Velimir Tomašev",null,"TRENER"]
["2439/27181","Velimir Tomašev",null,"TRENER"]
["39414/2675","Veselin Vujović",null,"TRENER"]
["2675/39414","Veselin Vujović",null,"TRENER"]
["37157/2621","Vesna Kašner",null,"TRENER"]
["2621/37157","Vesna Kašner",null,"TRENER"]
["32917/2791","Vibor Momčilović",null,"TRENER"]
["2791/32917","Vibor Momčilović",null,"TRENER"]
["31118/2436","Vide Vlahić",null,"TRENER"]
["2436/31118","Vide Vlahić",null,"TRENER"]
["8056/1024","Viktor Anušić",null,"TRENER"]
["1024/8056","Viktor Anušić",null,"TRENER"]
["29853/1263","Viktor Frajhaut",null,"TRENER"]
["1263/29853","Viktor Frajhaut",null,"TRENER"]
["1368/748","Višnja Hrmić",null,"TRENER"]
["748/1368","Višnja Hrmić",null,"TRENER"]
["8668/1844","Višnja Ilić",null,"TRENER"]
["1844/8668","Višnja Ilić",null,"TRENER"]
["704/737","Višnja Surjak",null,"TRENER"]
["737/704","Višnja Surjak",null,"TRENER"]
["25706/2392","Vladimir Borbaš",null,"TRENER"]
["2392/25706","Vladimir Borbaš",null,"TRENER"]
["17384/29","Vladimir Canjuga",null,"TRENER"]
["29/17384","Vladimir Canjuga",null,"TRENER"]
["18133/1483","Vladimir Jelčić",null,"TRENER"]
["1483/18133","Vladimir Jelčić",null,"TRENER"]
["590/1168","Vladimir Ljubić",null,"TRENER"]
["1168/590","Vladimir Ljubić",null,"TRENER"]
["45822/1337","Vladimir Matejčić",null,"TRENER"]
["1337/45822","Vladimir Matejčić",null,"TRENER"]
["12959/2113","Vladimir Skeledžija",null,"TRENER"]
["2113/12959","Vladimir Skeledžija",null,"TRENER"]
["17759/1239","Vladimir Šujster",null,"TRENER"]
["1239/17759","Vladimir Šujster",null,"TRENER"]
["13155/2020","Vlado Bačić",null,"TRENER"]
["2020/13155","Vlado Bačić",null,"TRENER"]
["40511/2755","Vojislav Bjegović",null,"TRENER"]
["2755/40511","Vojislav Bjegović",null,"TRENER"]
["18174/1041","Vojislav Vujić",null,"TRENER"]
["1041/18174","Vojislav Vujić",null,"TRENER"]
["30605/2525","Zdenka Premužić",null,"TRENER"]
["2525/30605","Zdenka Premužić",null,"TRENER"]
["7252/833","Zdenko Batinić",null,"TRENER"]
["833/7252","Zdenko Batinić",null,"TRENER"]
["4079/1927","Zdenko Jurković",null,"TRENER"]
["1927/4079","Zdenko Jurković",null,"TRENER"]
["17458/121","Zdenko Kordi",null,"TRENER"]
["121/17458","Zdenko Kordi",null,"TRENER"]
["15356/2146","Zdravko Lovač",null,"TRENER"]
["2146/15356","Zdravko Lovač",null,"TRENER"]
["15382/773","Zdravko Marčetić",null,"TRENER"]
["773/15382","Zdravko Marčetić",null,"TRENER"]
["215/4940","ZDRAVKO MATIĆ",null,"TRENER"]
["4940/215","ZDRAVKO MATIĆ",null,"TRENER"]
["28806/329","Zdravko Slakoper",null,"TRENER"]
["329/28806","Zdravko Slakoper",null,"TRENER"]
["32627/770","ZLATKO BELANČIĆ",null,"TRENER"]
["770/32627","ZLATKO BELANČIĆ",null,"TRENER"]
["32637/2566","Zlatko Dozan",null,"TRENER"]
["2566/32637","Zlatko Dozan",null,"TRENER"]
["9587/137","Zlatko Grubiša",null,"TRENER"]
["137/9587","Zlatko Grubiša",null,"TRENER"]
["24171/2694","Zlatko Matičić",null,"TRENER"]
["2694/24171","Zlatko Matičić",null,"TRENER"]
["30629/1368","Zlatko Saračević",null,"TRENER"]
["1368/30629","Zlatko Saračević",null,"TRENER"]
["15026/2470","Zlatko Tokić",null,"TRENER"]
["2470/15026","Zlatko Tokić",null,"TRENER"]
["13468/1993","Zlatko Zadravec",null,"TRENER"]
["1993/13468","Zlatko Zadravec",null,"TRENER"]
["42013/2435","Zoran Buzov",null,"TRENER"]
["2435/42013","Zoran Buzov",null,"TRENER"]
["25874/427","Zoran Despenić",null,"TRENER"]
["427/25874","Zoran Despenić",null,"TRENER"]
["40945/2701","Zoran Dorić",null,"TRENER"]
["2701/40945","Zoran Dorić",null,"TRENER"]
["15535/2071","Zoran Druško",null,"TRENER"]
["2071/15535","Zoran Druško",null,"TRENER"]
["12739/1991","ZORAN GALIĆ",null,"TRENER"]
["1991/12739","ZORAN GALIĆ",null,"TRENER"]
["28866/1734","Zoran Grkinić",null,"TRENER"]
["1734/28866","Zoran Grkinić",null,"TRENER"]
["17422/880","Zoran Krivošija",null,"TRENER"]
["880/17422","Zoran Krivošija",null,"TRENER"]
["8831/1299","Zoran Pašić",null,"TRENER"]
["1299/8831","Zoran Pašić",null,"TRENER"]
["3917/1433","Zoran Polchert",null,"TRENER"]
["1433/3917","Zoran Polchert",null,"TRENER"]
["16297/1000","Zoran Ugljanac",null,"TRENER"]
["1000/16297","Zoran Ugljanac",null,"TRENER"]
["18396/1802","Zoran Vujanić",null,"TRENER"]
["1802/18396","Zoran Vujanić",null,"TRENER"]
["11053/1983","Zoran Žitković",null,"TRENER"]
["1983/11053","Zoran Žitković",null,"TRENER"]
["20185/1452","Zvjezdana Jordan",null,"TRENER"]
["1452/20185","Zvjezdana Jordan",null,"TRENER"]
["18129/2143","Zvonimir Bilić",null,"TRENER"]
["2143/18129","Zvonimir Bilić",null,"TRENER"]
["11732/2046","Zvonimir Domić",null,"TRENER"]
["2046/11732","Zvonimir Domić",null,"TRENER"]
["22840/1515","Zvonimir Kutija",null,"TRENER"]
["1515/22840","Zvonimir Kutija",null,"TRENER"]
["17402/923","Zvonimir Melnjak",null,"TRENER"]
["923/17402","Zvonimir Melnjak",null,"TRENER"]
["20003/2345","Zvonimir Njegovec",null,"TRENER"]
["2345/20003","Zvonimir Njegovec",null,"TRENER"]
["4000/502","Zvonimir Petrović",null,"TRENER"]
["502/4000","Zvonimir Petrović",null,"TRENER"]
["9219/903","Zvonko Kaleb",null,"TRENER"]
["903/9219","Zvonko Kaleb",null,"TRENER"]
["3404/99","Zvonko Kardum",null,"TRENER"]
["99/3404","Zvonko Kardum",null,"TRENER"]
["22489/751","Zvonko Papak",null,"TRENER"]
["751/22489","Zvonko Papak",null,"TRENER"]
["8110/453","Žarko Balić",null,"TRENER"]
["453/8110","Žarko Balić",null,"TRENER"]
["3788/316","Žarko Jakšić",null,"TRENER"]
["316/3788","Žarko Jakšić",null,"TRENER"]
["17651/2100","Želimir Popović",null,"TRENER"]
["2100/17651","Želimir Popović",null,"TRENER"]
["10583/1496","Željka Kovač",null,"TRENER"]
["1496/10583","Željka Kovač",null,"TRENER"]
["24451/1415","Željko Čagalj",null,"TRENER"]
["1415/24451","Željko Čagalj",null,"TRENER"]
["10398/1318","Željko Perić",null,"TRENER"]
["1318/10398","Željko Perić",null,"TRENER"]
["17697/488","Željko Poljak",null,"TRENER"]
["488/17697","Željko Poljak",null,"TRENER"]
["21943/2762","Željko Radanović",null,"TRENER"]
["2762/21943","Željko Radanović",null,"TRENER"]
["21965/2746","Željko Ringsmuth",null,"TRENER"]
["2746/21965","Željko Ringsmuth",null,"TRENER"]
["17405/462","Željko Vidaković",null,"TRENER"]
["462/17405","Željko Vidaković",null,"TRENER"]
["31911/448","Živko Vejnović",null,"TRENER"]
["448/31911","Živko Vejnović",null,"TRENER"]
["-"]

{"sheet":"Suci","index":3,"n_rows":451,"n_cols":2,"rows_kept":451,"cut":false,"hidden":false,"merged":[]}
["Ime i prezime","Mjesto"]
["Adi Žepčan","Umaga"]
["Ahmed Njuhović","Zagreba"]
["Aleksandar Florschutz","Zagreba"]
["Ana Kederov","Zagreba"]
["Anamarija Ogrizek","Osijeka"]
["Andrea Erceg","Bjelovara"]
["Andrea Horvat","Zagreba"]
["Andreja Bošnjak","Koprivnice"]
["Andro Amančić","Rijeke"]
["Anna-Carmen Barišić","Zagreba"]
["Ante Božan","Solina"]
["Ante Mikelić","Solina"]
["Ante Pavić","Zadra"]
["Ante Repeša","Metkovića"]
["Ante Stipandžija","Šibenika"]
["Ante Talajić","Metkovića"]
["Ante Vučinović","Zagreba"]
["Anto Josić","Zagreba"]
["Antonija Fištrović","Karlovca"]
["Antonijo Špoljarić","Zaprešića"]
["Antonio Brnić","Rijeke"]
["Antonio Jurić","Bjelovara"]
["Antonio Očić","Zagreba"]
["Antonio Stanić","Zaprešića"]
["Antonio Tomaš","Rijeke"]
["Anja Wolfand","Rijeke"]
["Boris Bukurov","Trogira"]
["Boris Crnojević","Kutine"]
["Boris Čačić","Zagreba"]
["Boris Kirinčić","Rijeke"]
["Boris Milošević","Osijeka"]
["Boris Perković","Zaprešića"]
["BORIS ZUBANOVIĆ","Zagreba"]
["Borna Božiković","Zagreba"]
["Borna Markuš","Zagreba"]
["Borna Miljković","Jastrebarskog"]
["Božena Delaš","Kaštel Starog"]
["Božidar Prpić","Osijeka"]
["Branimir Major","Višnjevca"]
["Branko Kordić","Zagreba"]
["BRANKO MIŠKULIN","Zagreba"]
["Branko Pavković","Ogulina"]
["Bruno Androš","Osijeka"]
["Bruno Peić","Bjelovara"]
["Bruno Štefančić","Rijeke"]
["Dalibor Blesić","Koprivnice"]
["Dalibor Dragočajac","Novske"]
["Dalibor Feletar","Bjelovara"]
["Dalibor Jurinović","Zadra"]
["Dalibor Medved","Donjeg Miholjca"]
["Dalibor Tunuković","Vrpolja"]
["Damir Barić","Čakovca"]
["Damir Dervišević","Zagreba"]
["Damir Kuti","Vukovara"]
["Damir Mavriček","Biograda na moru"]
["Damir Prelčec","Zagreba"]
["Damir Sarajlić","Velike Gorice"]
["Damir Šodić","Splita"]
["Damir Vuković","Podstrane"]
["Danijel Blašković","Ogulina"]
["Danijela Bolfek","Brestovja"]
["Darijo Maleš","Šibenika"]
["Dario Bedeković","Bjelovara"]
["Dario Heršak","Kapele"]
["Dario Rupčić","Rijeke"]
["Darko Cerniar","Rijeke"]
["Darko Finek","Zagreba"]
["Darko Mikolčić","Virovitice"]
["Darko Radaković","Požege"]
["Darko Tomović","Rijeke"]
["David Božičević","Ogulina"]
["Davor Češi","Zagreba"]
["Davor Đurinović","Zagreba"]
["Davor Lončar","Varaždina"]
["Davor Milaković","Osijeka"]
["Davor Milošević","Rijeke"]
["Davor Tor","Zagreba"]
["Davorin Bašić","Slavonskog Broda"]
["Davorin Medved","Zagreba"]
["Davorka Nikl","Svete Nedelje"]
["Dean Plazanić","Osijeka"]
["Dean Prpić","Zagreba"]
["Dejan Gomerčić","Brestovca"]
["Dejan Plentaj","Bjelovara"]
["DEJAN PRPIĆ","Zagreba"]
["Deni Marčinković","Bjelovara"]
["Denis Bregni","Garešnice"]
["Denis Erceg","Bjelovara"]
["Dimitar Tatarinov","Zagreba"]
["Dino Giljević","Ploča"]
["Dino Modrić","Čepina"]
["Dino Volarić","Zagreba"]
["Domagoj Degmečić","Vrpolja"]
["Domagoj Ferenčak","Zagreba"]
["Domagoj Jukić","Osijeka"]
["Domagoj Kolić","Zagreba"]
["Domagoj Ljubičić","Novske"]
["Domagoj Verović","Velike Gorice"]
["Dominik Degmečić","Vrpolja"]
["Dominik Lacko","Trnovca Bartolovečkog"]
["Dominik Trčak","Samobora"]
["Dora Trošelj","Samobora"]
["Dorijan Pešutić","Viškova"]
["Dragan Hajtić","Bjelovara"]
["Dragan Kaleb","Metkovića"]
["Dragan Zaro","Splita"]
["Drago Lučan","Zagreba"]
["Dragutin Modesto","Kanfanara"]
["Dražen Anušić","Primorskog Dolca"]
["Dražen Bajt","Dugog Sela"]
["Dražen Dragija","Dubrave Vrbovečke"]
["Dražen Gladović","Virovitice"]
["Dražen Golub","Čakovca"]
["Dražen Stjepanović","Petrinje"]
["Dubravko Ćuk","Virovitice"]
["Dubravko Konjuh","Rijeke"]
["DUBRAVKO LUŠIĆ","Zagreba"]
["Dubravko Matejaš","Lipovljana"]
["Dubravko Vukovac","Splita"]
["Dunja Janton","Zaprešića"]
["Dušan Aleksić","Vižinade"]
["Ena Dervišević","Zagreba"]
["Filip Domac","Privlake"]
["Filip Golub","Čakovca"]
["Filip Juričan","Siska"]
["Filip Krog","Belišća"]
["Filip Skendrović","Bregane"]
["Filip Šunjić","Rijeke"]
["Filip Tišljarec","Umaga"]
["Filip Zafred","Osijeka"]
["Fran Buneta","Rijeke"]
["Fran Glavota","Osijeka"]
["Frano Baković","Zagreba"]
["Frano Josip","Zagreba"]
["Franjo Malek","Preloga"]
["Frenko Soldo","Slavonskog Broda"]
["Goran Cupek","Garešnice"]
["Goran Radonjić","Donjeg Miholjca"]
["Goran Roksa","Petrinje"]
["Goran Stojanović","Osijeka"]
["Goran Šimunčić","Varaždina"]
["Goran Turkalj","Rijeke"]
["Goran Volenik","Virovitice"]
["Gordan Vukušić","Zagreba"]
["Helena Hofer","Samobora"]
["Hrvoje Cili","Zagreba"]
["Hrvoje Čačić","Zagreba"]
["Hrvoje Čambala","Križa"]
["Hrvoje Janović","Rijeke"]
["Hrvoje Kniewald","Zaprešića"]
["Hrvoje Rogić","Velike Gorice"]
["Hrvoje Stipanović","Zagreba"]
["Igor Barle","Zagreba"]
["Igor Cili","Zagreba"]
["Igor Emanović","Štivica"]
["Igor Gašparović","Bjelovara"]
["Igor Hunjadi","Zagreba"]
["Igor Jerković","Solina"]
["Igor Noskov","Osijeka"]
["Igor Prpić","Kostrene"]
["Igor Rendulić","Kutine"]
["Igor Sunajko","Dugog Sela"]
["Igor Tomić","Rijeke"]
["Irena Pahor","Rijeke"]
["Iva Jurković","Zagreba"]
["Ivan Baković","Zagreba"]
["Ivan Bednjanec","Zagreba"]
["Ivan Buovac","Biograda na moru"]
["Ivan Dandić","Belišća"]
["Ivan Goreta","Zagreba"]
["Ivan Grbavac","Makarske"]
["Ivan Hojvan","Kutine"]
["Ivan Komšo","Kaštel Novog"]
["Ivan Kovačević","Štivica"]
["Ivan Luketić","Rijeke"]
["Ivan Mališa","Varaždina"]
["Ivan Mihaljević","Ogulina"]
["Ivan Mikša","Zagreba"]
["Ivan Podgorščak","Jastrebarskog"]
["Ivan Toplak","Zagreba"]
["Ivan Turić","Zagreba"]
["Ivan Vuković","Virovitice"]
["Ivana Farkaš","Osijeka"]
["Ivana Kirasić","Ogulina"]
["Ivana Koren","Koprivnice"]
["Ivana Kovač","Poreča"]
["Ivana Krpina","Zagreba"]
["Ivana Srebačić","Bedekovčine"]
["Ivica Botinčan","Rijeke"]
["Ivica Glavinić","Metkovića"]
["Ivica Golubić","Garešnice"]
["IVICA IMRE","Zagreba"]
["Ivica Kostecki","Siska"]
["Ivica Mandić","Solina"]
["Ivica Potočki","Zagreba"]
["Ivica Prpić","Zagreba"]
["Ivica Šiško","Osijeka"]
["Ivica Teskera","Šibenika"]
["Ivona Abramović","Osijeka"]
["Izidor Kranjčec","Bedekovčine"]
["Jadranko Marinković","Lipovljana"]
["Jan Kasa","Zagreba"]
["Jan Marton","Novske"]
["Jelena Bagarić","Zagreba"]
["Jelena Šišić","Zaprešića"]
["Jelena Vujić","Zagreba"]
["Josip Cepanec","Turčina"]
["Josip Gagula","Zagreba"]
["Josip Ivančić","Zagreba"]
["Josip Kovačec","Zaprešića"]
["Josip Kuhar","Samobora"]
["JOSIP MIŠKULIN","Zagreba"]
["Josip Perić","Splita"]
["JOSIP ŠOUREK","Zagreba"]
["Josip Vinković","Belišća"]
["Josipa Mijatović","Kaštel Gomilice"]
["Joško Dujić","Zadra"]
["Joško Perdić","Splita"]
["Jovica Sekulić","Osijeka"]
["Julijana Žuliček","Umaga"]
["JURAJ SVRTAN","Zagreba"]
["Juraj Svrtan","Zagreba"]
["Karin Mačinković","Umaga"]
["Karla Hofer","Samobora"]
["Karlo Sever","Osijeka"]
["Karlo Turković","Bjelovara"]
["Karolina Grah","Svete Nedelje"]
["Katarina Vujanić","Pisarovine"]
["Krešimir Donđivić","Zadra"]
["Krešimir Kozjak","Zagreba"]
["Kristijan Grubišić","Hreljina"]
["Kristijan Kovačević","Zaprešića"]
["Kristijan Kucljak","Lukača"]
["Kristijan Marević","Kule Norinske"]
["Kristina Majpruz","Zagreba"]
["Lea Kovač","Osijeka"]
["Leon Huremović","Petrinje"]
["Loren Marić","Repušnice"]
["Lorena Jurenec","Koprivnice"]
["Lovro Kasunić","Karlovca"]
["Lovro Tomović","Rijeke"]
["Lucija Šimrak","Donje Bistre"]
["Luka Bogdanović","Selca"]
["Luka Klarić","Sesveta"]
["Luka Lončar","Zagreba"]
["Luka Matić","Petrinje"]
["Luka Šipoš","Trnovca Bartolovečkog"]
["Luka Tandara","Bjelovara"]
["Luka Vezmar","Bjelovara"]
["Ljerko Ožegović","Bjelovara"]
["Ljubo Ivanišević","Ploča"]
["Maja Vajdić","Zagreba"]
["Marija Blažević","Zagreba"]
["Marija Kelečević","Horvata"]
["Marijan Miletić","Zagreba"]
["Marijan Mraz","Trnovca Bartolovečkog"]
["Marijana Borac","Sesveta"]
["Marijo Zečević","Zagreba"]
["Marin Šimić","Sesveta"]
["Marinko Ševo","Zagreba"]
["Mario Juršić","Pule"]
["Mario Lukačin","Bjelovara"]
["Mario Mraz","Trnovca Bartolovečkog"]
["Mario Ružić","Virovitice"]
["Mario Uglik","Vinkovaca"]
["Mario Zec","Sesveta"]
["Marko Čulo","Zagreba"]
["Marko Duspara","Velike Gorice"]
["Marko Đurinović","Zagreba"]
["Marko Jozić","Zagreba"]
["Marko Kačanić","Rijeke"]
["Marko Lušić","Vinkovaca"]
["Marko Mrvica","Biograda na moru"]
["Marko Poljak","Brckovljana"]
["Marko Presek","Koprivnice"]
["Marko Zeko","Čakovca"]
["Martin Češi","Zagreba"]
["Mate Milić","Šibenika"]
["Mate Nikolac","Rogotina"]
["Mate Torbarina","Zadra"]
["Mate Zeljko","Mokošice"]
["Matej Knapić","Slatine"]
["Matej Lončar","Privlake"]
["Matej Marinović","Osijeka"]
["Matej Novokmet","Osijeka"]
["Matej Pavlović","Varaždina"]
["Mateja Šibenik","Sesveta"]
["Mateo Živković","Šibenika"]
["Matija Brodić","Zagreba"]
["Matija Cingesar","Varaždina"]
["Matija Gubica","Višnjevca"]
["Matija Hodžić","Zagreba"]
["Matko Abramović","Rijeke"]
["Matko Butorović","Zagreba"]
["Matko Murić","Varaždina"]
["Mato Merdžan","Duge Rese"]
["Melita Posavec","Zagreba"]
["Mensur Seferović","Zagreba"]
["Mihaela Gaća","Samobora"]
["MIJO BARINIĆ","Zagreba"]
["Mijo Lamešić","Otoka"]
["Milan Blagovčanin","Rijeke"]
["Milan Emanović","Sesveta"]
["Milan Karas","Opatije"]
["Milan Kopač","Zagreba"]
["Milan Musulin","Bjelovara"]
["Mile Veraja","Metkovića"]
["Milorad Golner","Ivanić Grada"]
["Milorad Jeftić","Varaždina"]
["Miljenko Kadum","Pule"]
["Miljenko Komerički","Kutine"]
["Miljenko Krkalo","Krapine"]
["Miljenko Medved","Varaždina"]
["Miodrag Peković","Varaždina"]
["Mirela Ban","Samobora"]
["Mirjana Bekavac","Sinja"]
["Mirko Pranjić","Bjelovara"]
["Mirko Zorko","Zagreba"]
["Miroslav Josić","Donjeg Miholjca"]
["Miroslav Lončarić","Kutine"]
["Mišo Dobranić","Čakovca"]
["Mladen Šulekić","Novske"]
["Monika Bešen","Sesveta"]
["Morana Katalinić","Zagreba"]
["Nataša Parmać","Metkovića"]
["Nataša Višnjić","Rijeke"]
["Nediljko Stančić","Šibenika"]
["Nenad Županić","Križevaca"]
["Nevena Krajcar","Zagreba"]
["Nikola Carević","Metkovića"]
["Nikola Knežević","Vrpolja"]
["Nikola Majcen","Varaždina"]
["Nikolina Čarapina","Splita"]
["Nikša Kalčić","Rijeke"]
["Nino Bojmić","Zadra"]
["Nives Jakus","Marine"]
["Patricija Tomašković","Samobora"]
["Pavao Mihelić","Samobora"]
["Petar Bulum","Metkovića"]
["Petar Parađina","Solina"]
["Petar Pojatina","Zagreba"]
["Petar Žanko","Sinja"]
["Petra Prodanović","Samobora"]
["Petra Simić","Zagreba"]
["Pravdan Pešutić","Matulja"]
["Predrag Krmek","Rijeke"]
["Predrag Krstanović","Kutine"]
["Radivoj Buljević","Rijeke"]
["Radovan Miško","Lipovljana"]
["Ratko Budimir","Bjelovara"]
["Renato Ćuže","Vrgorca"]
["Robert Bernobić","Rijeke"]
["Robert Gonzurek","Osijeka"]
["Robert Juriša","Osijeka"]
["Robert Kober","Zagreba"]
["Robert Kožuhar","Garešnice"]
["Robert Magić","Trnovca Bartolovečkog"]
["Roberto Lozančić","Velike Gorice"]
["Rudolf Vidović","Zagreba"]
["Sandra Čičić","Zagreba"]
["Sandro Capan","Jastrebarskog"]
["Sandro Stojaković","Zagreba"]
["Sandro Širanec","Trnovca Bartolovečkog"]
["Sanja Hanić","Zagreba"]
["Sanja Trbović","Rijeke"]
["Sara Mesic","Jastrebarskog"]
["Saša Brabec","Virovitice"]
["Saša Juršić","Pule"]
["Saša Kundih","Krapine"]
["Saša Martinić","Zagreba"]
["Saša Szekely","Zagreba"]
["Saša Vučić","Zagreba"]
["Sašo Nikolovski","Karlovca"]
["Senad Imamović","Umaga"]
["Senko Stojaković","Zagreba"]
["Silvano Nogić","Petrinje"]
["Siniša Bosak","Varaždina"]
["Siniša Ravlić","Vrgorca"]
["Siniša Rudić","Biograda na moru"]
["Stefano Rajković","Zagreba"]
["Stipe Kereta","Zagreba"]
["Stjepan Peršić","Virovitice"]
["Šime Vidaković","Garešnice"]
["Tea Svalina","Osijeka"]
["Tea Vidović","Zagreba"]
["Tibor Kovač","Bjelovara"]
["Tibor Sekulić","Osijeka"]
["Tihomir Kasunić","Karlovca"]
["Tin Derušek","Zagreba"]
["Tino Ateljević","Osijeka"]
["Tomislav Abramović","Rijeke"]
["Tomislav Baić","Novske"]
["Tomislav Bjelopera","Bjelovara"]
["Tomislav Celinščak","Samobora"]
["Tomislav Cindrić","Osijeka"]
["Tomislav Horvat","Zagreba"]
["Tomislav Kolenko","Varaždina"]
["Tomislav Miler","Dubrave Vrbovečke"]
["Tomislav Paripović","Bjelovara"]
["Tomislav Petanjek","Zagreba"]
["Tomislav Radošević","Zagreba"]
["Tomislav Tunuković","Vrpolja"]
["Tonči Vuković","Krila Jesenica"]
["Toni Butorović","Zagreba"]
["Toni Matijašić","Bregane"]
["Toni Pavlić","Osijeka"]
["Valentino Ćuže","Vrgorca"]
["Vanja Banović","Požege"]
["Vedran Banović","Požege"]
["Vedran Belošević","Dubrave Vrbovečke"]
["VEDRAN DUKIĆ","Bjelovara"]
["Vedran Prelogar","Zagreba"]
["Vedrana Stančir","Botova"]
["Velimir Šoić","Samobora"]
["Veljko Kordić","Zagreba"]
["Vibor Momčilović","Zagreba"]
["Viktor Zlodi","Svete Nedelje"]
["Vinko Arić","Kanfanara"]
["Vladimir Grubor","Poreča"]
["Vladimir Jurenec","Koprivnice"]
["Vladimir Kramar","Čakovca"]
["Vladimir Merkaš","Zagreba"]
["Vladimir Peković","Varaždina"]
["Vladimir Sokol","Topličice"]
["Vladimir Šalaj","Zagreba"]
["Vladimir Šerić","Splita"]
["Vlado Živolić","Rovinja"]
["Vlatka Stipetić","Ogulina"]
["Vojo Musulin","Kaštel Gomilice"]
["Zdravko Golub","Čakovca"]
["Zdravko Marković","Zagreba"]
["Zlatko Kelečević","Horvata"]
["Zlatko Ladić","Sračinca"]
["ZORAN KEŽIĆ","Metkovića"]
["Zoran Lončar","Varaždina"]
["Zoran Mikić","Štivica"]
["Zoran Sever","Osijeka"]
["Zvjezdan Utješinović","Zagreba"]
["ZVONIMIR JURIĆ","Zagreb"]
["Zvonimir Tukač","Zagreba"]
["Zvonimir Vidović","Metkovića"]
["Žarko Burić","Rijeke"]
["Žarko Jerneić","Zagreba"]
["Željana Franić","Solina"]
["Željka Cvetko","Zagreba"]
["Željko Čubrić","Zadra"]
["Željko Herceg","Varaždina"]
["Željko Živec","Sesveta"]
["Živko Milardović","Stobreča"]
["-","-"]

{"sheet":"Upute","index":4,"n_rows":48,"n_cols":7,"rows_kept":48,"cut":false,"hidden":false,"merged":[]}
[null,"Zapisnik funkcionira isključivo u Excel verzijama 2007 i 2010"]
[]
[null,"- Da bi zapisnik bio u potpunosti funkcionalan potrebno je omogućiti Macro naredbe na slijedeći način:"]
[null,null,"Excel 2007",null,"Office button  ",null,"--> Excel options --> Trust Center --> Trust Center settings --> "]
[null,null,"(engleska verzija)",null,"-->","Macro settings --> Enable all macros"]
[null,null,"Excel 2007",null,"Gumb Office",null,"--> Mogućnosti programa Excel --> Centar za pouzdanost --> Postavke centra za pouzdanost --> "]
[null,null,"(hrvatska verzija)",null,"-->","Postavke makronaredbe --> Omogući sve makronaredbe"]
[]
[null,null,"Excel 2010 i viši",null,"File --> Options --> Trust center --> Trust center settings --> "]
[null,null,"(engleska verzija)",null,"-->","Macro settings --> Enable all macros"]
[null,null,"Excel 2010 i viši",null,"Datoteka --> Mogućnosti --> Centar za pouzdanost --> Postavke centra za pouzdanost --> "]
[null,null,"(hrvatska verzija)",null,"-->","Postavke makronaredbe --> Omogući sve makronaredbe"]
[]
[null,"NAKON UKLJUČENJA OVIH OPCIJA PONOVO POKRENITE EXCEL"]
[]
[null,"- U zapisniku je mogući upis i promjena samo za to predviđenih ćelija"]
[]
[null,"- Popis igrača se upisuje u karticu \"PODACI\" nakon čega se on automatski prepisuje u obrazac zapisnika"]
[null,"  Nakon upisa podataka o igračima, pritiskom na gumb POREDAJ  vrši se poredak igrača prema broju dresa"]
[null,"  OPCIJU POREDAVANJA IGRAČA KORISTITE ISKLJUČIVO PRIJE UPISA GOLOVA I KAZNI U OBRASCU ZAPISNIKA !!!!!!!!!!!"]
[null,"- U kartici \"PODACI\", iz padajućih izbornika se odabiru podaci o utakmici (uzrast, spol i vrsta utakmice)"]
[]
[null,"- Ukoliko se u kartici \"PODACI\", iz padajćeg izbornika pokraj matičnog broja odabere golman, on će automatski biti označen u obrascu zapisnika "]
[]
[null,"- Zapisnik automatski zbraja upisane golove za svakog igrača pojedinačno, rezultat poluvremena te ukupan rezultat"]
[null,"  Da bi rezultat poluvremena bio ispravan potrebno je u kartici \"PODACI\" upisati period trajanja igre (osnovna postavka je 2×30 minuta)"]
[]
[null,"- Kod svakog upisa pogotka, potrebno je odabrati ekipu koja ga je postigla kako bi se ažurirala evidencija promjene rezultata"]
[]
[null,"- Realizirani sedmerac označavamo odgovarajućim gumbom ili opcijom CTRL+m, nerealicirani CTRL+n, čistimo formatiranje sa CTRL+o"]
[]
[null,"ZA SPREMANJE NOVE DATOTEKE UTAKMICE KORISTITE GUMB \"Spremi zapisnik s novim imenom\". OVA OPCIJA SPREMA DATOTEKU S IMENOM KOJE SADRŽI OSNOVNE PODATKE O UTAKMICI."]
[null,"ZA SLANJE ZAPISNIKA VODITELJIMA LIGE KORISTETE GUMB \"Spremi za slanje\" - OVA OPCIJA SPREMA ZAPISNIK U PDF OBLIKU."]
[null,"    NAPOMENA: OVA OPCIJA SPREMA ZAPISNIK BEZ POTPISA SLUŽBENIH OSOBA, PA PROVJERITE S VODITELJEM LIGE DA LI TREBA SLATI SKENIRANI ZAPISNIK!"]
[]
[null,"POPUNJAVANJE IGRAČA NA OSNOVU BROJA REGISTRACIJE"]
[null,"Potrebno je u kartici \"Igraci\" popuniti sve igrače s registarskim brojevima - na dno tablice možete dodavati nove igrače."]
[]
[null,"PROPOZICIJE"]
[null,"Službene osobe - Članak 55."]
[null,"Službene osobe na utakmici dužne su nositi oznake za službene osobe (A-službeni predstavnik, B-trener, C-pomoćni trener i D-fizioterapeut/lijeĉnik/maser) koje im pripadaju po funkciji."]
[]
[null,"Glavni dežurni - Članak 63."]
[null,"Najkasnije 30 (trideset) min prije poĉetka utakmice domaćin mora nadzorniku priopćiti ime i prezime, datum rođenja i broj osobne iskaznice glavne i odgovorne osobe za organizaciju utakmice."]
[]
[null,"Liječnik - Članak 65."]
[null,"Nadzornik mora prije utakmice izvršiti provjeru identiteta službenog lijeĉnika (broj identifikacijske isprave koja je upisana u zapisnik)."]
[null,"Nadzornik mora u zapisnik utakmice upisati ime i prezime službenog lijeĉnika."]